Workbook

Sheet Calendrier
A1: 2016 | E1: N° ident. | F1: N123456 | L1: année | N1: =IF(AD19<>"",366,365) -> 366 | P1: jours | S1: contrôle | U1: 366 | AS1: Sa | AT1: Samedi
E2: nom | F2: MARTIN | L2: F | N2: =COUNTIF($B$12:$AF$59,L2)/2 -> 12 | P2: férié | AS2: Di | AT2: Dimanche
E3: prénom | F3: PATRICK | L3: Di | N3: =AJ11 -> 47 | P3: dimanche | AS3: F | AT3: Férié
E4: service | F4: COMPTABILITE | L4: Sa | N4: =AI11 -> 53 | P4: samedi | U4: MT | AS4: CA | AT4: Congés annuel
L5: CA | N5: =COUNTIF($B$12:$AF$59,L5)-COUNTIF(copie_cal_aou,"ca") -> 25 | P5: =IF($AL$11>$N$5,"nombre de CA dépassé","reste "&+$N$5-$AL$11) -> reste 0 | AS5: CP | AT5: Chômage partiel
L6: CP | N6: =AM11 -> 0 | AS6: RTT | AT6: Recupération temps travail
L7: T | N7: =213-(AM11+AP11+AO11) -> 213 | P7: =IF(SUM($AH$15:$AH$59)>$N$7,"trop de jour travaillés",IF((SUM($AH$15:$AH$59)+AM11)=$N$7,"Nb jour travailler bon","reste à travailler")) -> Nb jour travailler bon | V7: 0 | AS7: MT | AT7: Maladie
B8: HORAIRE 2 X 4 | J8: 1/2RTT | L8: RTT | N8: =N1-(N2+N3+N4+N5+AM11+N7+N9+V4) -> 16 | P8: =IF($AN$11>$N$8,"Nb de JDR dépassé","reste "&+$N$8-$AN$11) -> reste 0 | AH8: 366 | AL8: =INDIRECT(OFFSET($A$11,4*MONTH(TODAY()),0)&"!"&"k8") -> 25 | AN8: =INDIRECT(OFFSET($A$11,4*MONTH(TODAY()),0)&"!"&"k9") -> 14 | AS8: CS | AT8: Congés suplémentaire
J9: 1/2CS | L9: CS | N9: 0 | P9: =IF($AP$11>$N$9,"Nb CS dépassé","reste "&+$N$9-$AP$11&" CS ") -> reste 0 CS | AH9: 1/2T | AN9: 1/2RTT | AP9: 1/2CS | AS9: 7.8 | AT9: horaire journalier
A10: 213 | C10: JOUR DE TRAVAIL | G10: DE | H10: 7h80 | I10: centième | K10: =1584+7 | M10: Heures | O10: avec le lundi de pentcôte | AH10: T | AI10: Sa | AJ10: Di | AK10: F | AL10: CA | AM10: CP | AN10: RTT | AO10: MT | AP10: CS
B11: 1 | C11: 2 | D11: 3 | E11: 4 | F11: 5 | G11: 6 | H11: 7 | I11: 8 | J11: 9 | K11: 10 | L11: 11 | M11: 12 | N11: 13 | O11: 14 | P11: 15 | Q11: 16 | R11: 17 | S11: 18 | T11: 19 | U11: 20 | V11: 21 | W11: 22 | X11: 23 | Y11: 24 | Z11: 25 | AA11: 26 | AB11: 27 | AC11: 28 | AD11: 29 | AE11: 30 | AF11: 31 | AH11: =SUM(AH15:AH59) -> 213 | AI11: =SUM(AI15:AI59) -> 53 | AJ11: 47 | AK11: 12 | AL11: 25 | AM11: 0 | AN11: =SUM(AN15:AN59) -> 16 | AO11: =SUM(AO15:AO59) -> 0 | AP11: 0
B12: Ve | C12: Sa | D12: Di | E12: Lu | F12: Ma | G12: Me | H12: Je | I12: Ve | J12: Sa | K12: Di | L12: Lu | M12: Ma | N12: Me | O12: Je | P12: Ve | Q12: Sa | R12: Di | S12: Lu | T12: Ma | U12: Me | V12: Je | W12: Ve | X12: Sa | Y12: Di | Z12: Lu | AA12: Ma | AB12: Me | AC12: Je | AD12: Ve | AE12: Sa | AF12: Di
B13: =VALUE("01/01/"&A1) -> 42370 | C13: =B13+1 -> 42371 | D13: =C13+1 -> 42372 | E13: 42373 | F13: 42374 | G13: 42375 | H13: 42376 | I13: 42377 | J13: 42378 | K13: 42379 | L13: 42380 | M13: 42381 | N13: 42382 | O13: 42383 | P13: 42384 | Q13: 42385 | R13: 42386 | S13: 42387 | T13: 42388 | U13: 42389 | V13: 42390 | W13: 42391 | X13: 42392 | Y13: 42393 | Z13: 42394 | AA13: 42395 | AB13: 42396 | AC13: 42397 | AD13: 42398 | AE13: 42399 | AF13: 42400
B14: =IF(AND(ISERROR(VLOOKUP(B13,liste_fériés,1,FALSE)),OR(B12="Sa",B12="Di")),B12,IF(ISERROR(VLOOKUP(B13,liste_fériés,1,FALSE)),"T","F")) -> F | C14: Sa | D14: Di | E14: T | F14: T | G14: T | H14: T | I14: T | J14: Sa | K14: Di | L14: T | M14: T | N14: T | O14: T | P14: T | Q14: Sa | R14: Di | S14: T | T14: T | U14: T | V14: T | W14: T | X14: Sa | Y14: Di | Z14: T | AA14: T | AB14: T | AC14: T | AD14: T | AE14: Sa | AF14: Di
A15: JAN | B15: F | C15: Sa | D15: Di | E15: T | F15: T | G15: T | H15: T | I15: T | J15: Sa | K15: Di | L15: T | M15: T | N15: T | O15: T | P15: RTT | Q15: Sa | R15: Di | S15: T | T15: T | U15: T | V15: T | W15: T | X15: Sa | Y15: Di | Z15: T | AA15: T | AB15: T | AC15: T | AD15: RTT | AE15: Sa | AF15: Di | AH15: =COUNTIF($B15:$AF15,AH$10) -> 18 | AI15: =COUNTIF($B15:$AF15,AI$10) -> 5 | AJ15: 5 | AK15: 1 | AL15: 0 | AM15: 0 | AN15: 2 | AO15: 0 | AP15: 0
B16: Lu | C16: Ma | D16: Me | E16: Je | F16: Ve | G16: Sa | H16: Di | I16: Lu | J16: Ma | K16: Me | L16: Je | M16: Ve | N16: Sa | O16: Di | P16: Lu | Q16: Ma | R16: Me | S16: Je | T16: Ve | U16: Sa | V16: Di | W16: Lu | X16: Ma | Y16: Me | Z16: Je | AA16: Ve | AB16: Sa | AC16: Di | AD16: Lu
B17: =VALUE("01/02/"&$A$1) -> 42401 | C17: =B17+1 -> 42402 | D17: =C17+1 -> 42403 | E17: 42404 | F17: 42405 | G17: 42406 | H17: 42407 | I17: 42408 | J17: 42409 | K17: 42410 | L17: 42411 | M17: 42412 | N17: 42413 | O17: 42414 | P17: 42415 | Q17: 42416 | R17: 42417 | S17: 42418 | T17: 42419 | U17: 42420 | V17: 42421 | W17: 42422 | X17: 42423 | Y17: 42424 | Z17: 42425 | AA17: 42426 | AB17: 42427 | AC17: 42428 | AD17: =IF(AC17+1=VALUE("29/02/"&A1),AC17+1,0) -> 42429
B18: =IF(AND(ISERROR(VLOOKUP(B17,liste_fériés,1,FALSE)),OR(B16="Sa",B16="Di")),B16,IF(ISERROR(VLOOKUP(B17,liste_fériés,1,FALSE)),"T","F")) -> T | C18: T | D18: T | E18: T | F18: T | G18: Sa | H18: Di | I18: T | J18: T | K18: T | L18: T | M18: T | N18: Sa | O18: Di | P18: T | Q18: T | R18: T | S18: T | T18: T | U18: Sa | V18: Di | W18: T | X18: T | Y18: T | Z18: T | AA18: T | AB18: Sa | AC18: Di | AD18: T
A19: FEV | B19: T | C19: T | D19: T | E19: T | F19: T | G19: Sa | H19: Di | I19: T | J19: T | K19: T | L19: T | M19: T | N19: Sa | O19: Di | P19: RTT | Q19: T | R19: T | S19: T | T19: T | U19: Sa | V19: Di | W19: T | X19: T | Y19: T | Z19: T | AA19: RTT | AB19: Sa | AC19: Di | AD19: T | AH19: =COUNTIF($B19:$AF19,AH$10) -> 19 | AI19: =COUNTIF($B19:$AF19,AI$10) -> 4 | AJ19: 4 | AK19: 0 | AL19: 0 | AM19: 0 | AN19: 2 | AO19: 0 | AP19: 0
B20: Ma | C20: Me | D20: Je | E20: Ve | F20: Sa | G20: Di | H20: Lu | I20: Ma | J20: Me | K20: Je | L20: Ve | M20: Sa | N20: Di | O20: Lu | P20: Ma | Q20: Me | R20: Je | S20: Ve | T20: Sa | U20: Di | V20: Lu | W20: Ma | X20: Me | Y20: Je | Z20: Ve | AA20: Sa | AB20: Di | AC20: Lu | AD20: Ma | AE20: Me | AF20: Je
B21: =VALUE("01/03/"&$A$1) -> 42430 | C21: =B21+1 -> 42431 | D21: =C21+1 -> 42432 | E21: 42433 | F21: 42434 | G21: 42435 | H21: 42436 | I21: 42437 | J21: 42438 | K21: 42439 | L21: 42440 | M21: 42441 | N21: 42442 | O21: 42443 | P21: 42444 | Q21: 42445 | R21: 42446 | S21: 42447 | T21: 42448 | U21: 42449 | V21: 42450 | W21: 42451 | X21: 42452 | Y21: 42453 | Z21: 42454 | AA21: 42455 | AB21: 42456 | AC21: 42457 | AD21: 42458 | AE21: 42459 | AF21: 42460
B22: =IF(AND(ISERROR(VLOOKUP(B21,liste_fériés,1,FALSE)),OR(B20="Sa",B20="Di")),B20,IF(ISERROR(VLOOKUP(B21,liste_fériés,1,FALSE)),"T","F")) -> T | C22: T | D22: T | E22: T | F22: Sa | G22: Di | H22: T | I22: T | J22: T | K22: T | L22: T | M22: Sa | N22: Di | O22: T | P22: T | Q22: T | R22: T | S22: T | T22: Sa | U22: Di | V22: T | W22: T | X22: T | Y22: T | Z22: T | AA22: Sa | AB22: F | AC22: F | AD22: T | AE22: T | AF22: T
A23: MAR | B23: T | C23: T | D23: T | E23: T | F23: Sa | G23: Di | H23: T | I23: T | J23: T | K23: T | L23: T | M23: Sa | N23: Di | O23: RTT | P23: T | Q23: T | R23: T | S23: T | T23: Sa | U23: Di | V23: T | W23: T | X23: T | Y23: T | Z23: RTT | AA23: Sa | AB23: F | AC23: F | AD23: T | AE23: T | AF23: T | AH23: =COUNTIF($B23:$AF23,AH$10) -> 20 | AI23: =COUNTIF($B23:$AF23,AI$10) -> 4 | AJ23: 3 | AK23: 2 | AL23: 0 | AM23: 0 | AN23: 2 | AO23: 0 | AP23: 0
B24: Ve | C24: Sa | D24: Di | E24: Lu | F24: Ma | G24: Me | H24: Je | I24: Ve | J24: Sa | K24: Di | L24: Lu | M24: Ma | N24: Me | O24: Je | P24: Ve | Q24: Sa | R24: Di | S24: Lu | T24: Ma | U24: Me | V24: Je | W24: Ve | X24: Sa | Y24: Di | Z24: Lu | AA24: Ma | AB24: Me | AC24: Je | AD24: Ve | AE24: Sa
B25: =VALUE("01/04/"&$A$1) -> 42461 | C25: =B25+1 -> 42462 | D25: =C25+1 -> 42463 | E25: 42464 | F25: 42465 | G25: 42466 | H25: 42467 | I25: 42468 | J25: 42469 | K25: 42470 | L25: 42471 | M25: 42472 | N25: 42473 | O25: 42474 | P25: 42475 | Q25: 42476 | R25: 42477 | S25: 42478 | T25: 42479 | U25: 42480 | V25: 42481 | W25: 42482 | X25: 42483 | Y25: 42484 | Z25: 42485 | AA25: 42486 | AB25: 42487 | AC25: 42488 | AD25: 42489 | AE25: 42490
B26: =IF(AND(ISERROR(VLOOKUP(B25,liste_fériés,1,FALSE)),OR(B24="Sa",B24="Di")),B24,IF(ISERROR(VLOOKUP(B25,liste_fériés,1,FALSE)),"T","F")) -> T | C26: Sa | D26: Di | E26: T | F26: T | G26: T | H26: T | I26: T | J26: Sa | K26: Di | L26: T | M26: T | N26: T | O26: T | P26: T | Q26: Sa | R26: Di | S26: T | T26: T | U26: T | V26: T | W26: T | X26: Sa | Y26: Di | Z26: T | AA26: T | AB26: T | AC26: T | AD26: T | AE26: Sa
A27: AVR | B27: T | C27: Sa | D27: Di | E27: T | F27: T | G27: T | H27: T | I27: T | J27: Sa | K27: Di | L27: T | M27: T | N27: T | O27: T | P27: RTT | Q27: Sa | R27: Di | S27: T | T27: T | U27: T | V27: T | W27: T | X27: Sa | Y27: Di | Z27: RTT | AA27: T | AB27: T | AC27: T | AD27: T | AE27: Sa | AH27: =COUNTIF($B27:$AF27,AH$10) -> 19 | AI27: =COUNTIF($B27:$AF27,AI$10) -> 5 | AJ27: 4 | AK27: 0 | AL27: 0 | AM27: 0 | AN27: 2 | AO27: 0 | AP27: 0
B28: Di | C28: Lu | D28: Ma | E28: Me | F28: Je | G28: Ve | H28: Sa | I28: Di | J28: Lu | K28: Ma | L28: Me | M28: Je | N28: Ve | O28: Sa | P28: Di | Q28: Lu | R28: Ma | S28: Me | T28: Je | U28: Ve | V28: Sa | W28: Di | X28: Lu | Y28: Ma | Z28: Me | AA28: Je | AB28: Ve | AC28: Sa | AD28: Di | AE28: Lu | AF28: Ma
B29: =VALUE("01/05/"&$A$1) -> 42491 | C29: =B29+1 -> 42492 | D29: =C29+1 -> 42493 | E29: 42494 | F29: 42495 | G29: 42496 | H29: 42497 | I29: 42498 | J29: 42499 | K29: 42500 | L29: 42501 | M29: 42502 | N29: 42503 | O29: 42504 | P29: 42505 | Q29: 42506 | R29: 42507 | S29: 42508 | T29: 42509 | U29: 42510 | V29: 42511 | W29: 42512 | X29: 42513 | Y29: 42514 | Z29: 42515 | AA29: 42516 | AB29: 42517 | AC29: 42518 | AD29: 42519 | AE29: 42520 | AF29: 42521
B30: =IF(AND(ISERROR(VLOOKUP(B29,liste_fériés,1,FALSE)),OR(B28="Sa",B28="Di")),B28,IF(ISERROR(VLOOKUP(B29,liste_fériés,1,FALSE)),"T","F")) -> F | C30: T | D30: T | E30: T | F30: F | G30: T | H30: Sa | I30: F | J30: T | K30: T | L30: T | M30: T | N30: T | O30: Sa | P30: F | Q30: T | R30: T | S30: T | T30: T | U30: T | V30: Sa | W30: Di | X30: T | Y30: T | Z30: T | AA30: T | AB30: T | AC30: Sa | AD30: Di | AE30: T | AF30: T
A31: MAI | B31: F | C31: T | D31: T | E31: T | F31: F | G31: RTT | H31: Sa | I31: F | J31: T | K31: T | L31: T | M31: T | N31: T | O31: Sa | P31: F | Q31: T | R31: T | S31: T | T31: T | U31: T | V31: Sa | W31: Di | X31: T | Y31: T | Z31: T | AA31: T | AB31: T | AC31: Sa | AD31: Di | AE31: T | AF31: T | AH31: =COUNTIF($B31:$AF31,AH$10) -> 20 | AI31: =COUNTIF($B31:$AF31,AI$10) -> 4 | AJ31: 2 | AK31: 4 | AL31: 0 | AM31: 0 | AN31: 1 | AO31: 0 | AP31: 0
B32: Me | C32: Je | D32: Ve | E32: Sa | F32: Di | G32: Lu | H32: Ma | I32: Me | J32: Je | K32: Ve | L32: Sa | M32: Di | N32: Lu | O32: Ma | P32: Me | Q32: Je | R32: Ve | S32: Sa | T32: Di | U32: Lu | V32: Ma | W32: Me | X32: Je | Y32: Ve | Z32: Sa | AA32: Di | AB32: Lu | AC32: Ma | AD32: Me | AE32: Je
B33: =VALUE("01/06/"&$A$1) -> 42522 | C33: =B33+1 -> 42523 | D33: =C33+1 -> 42524 | E33: 42525 | F33: 42526 | G33: 42527 | H33: 42528 | I33: 42529 | J33: 42530 | K33: 42531 | L33: 42532 | M33: 42533 | N33: 42534 | O33: 42535 | P33: 42536 | Q33: 42537 | R33: 42538 | S33: 42539 | T33: 42540 | U33: 42541 | V33: 42542 | W33: 42543 | X33: 42544 | Y33: 42545 | Z33: 42546 | AA33: 42547 | AB33: 42548 | AC33: 42549 | AD33: 42550 | AE33: 42551
B34: =IF(AND(ISERROR(VLOOKUP(B33,liste_fériés,1,FALSE)),OR(B32="Sa",B32="Di")),B32,IF(ISERROR(VLOOKUP(B33,liste_fériés,1,FALSE)),"T","F")) -> T | C34: T | D34: T | E34: Sa | F34: Di | G34: T | H34: T | I34: T | J34: T | K34: T | L34: Sa | M34: Di | N34: T | O34: T | P34: T | Q34: T | R34: T | S34: Sa | T34: Di | U34: T | V34: T | W34: T | X34: T | Y34: T | Z34: Sa | AA34: Di | AB34: T | AC34: T | AD34: T | AE34: T
A35: JUN | B35: T | C35: T | D35: T | E35: Sa | F35: Di | G35: T | H35: T | I35: T | J35: T | K35: RTT | L35: Sa | M35: Di | N35: T | O35: T | P35: T | Q35: T | R35: RTT | S35: Sa | T35: Di | U35: T | V35: T | W35: T | X35: T | Y35: T | Z35: Sa | AA35: Di | AB35: T | AC35: T | AD35: T | AE35: T | AH35: =COUNTIF($B35:$AF35,AH$10) -> 20 | AI35: =COUNTIF($B35:$AF35,AI$10) -> 4 | AJ35: 4 | AK35: 0 | AL35: 0 | AM35: 0 | AN35: 2 | AO35: 0 | AP35: 0
B36: Ve | C36: Sa | D36: Di | E36: Lu | F36: Ma | G36: Me | H36: Je | I36: Ve | J36: Sa | K36: Di | L36: Lu | M36: Ma | N36: Me | O36: Je | P36: Ve | Q36: Sa | R36: Di | S36: Lu | T36: Ma | U36: Me | V36: Je | W36: Ve | X36: Sa | Y36: Di | Z36: Lu | AA36: Ma | AB36: Me | AC36: Je | AD36: Ve | AE36: Sa | AF36: Di
B37: =VALUE("01/07/"&$A$1) -> 42552 | C37: 42553 | D37: 42554 | E37: 42555 | F37: 42556 | G37: 42557 | H37: 42558 | I37: 42559 | J37: 42560 | K37: 42561 | L37: 42562 | M37: 42563 | N37: 42564 | O37: 42565 | P37: 42566 | Q37: 42567 | R37: 42568 | S37: 42569 | T37: 42570 | U37: 42571 | V37: 42572 | W37: 42573 | X37: 42574 | Y37: 42575 | Z37: 42576 | AA37: 42577 | AB37: 42578 | AC37: 42579 | AD37: 42580 | AE37: 42581 | AF37: 42582
B38: =IF(AND(ISERROR(VLOOKUP(B37,liste_fériés,1,FALSE)),OR(B36="Sa",B36="Di")),B36,IF(ISERROR(VLOOKUP(B37,liste_fériés,1,FALSE)),"T","F")) -> T | C38: Sa | D38: Di | E38: T | F38: T | G38: T | H38: T | I38: T | J38: Sa | K38: Di | L38: T | M38: T | N38: T | O38: F | P38: T | Q38: Sa | R38: Di | S38: T | T38: T | U38: T | V38: T | W38: T | X38: Sa | Y38: Di | Z38: T | AA38: T | AB38: T | AC38: T | AD38: T | AE38: Sa | AF38: Di
A39: JUL | B39: T | C39: Sa | D39: Di | E39: T | F39: T | G39: T | H39: T | I39: T | J39: Sa | K39: Di | L39: T | M39: T | N39: T | O39: F | P39: CA | Q39: Sa | R39: Di | S39: T | T39: T | U39: T | V39: T | W39: T | X39: Sa | Y39: Di | Z39: RTT | AA39: T | AB39: T | AC39: T | AD39: T | AE39: Sa | AF39: Di | AH39: =COUNTIF($B39:$AF39,AH$10) -> 18 | AI39: =COUNTIF($B39:$AF39,AI$10) -> 5 | AJ39: 5 | AK39: 1 | AL39: 1 | AM39: 0 | AN39: 1 | AO39: 0 | AP39: 0
B40: Lu | C40: Ma | D40: Me | E40: Je | F40: Ve | G40: Sa | H40: Di | I40: Lu | J40: Ma | K40: Me | L40: Je | M40: Ve | N40: Sa | O40: Di | P40: Lu | Q40: Ma | R40: Me | S40: Je | T40: Ve | U40: Sa | V40: Di | W40: Lu | X40: Ma | Y40: Me | Z40: Je | AA40: Ve | AB40: Sa | AC40: Di | AD40: Lu | AE40: Ma | AF40: Me
B41: =VALUE("01/08/"&$A$1) -> 42583 | C41: =B41+1 -> 42584 | D41: =C41+1 -> 42585 | E41: 42586 | F41: 42587 | G41: 42588 | H41: 42589 | I41: 42590 | J41: 42591 | K41: 42592 | L41: 42593 | M41: 42594 | N41: 42595 | O41: 42596 | P41: 42597 | Q41: 42598 | R41: 42599 | S41: 42600 | T41: 42601 | U41: 42602 | V41: 42603 | W41: 42604 | X41: 42605 | Y41: 42606 | Z41: 42607 | AA41: 42608 | AB41: 42609 | AC41: 42610 | AD41: 42611 | AE41: 42612 | AF41: 42613
B42: =IF(AND(ISERROR(VLOOKUP(B41,liste_fériés,1,FALSE)),OR(B40="Sa",B40="Di")),B40,IF(ISERROR(VLOOKUP(B41,liste_fériés,1,FALSE)),"CA","F")) -> CA | C42: CA | D42: CA | E42: CA | F42: CA | G42: Sa | H42: Di | I42: CA | J42: CA | K42: CA | L42: CA | M42: CA | N42: Sa | O42: Di | P42: F | Q42: CA | R42: CA | S42: CA | T42: CA | U42: Sa | V42: Di | W42: CA | X42: CA | Y42: CA | Z42: CA | AA42: CA | AB42: Sa | AC42: Di | AD42: CA | AE42: CA | AF42: CA
A43: AOU | B43: CA | C43: CA | D43: CA | E43: CA | F43: CA | G43: Sa | H43: Di | I43: CA | J43: CA | K43: CA | L43: CA | M43: CA | N43: Sa | O43: Di | P43: F | Q43: CA | R43: CA | S43: CA | T43: CA | U43: Sa | V43: Di | W43: CA | X43: CA | Y43: CA | Z43: CA | AA43: CA | AB43: Sa | AC43: Di | AD43: T | AE43: T | AF43: T | AH43: =COUNTIF($B43:$AF43,AH$10) -> 3 | AI43: =COUNTIF($B43:$AF43,AI$10) -> 4 | AJ43: 4 | AK43: 1 | AL43: 19 | AM43: 0 | AN43: 0 | AO43: 0 | AP43: 0
B44: Je | C44: Ve | D44: Sa | E44: Di | F44: Lu | G44: Ma | H44: Me | I44: Je | J44: Ve | K44: Sa | L44: Di | M44: Lu | N44: Ma | O44: Me | P44: Je | Q44: Ve | R44: Sa | S44: Di | T44: Lu | U44: Ma | V44: Me | W44: Je | X44: Ve | Y44: Sa | Z44: Di | AA44: Lu | AB44: Ma | AC44: Me | AD44: Je | AE44: Ve
B45: =VALUE("01/09/"&A1) -> 42614 | C45: =B45+1 -> 42615 | D45: =C45+1 -> 42616 | E45: 42617 | F45: 42618 | G45: 42619 | H45: 42620 | I45: 42621 | J45: 42622 | K45: 42623 | L45: 42624 | M45: 42625 | N45: 42626 | O45: 42627 | P45: 42628 | Q45: 42629 | R45: 42630 | S45: 42631 | T45: 42632 | U45: 42633 | V45: 42634 | W45: 42635 | X45: 42636 | Y45: 42637 | Z45: 42638 | AA45: 42639 | AB45: 42640 | AC45: 42641 | AD45: 42642 | AE45: 42643
B46: =IF(AND(ISERROR(VLOOKUP(B45,liste_fériés,1,FALSE)),OR(B44="Sa",B44="Di")),B44,IF(ISERROR(VLOOKUP(B45,liste_fériés,1,FALSE)),"T","F")) -> T | C46: T | D46: Sa | E46: Di | F46: T | G46: T | H46: T | I46: T | J46: T | K46: Sa | L46: Di | M46: T | N46: T | O46: T | P46: T | Q46: T | R46: Sa | S46: Di | T46: T | U46: T | V46: T | W46: T | X46: T | Y46: Sa | Z46: Di | AA46: T | AB46: T | AC46: T | AD46: T | AE46: T
A47: SEP | B47: T | C47: T | D47: Sa | E47: Di | F47: T | G47: T | H47: T | I47: T | J47: T | K47: Sa | L47: Di | M47: T | N47: T | O47: T | P47: T | Q47: RTT | R47: Sa | S47: Di | T47: T | U47: T | V47: T | W47: T | X47: T | Y47: Sa | Z47: Di | AA47: T | AB47: T | AC47: T | AD47: T | AE47: T | AH47: =COUNTIF($B47:$AF47,AH$10) -> 21 | AI47: =COUNTIF($B47:$AF47,AI$10) -> 4 | AJ47: 4 | AK47: 0 | AL47: 0 | AM47: 0 | AN47: 1 | AO47: 0 | AP47: 0
B48: Sa | C48: Di | D48: Lu | E48: Ma | F48: Me | G48: Je | H48: Ve | I48: Sa | J48: Di | K48: Lu | L48: Ma | M48: Me | N48: Je | O48: Ve | P48: Sa | Q48: Di | R48: Lu | S48: Ma | T48: Me | U48: Je | V48: Ve | W48: Sa | X48: Di | Y48: Lu | Z48: Ma | AA48: Me | AB48: Je | AC48: Ve | AD48: Sa | AE48: Di | AF48: Lu
B49: =VALUE("01/10/"&$A$1) -> 42644 | C49: 42645 | D49: 42646 | E49: 42647 | F49: 42648 | G49: 42649 | H49: 42650 | I49: 42651 | J49: 42652 | K49: 42653 | L49: 42654 | M49: 42655 | N49: 42656 | O49: 42657 | P49: 42658 | Q49: 42659 | R49: 42660 | S49: 42661 | T49: 42662 | U49: 42663 | V49: 42664 | W49: 42665 | X49: 42666 | Y49: 42667 | Z49: 42668 | AA49: 42669 | AB49: 42670 | AC49: 42671 | AD49: 42672 | AE49: 42673 | AF49: 42674
B50: =IF(AND(ISERROR(VLOOKUP(B49,liste_fériés,1,FALSE)),OR(B48="Sa",B48="Di")),B48,IF(ISERROR(VLOOKUP(B49,liste_fériés,1,FALSE)),"T","F")) -> Sa | C50: Di | D50: T | E50: T | F50: T | G50: T | H50: T | I50: Sa | J50: Di | K50: T | L50: T | M50: T | N50: T | O50: T | P50: Sa | Q50: Di | R50: T | S50: T | T50: T | U50: T | V50: T | W50: Sa | X50: Di | Y50: T | Z50: T | AA50: T | AB50: T | AC50: T | AD50: Sa | AE50: Di | AF50: T
A51: OCT | B51: Sa | C51: Di | D51: T | E51: T | F51: T | G51: T | H51: T | I51: Sa | J51: Di | K51: T | L51: T | M51: T | N51: T | O51: RTT | P51: Sa | Q51: Di | R51: T | S51: T | T51: T | U51: T | V51: T | W51: Sa | X51: Di | Y51: T | Z51: T | AA51: T | AB51: T | AC51: T | AD51: Sa | AE51: Di | AF51: T | AH51: =COUNTIF($B51:$AF51,AH$10) -> 20 | AI51: =COUNTIF($B51:$AF51,AI$10) -> 5 | AJ51: 5 | AK51: 0 | AL51: 0 | AM51: 0 | AN51: 1 | AO51: 0 | AP51: 0
B52: Ma | C52: Me | D52: Je | E52: Ve | F52: Sa | G52: Di | H52: Lu | I52: Ma | J52: Me | K52: Je | L52: Ve | M52: Sa | N52: Di | O52: Lu | P52: Ma | Q52: Me | R52: Je | S52: Ve | T52: Sa | U52: Di | V52: Lu | W52: Ma | X52: Me | Y52: Je | Z52: Ve | AA52: Sa | AB52: Di | AC52: Lu | AD52: Ma | AE52: Me
B53: =VALUE("01/11/"&$A$1) -> 42675 | C53: =B53+1 -> 42676 | D53: =C53+1 -> 42677 | E53: 42678 | F53: 42679 | G53: 42680 | H53: 42681 | I53: 42682 | J53: 42683 | K53: 42684 | L53: 42685 | M53: 42686 | N53: 42687 | O53: 42688 | P53: 42689 | Q53: 42690 | R53: 42691 | S53: 42692 | T53: 42693 | U53: 42694 | V53: 42695 | W53: 42696 | X53: 42697 | Y53: 42698 | Z53: 42699 | AA53: 42700 | AB53: 42701 | AC53: 42702 | AD53: 42703 | AE53: 42704
B54: =IF(AND(ISERROR(VLOOKUP(B53,liste_fériés,1,FALSE)),OR(B52="Sa",B52="Di")),B52,IF(ISERROR(VLOOKUP(B53,liste_fériés,1,FALSE)),"T","F")) -> F | C54: T | D54: T | E54: T | F54: Sa | G54: Di | H54: T | I54: T | J54: T | K54: T | L54: F | M54: Sa | N54: Di | O54: T | P54: T | Q54: T | R54: T | S54: T | T54: Sa | U54: Di | V54: T | W54: T | X54: T | Y54: T | Z54: T | AA54: Sa | AB54: Di | AC54: T | AD54: T | AE54: T
A55: NOV | B55: F | C55: T | D55: T | E55: T | F55: Sa | G55: Di | H55: T | I55: T | J55: T | K55: T | L55: F | M55: Sa | N55: Di | O55: T | P55: T | Q55: T | R55: T | S55: RTT | T55: Sa | U55: Di | V55: T | W55: T | X55: T | Y55: T | Z55: T | AA55: Sa | AB55: Di | AC55: T | AD55: T | AE55: T | AH55: =COUNTIF($B55:$AF55,AH$10) -> 19 | AI55: =COUNTIF($B55:$AF55,AI$10) -> 4 | AJ55: 4 | AK55: 2 | AL55: 0 | AM55: 0 | AN55: 1 | AO55: 0 | AP55: 0
B56: Je | C56: Ve | D56: Sa | E56: Di | F56: Lu | G56: Ma | H56: Me | I56: Je | J56: Ve | K56: Sa | L56: Di | M56: Lu | N56: Ma | O56: Me | P56: Je | Q56: Ve | R56: Sa | S56: Di | T56: Lu | U56: Ma | V56: Me | W56: Je | X56: Ve | Y56: Sa | Z56: Di | AA56: Lu | AB56: Ma | AC56: Me | AD56: Je | AE56: Ve | AF56: Sa
B57: =VALUE("01/12/"&$A$1) -> 42705 | C57: =B57+1 -> 42706 | D57: =C57+1 -> 42707 | E57: 42708 | F57: 42709 | G57: 42710 | H57: 42711 | I57: 42712 | J57: 42713 | K57: 42714 | L57: 42715 | M57: 42716 | N57: 42717 | O57: 42718 | P57: 42719 | Q57: 42720 | R57: 42721 | S57: 42722 | T57: 42723 | U57: 42724 | V57: 42725 | W57: 42726 | X57: 42727 | Y57: 42728 | Z57: 42729 | AA57: 42730 | AB57: 42731 | AC57: 42732 | AD57: 42733 | AE57: 42734 | AF57: 42735
B58: =IF(AND(ISERROR(VLOOKUP(B57,liste_fériés,1,FALSE)),OR(B56="Sa",B56="Di")),B56,IF(ISERROR(VLOOKUP(B57,liste_fériés,1,FALSE)),"T","F")) -> T | C58: T | D58: Sa | E58: Di | F58: T | G58: T | H58: T | I58: T | J58: T | K58: Sa | L58: Di | M58: T | N58: T | O58: T | P58: T | Q58: T | R58: Sa | S58: Di | T58: T | U58: T | V58: T | W58: T | X58: T | Y58: Sa | Z58: F | AA58: T | AB58: T | AC58: T | AD58: T | AE58: T | AF58: Sa
A59: DEC | B59: T | C59: T | D59: Sa | E59: Di | F59: T | G59: T | H59: T | I59: T | J59: T | K59: Sa | L59: Di | M59: RTT | N59: T | O59: T | P59: T | Q59: T | R59: Sa | S59: Di | T59: T | U59: T | V59: T | W59: T | X59: T | Y59: Sa | Z59: F | AA59: CA | AB59: CA | AC59: CA | AD59: CA | AE59: CA | AF59: Sa | AH59: =COUNTIF($B59:$AF59,AH$10) -> 16 | AI59: =COUNTIF($B59:$AF59,AI$10) -> 5 | AJ59: 3 | AK59: 1 | AL59: 5 | AM59: 0 | AN59: 1 | AO59: 0 | AP59: 0

Sheet JAN
B1: =RIGHT(CELL("nomfichier",$A$1),3) -> JAN | C1: FICHE DE SUIVI HORAIRE
B3: mois : | C3: JANVIER | F3: année | G3: =Calendrier!A1 -> 2016 | I3: service | J3: =Calendrier!F4 -> COMPTABILITE
B5: nom : | C5: =Calendrier!F2 -> MARTIN | F5: prénom | G5: =Calendrier!F3 -> PATRICK | I5: N° Ident. | J5: =Calendrier!F1 -> N123456
H6: à réaliser | I6: cumul | J6: en cours | K6: reste | M6: n/cumul
D7: Nb J/T | E7: =Calendrier!$A$10 -> 213 | F7: =$H$10 -> 0 | G7: =$H$12 -> 213 | H7: =Calendrier!$N$1 -> 366 | J7: =SUM(J8:J15) -> 13 | K7: =H7-(I7+J7) -> 353 | M7: =SUM(M8:M15) -> 13
G8: CA | H8: =Calendrier!N5 -> 25 | J8: =IF(G8="",0,COUNTIF($J$19:$J$49,G8))+IF(F8="",0,COUNTIF($J$19:$J$49,F8)/2) -> 0 | K8: =+H8-(I8+J8) -> 25 | L8: J | M8: =+I8+J8 -> 0
F9: 1/2RTT | G9: RTT | H9: =Calendrier!N8 -> 16 | J9: =IF(G9="",0,COUNTIF($J$19:$J$49,G9))+IF(F9="",0,COUNTIF($J$19:$J$49,F9)/2) -> 2 | K9: =+H9-(I9+J9) -> 14 | L9: J | M9: 2
F10: 1/2CS | G10: CS | H10: =Calendrier!N9 -> 0 | J10: =IF(G10="",0,COUNTIF($J$19:$J$49,G10))+IF(F10="",0,COUNTIF($J$19:$J$49,F10)/2) -> 0 | K10: =H10-(I10+J10) -> 0 | L10: J | M10: 0
G11: CP | H11: =Calendrier!N6 -> 0 | J11: 0 | K11: =H11-(I11+J11) -> 0 | L11: J | M11: 0
F12: 1/2T | G12: T | H12: =Calendrier!N7 -> 213 | J12: 0 | K12: =H12-(I12+J12) -> 213 | L12: J | M12: 0
G13: Sa | H13: =Calendrier!N4 -> 53 | J13: 5 | K13: =+H13-(I13+J13) -> 48 | L13: J | M13: 5
G14: Di | H14: =Calendrier!N3 -> 47 | J14: 5 | K14: =+H14-(I14+J14) -> 42 | L14: J | M14: 5
G15: F | H15: =Calendrier!N2 -> 12 | J15: 1 | K15: =+H15-(I15+J15) -> 11 | L15: J | M15: =+I15+J15 -> 1
G16: heure/avance fin mois | M16: =I50 -> 0
B17: Prévu | C17: Entrée | D17: Sortie | E17: Entrée | F17: Sortie | G17: total J | H17: variation | I17: cumul | J17: Type | K17: nb J/T | M17: Bon E/S | N17: Sortie | O17: Retour
N18: avec bon
A19: 1 | B19: =INDIRECT(ADDRESS(MATCH($B$1,Calendrier!$A$15:$A$59,0)+14,ROW()-17,3,1,"Calendrier"),1) -> F | G19: =IF(COUNTA(C19:F19)=4,(D19-C19)+(F19-E19)-M19,IF(COUNTA(C19:D19)<2,(F19-E19)-M19,(D19-C19)-M19)) -> 0 | H19: =IF(AND(K19=0.5,COUNTA(C19:F19)=4),"erreur",IF(AND(D19-C19>0,F19-E19=0),G19-Calendrier!$AS$9/2-M19,IF(AND(F19-E19>0,D19-C19=0),(F19-E19)-Calendrier!$AS$9/2-M19,IF(COUNTA(C19:F19)=4,(D19-C19)+(F19-E19)-M19-Calendrier!$AS$9,0)))) -> 0 | I19: =+I18+H19 -> 0 | J19: =IF(AND(COUNTA(C19:F19)=0,B19<>"T"),B19,IF(AND(OR(B19=$F$9,B19=$F$10),COUNTA(C19:F19=2)),"T",IF(G19>=6,"T",""))) -> F | K19: =IF(OR(B19=$F$9,B19=$F$10),0.5,IF(G19>=6,1,0)) -> 0 | M19: =+O19-N19 -> 0
A20: 2 | B20: =INDIRECT(ADDRESS(MATCH($B$1,Calendrier!$A$15:$A$59,0)+14,ROW()-17,3,1,"Calendrier"),1) -> Sa | G20: 0 | H20: =IF(AND(K20=0.5,COUNTA(C20:F20)=4),"erreur",IF(AND(D20-C20>0,F20-E20=0),G20-Calendrier!$AS$9/2-M20,IF(AND(F20-E20>0,D20-C20=0),(F20-E20)-Calendrier!$AS$9/2-M20,IF(COUNTA(C20:F20)=4,(D20-C20)+(F20-E20)-M20-Calendrier!$AS$9,0)))) -> 0 | I20: =+I19+H20 -> 0 | J20: Sa | K20: 0 | M20: =+O20-N20 -> 0
A21: 3 | B21: =INDIRECT(ADDRESS(MATCH($B$1,Calendrier!$A$15:$A$59,0)+14,ROW()-17,3,1,"Calendrier"),1) -> Di | G21: 0 | H21: =IF(AND(K21=0.5,COUNTA(C21:F21)=4),"erreur",IF(AND(D21-C21>0,F21-E21=0),G21-Calendrier!$AS$9/2-M21,IF(AND(F21-E21>0,D21-C21=0),(F21-E21)-Calendrier!$AS$9/2-M21,IF(COUNTA(C21:F21)=4,(D21-C21)+(F21-E21)-M21-Calendrier!$AS$9,0)))) -> 0 | I21: 0 | J21: Di | K21: 0 | M21: 0
A22: 4 | B22: =INDIRECT(ADDRESS(MATCH($B$1,Calendrier!$A$15:$A$59,0)+14,ROW()-17,3,1,"Calendrier"),1) -> T | G22: 0 | H22: =IF(AND(K22=0.5,COUNTA(C22:F22)=4),"erreur",IF(AND(D22-C22>0,F22-E22=0),G22-Calendrier!$AS$9/2-M22,IF(AND(F22-E22>0,D22-C22=0),(F22-E22)-Calendrier!$AS$9/2-M22,IF(COUNTA(C22:F22)=4,(D22-C22)+(F22-E22)-M22-Calendrier!$AS$9,0)))) -> 0 | I22: 0 | K22: 0 | M22: 0
A23: 5 | B23: =INDIRECT(ADDRESS(MATCH($B$1,Calendrier!$A$15:$A$59,0)+14,ROW()-17,3,1,"Calendrier"),1) -> T | G23: 0 | H23: =IF(AND(K23=0.5,COUNTA(C23:F23)=4),"erreur",IF(AND(D23-C23>0,F23-E23=0),G23-Calendrier!$AS$9/2-M23,IF(AND(F23-E23>0,D23-C23=0),(F23-E23)-Calendrier!$AS$9/2-M23,IF(COUNTA(C23:F23)=4,(D23-C23)+(F23-E23)-M23-Calendrier!$AS$9,0)))) -> 0 | I23: =I22+H23 -> 0 | K23: =IF(OR(B23=$F$9,B23=$F$10),0.5,IF(G23>=6,1,0)) -> 0 | M23: 0
A24: 6 | B24: =INDIRECT(ADDRESS(MATCH($B$1,Calendrier!$A$15:$A$59,0)+14,ROW()-17,3,1,"Calendrier"),1) -> T | G24: 0 | H24: =IF(AND(K24=0.5,COUNTA(C24:F24)=4),"erreur",IF(AND(D24-C24>0,F24-E24=0),G24-Calendrier!$AS$9/2-M24,IF(AND(F24-E24>0,D24-C24=0),(F24-E24)-Calendrier!$AS$9/2-M24,IF(COUNTA(C24:F24)=4,(D24-C24)+(F24-E24)-M24-Calendrier!$AS$9,0)))) -> 0 | I24: =I23+H24 -> 0 | K24: 0 | M24: 0
A25: 7 | B25: =INDIRECT(ADDRESS(MATCH($B$1,Calendrier!$A$15:$A$59,0)+14,ROW()-17,3,1,"Calendrier"),1) -> T | G25: =IF(COUNTA(C25:F25)=4,(D25-C25)+(F25-E25)-M25,IF(COUNTA(C25:D25)<2,(F25-E25)-M25,(D25-C25)-M25)) -> 0 | H25: =IF(AND(K25=0.5,COUNTA(C25:F25)=4),"erreur",IF(AND(D25-C25>0,F25-E25=0),G25-Calendrier!$AS$9/2-M25,IF(AND(F25-E25>0,D25-C25=0),(F25-E25)-Calendrier!$AS$9/2-M25,IF(COUNTA(C25:F25)=4,(D25-C25)+(F25-E25)-M25-Calendrier!$AS$9,0)))) -> 0 | I25: 0 | K25: 0 | M25: 0
A26: 8 | B26: =INDIRECT(ADDRESS(MATCH($B$1,Calendrier!$A$15:$A$59,0)+14,ROW()-17,3,1,"Calendrier"),1) -> T | G26: 0 | H26: =IF(AND(K26=0.5,COUNTA(C26:F26)=4),"erreur",IF(AND(D26-C26>0,F26-E26=0),G26-Calendrier!$AS$9/2-M26,IF(AND(F26-E26>0,D26-C26=0),(F26-E26)-Calendrier!$AS$9/2-M26,IF(COUNTA(C26:F26)=4,(D26-C26)+(F26-E26)-M26-Calendrier!$AS$9,0)))) -> 0 | I26: 0 | K26: 0 | M26: 0 | R26: 2014-07-01
A27: 9 | B27: =INDIRECT(ADDRESS(MATCH($B$1,Calendrier!$A$15:$A$59,0)+14,ROW()-17,3,1,"Calendrier"),1) -> Sa | G27: 0 | H27: =IF(AND(K27=0.5,COUNTA(C27:F27)=4),"erreur",IF(AND(D27-C27>0,F27-E27=0),G27-Calendrier!$AS$9/2-M27,IF(AND(F27-E27>0,D27-C27=0),(F27-E27)-Calendrier!$AS$9/2-M27,IF(COUNTA(C27:F27)=4,(D27-C27)+(F27-E27)-M27-Calendrier!$AS$9,0)))) -> 0 | I27: 0 | J27: Sa | K27: 0 | M27: 0
A28: 10 | B28: =INDIRECT(ADDRESS(MATCH($B$1,Calendrier!$A$15:$A$59,0)+14,ROW()-17,3,1,"Calendrier"),1) -> Di | G28: 0 | H28: =IF(AND(K28=0.5,COUNTA(C28:F28)=4),"erreur",IF(AND(D28-C28>0,F28-E28=0),G28-Calendrier!$AS$9/2-M28,IF(AND(F28-E28>0,D28-C28=0),(F28-E28)-Calendrier!$AS$9/2-M28,IF(COUNTA(C28:F28)=4,(D28-C28)+(F28-E28)-M28-Calendrier!$AS$9,0)))) -> 0 | I28: 0 | J28: Di | K28: 0 | M28: 0
A29: 11 | B29: =INDIRECT(ADDRESS(MATCH($B$1,Calendrier!$A$15:$A$59,0)+14,ROW()-17,3,1,"Calendrier"),1) -> T | G29: 0 | H29: =IF(AND(K29=0.5,COUNTA(C29:F29)=4),"erreur",IF(AND(D29-C29>0,F29-E29=0),G29-Calendrier!$AS$9/2-M29,IF(AND(F29-E29>0,D29-C29=0),(F29-E29)-Calendrier!$AS$9/2-M29,IF(COUNTA(C29:F29)=4,(D29-C29)+(F29-E29)-M29-Calendrier!$AS$9,0)))) -> 0 | I29: 0 | K29: 0 | M29: 0 | R29: =INDIRECT(OFFSET(Calendrier!A11,0,4*MONTH(TODAY()))&"!"&"K9") -> 
A30: 12 | B30: =INDIRECT(ADDRESS(MATCH($B$1,Calendrier!$A$15:$A$59,0)+14,ROW()-17,3,1,"Calendrier"),1) -> T | G30: 0 | H30: =IF(AND(K30=0.5,COUNTA(C30:F30)=4),"erreur",IF(AND(D30-C30>0,F30-E30=0),G30-Calendrier!$AS$9/2-M30,IF(AND(F30-E30>0,D30-C30=0),(F30-E30)-Calendrier!$AS$9/2-M30,IF(COUNTA(C30:F30)=4,(D30-C30)+(F30-E30)-M30-Calendrier!$AS$9,0)))) -> 0 | I30: 0 | K30: 0 | M30: 0
A31: 13 | B31: =INDIRECT(ADDRESS(MATCH($B$1,Calendrier!$A$15:$A$59,0)+14,ROW()-17,3,1,"Calendrier"),1) -> T | G31: 0 | H31: =IF(AND(K31=0.5,COUNTA(C31:F31)=4),"erreur",IF(AND(D31-C31>0,F31-E31=0),G31-Calendrier!$AS$9/2-M31,IF(AND(F31-E31>0,D31-C31=0),(F31-E31)-Calendrier!$AS$9/2-M31,IF(COUNTA(C31:F31)=4,(D31-C31)+(F31-E31)-M31-Calendrier!$AS$9,0)))) -> 0 | I31: 0 | K31: 0 | M31: 0
A32: 14 | G32: =IF(COUNTA(C32:F32)=4,(D32-C32)+(F32-E32)-M32,IF(COUNTA(C32:D32)<2,(F32-E32)-M32,(D32-C32)-M32)) -> 0 | H32: =IF(AND(K32=0.5,COUNTA(C32:F32)=4),"erreur",IF(AND(D32-C32>0,F32-E32=0),G32-Calendrier!$AS$9/2-M32,IF(AND(F32-E32>0,D32-C32=0),(F32-E32)-Calendrier!$AS$9/2-M32,IF(COUNTA(C32:F32)=4,(D32-C32)+(F32-E32)-M32-Calendrier!$AS$9,0)))) -> 0 | I32: 0 | J32: 0 | K32: 0 | M32: 0 | R32: =TEXT(R26,"mmm") -> juil
A33: 15 | B33: =INDIRECT(ADDRESS(MATCH($B$1,Calendrier!$A$15:$A$59,0)+14,ROW()-17,3,1,"Calendrier"),1) -> RTT | G33: 0 | H33: =IF(AND(K33=0.5,COUNTA(C33:F33)=4),"erreur",IF(AND(D33-C33>0,F33-E33=0),G33-Calendrier!$AS$9/2-M33,IF(AND(F33-E33>0,D33-C33=0),(F33-E33)-Calendrier!$AS$9/2-M33,IF(COUNTA(C33:F33)=4,(D33-C33)+(F33-E33)-M33-Calendrier!$AS$9,0)))) -> 0 | I33: 0 | J33: =IF(AND(COUNTA(C33:F33)=0,B33<>"T"),B33,IF(AND(OR(B33=$F$9,B33=$F$10),COUNTA(C33:F33=2)),"T",IF(G33>=6,"T",""))) -> RTT | K33: 0 | M33: 0
A34: 16 | B34: =INDIRECT(ADDRESS(MATCH($B$1,Calendrier!$A$15:$A$59,0)+14,ROW()-17,3,1,"Calendrier"),1) -> Sa | G34: 0 | H34: =IF(AND(K34=0.5,COUNTA(C34:F34)=4),"erreur",IF(AND(D34-C34>0,F34-E34=0),G34-Calendrier!$AS$9/2-M34,IF(AND(F34-E34>0,D34-C34=0),(F34-E34)-Calendrier!$AS$9/2-M34,IF(COUNTA(C34:F34)=4,(D34-C34)+(F34-E34)-M34-Calendrier!$AS$9,0)))) -> 0 | I34: 0 | J34: Sa | K34: 0 | M34: 0
A35: 17 | B35: =INDIRECT(ADDRESS(MATCH($B$1,Calendrier!$A$15:$A$59,0)+14,ROW()-17,3,1,"Calendrier"),1) -> Di | G35: 0 | H35: =IF(AND(K35=0.5,COUNTA(C35:F35)=4),"erreur",IF(AND(D35-C35>0,F35-E35=0),G35-Calendrier!$AS$9/2-M35,IF(AND(F35-E35>0,D35-C35=0),(F35-E35)-Calendrier!$AS$9/2-M35,IF(COUNTA(C35:F35)=4,(D35-C35)+(F35-E35)-M35-Calendrier!$AS$9,0)))) -> 0 | I35: 0 | J35: Di | K35: 0 | M35: 0
A36: 18 | B36: =INDIRECT(ADDRESS(MATCH($B$1,Calendrier!$A$15:$A$59,0)+14,ROW()-17,3,1,"Calendrier"),1) -> T | G36: 0 | H36: =IF(AND(K36=0.5,COUNTA(C36:F36)=4),"erreur",IF(AND(D36-C36>0,F36-E36=0),G36-Calendrier!$AS$9/2-M36,IF(AND(F36-E36>0,D36-C36=0),(F36-E36)-Calendrier!$AS$9/2-M36,IF(COUNTA(C36:F36)=4,(D36-C36)+(F36-E36)-M36-Calendrier!$AS$9,0)))) -> 0 | I36: 0 | K36: 0 | M36: 0
A37: 19 | B37: =INDIRECT(ADDRESS(MATCH($B$1,Calendrier!$A$15:$A$59,0)+14,ROW()-17,3,1,"Calendrier"),1) -> T | G37: 0 | H37: =IF(AND(K37=0.5,COUNTA(C37:F37)=4),"erreur",IF(AND(D37-C37>0,F37-E37=0),G37-Calendrier!$AS$9/2-M37,IF(AND(F37-E37>0,D37-C37=0),(F37-E37)-Calendrier!$AS$9/2-M37,IF(COUNTA(C37:F37)=4,(D37-C37)+(F37-E37)-M37-Calendrier!$AS$9,0)))) -> 0 | I37: 0 | K37: 0 | M37: 0
A38: 20 | B38: =INDIRECT(ADDRESS(MATCH($B$1,Calendrier!$A$15:$A$59,0)+14,ROW()-17,3,1,"Calendrier"),1) -> T | G38: 0 | H38: =IF(AND(K38=0.5,COUNTA(C38:F38)=4),"erreur",IF(AND(D38-C38>0,F38-E38=0),G38-Calendrier!$AS$9/2-M38,IF(AND(F38-E38>0,D38-C38=0),(F38-E38)-Calendrier!$AS$9/2-M38,IF(COUNTA(C38:F38)=4,(D38-C38)+(F38-E38)-M38-Calendrier!$AS$9,0)))) -> 0 | I38: 0 | K38: 0 | M38: 0
A39: 21 | B39: =INDIRECT(ADDRESS(MATCH($B$1,Calendrier!$A$15:$A$59,0)+14,ROW()-17,3,1,"Calendrier"),1) -> T | G39: 0 | H39: =IF(AND(K39=0.5,COUNTA(C39:F39)=4),"erreur",IF(AND(D39-C39>0,F39-E39=0),G39-Calendrier!$AS$9/2-M39,IF(AND(F39-E39>0,D39-C39=0),(F39-E39)-Calendrier!$AS$9/2-M39,IF(COUNTA(C39:F39)=4,(D39-C39)+(F39-E39)-M39-Calendrier!$AS$9,0)))) -> 0 | I39: 0 | K39: 0 | M39: 0
A40: 22 | B40: =INDIRECT(ADDRESS(MATCH($B$1,Calendrier!$A$15:$A$59,0)+14,ROW()-17,3,1,"Calendrier"),1) -> T | G40: 0 | H40: =IF(AND(K40=0.5,COUNTA(C40:F40)=4),"erreur",IF(AND(D40-C40>0,F40-E40=0),G40-Calendrier!$AS$9/2-M40,IF(AND(F40-E40>0,D40-C40=0),(F40-E40)-Calendrier!$AS$9/2-M40,IF(COUNTA(C40:F40)=4,(D40-C40)+(F40-E40)-M40-Calendrier!$AS$9,0)))) -> 0 | I40: 0 | K40: 0 | M40: 0
A41: 23 | B41: =INDIRECT(ADDRESS(MATCH($B$1,Calendrier!$A$15:$A$59,0)+14,ROW()-17,3,1,"Calendrier"),1) -> Sa | G41: 0 | H41: =IF(AND(K41=0.5,COUNTA(C41:F41)=4),"erreur",IF(AND(D41-C41>0,F41-E41=0),G41-Calendrier!$AS$9/2-M41,IF(AND(F41-E41>0,D41-C41=0),(F41-E41)-Calendrier!$AS$9/2-M41,IF(COUNTA(C41:F41)=4,(D41-C41)+(F41-E41)-M41-Calendrier!$AS$9,0)))) -> 0 | I41: 0 | J41: Sa | K41: 0 | M41: 0
A42: 24 | B42: =INDIRECT(ADDRESS(MATCH($B$1,Calendrier!$A$15:$A$59,0)+14,ROW()-17,3,1,"Calendrier"),1) -> Di | G42: 0 | H42: =IF(AND(K42=0.5,COUNTA(C42:F42)=4),"erreur",IF(AND(D42-C42>0,F42-E42=0),G42-Calendrier!$AS$9/2-M42,IF(AND(F42-E42>0,D42-C42=0),(F42-E42)-Calendrier!$AS$9/2-M42,IF(COUNTA(C42:F42)=4,(D42-C42)+(F42-E42)-M42-Calendrier!$AS$9,0)))) -> 0 | I42: 0 | J42: Di | K42: 0 | M42: 0
A43: 25 | B43: =INDIRECT(ADDRESS(MATCH($B$1,Calendrier!$A$15:$A$59,0)+14,ROW()-17,3,1,"Calendrier"),1) -> T | G43: 0 | H43: =IF(AND(K43=0.5,COUNTA(C43:F43)=4),"erreur",IF(AND(D43-C43>0,F43-E43=0),G43-Calendrier!$AS$9/2-M43,IF(AND(F43-E43>0,D43-C43=0),(F43-E43)-Calendrier!$AS$9/2-M43,IF(COUNTA(C43:F43)=4,(D43-C43)+(F43-E43)-M43-Calendrier!$AS$9,0)))) -> 0 | I43: 0 | K43: 0 | M43: 0
A44: 26 | B44: =INDIRECT(ADDRESS(MATCH($B$1,Calendrier!$A$15:$A$59,0)+14,ROW()-17,3,1,"Calendrier"),1) -> T | G44: 0 | H44: =IF(AND(K44=0.5,COUNTA(C44:F44)=4),"erreur",IF(AND(D44-C44>0,F44-E44=0),G44-Calendrier!$AS$9/2-M44,IF(AND(F44-E44>0,D44-C44=0),(F44-E44)-Calendrier!$AS$9/2-M44,IF(COUNTA(C44:F44)=4,(D44-C44)+(F44-E44)-M44-Calendrier!$AS$9,0)))) -> 0 | I44: 0 | K44: 0 | M44: 0
A45: 27 | B45: =INDIRECT(ADDRESS(MATCH($B$1,Calendrier!$A$15:$A$59,0)+14,ROW()-17,3,1,"Calendrier"),1) -> T | G45: 0 | H45: =IF(AND(K45=0.5,COUNTA(C45:F45)=4),"erreur",IF(AND(D45-C45>0,F45-E45=0),G45-Calendrier!$AS$9/2-M45,IF(AND(F45-E45>0,D45-C45=0),(F45-E45)-Calendrier!$AS$9/2-M45,IF(COUNTA(C45:F45)=4,(D45-C45)+(F45-E45)-M45-Calendrier!$AS$9,0)))) -> 0 | I45: 0 | K45: 0 | M45: 0
A46: 28 | B46: =INDIRECT(ADDRESS(MATCH($B$1,Calendrier!$A$15:$A$59,0)+14,ROW()-17,3,1,"Calendrier"),1) -> T | G46: 0 | H46: =IF(AND(K46=0.5,COUNTA(C46:F46)=4),"erreur",IF(AND(D46-C46>0,F46-E46=0),G46-Calendrier!$AS$9/2-M46,IF(AND(F46-E46>0,D46-C46=0),(F46-E46)-Calendrier!$AS$9/2-M46,IF(COUNTA(C46:F46)=4,(D46-C46)+(F46-E46)-M46-Calendrier!$AS$9,0)))) -> 0 | I46: 0 | K46: 0 | M46: 0
A47: 29 | B47: =INDIRECT(ADDRESS(MATCH($B$1,Calendrier!$A$15:$A$59,0)+14,ROW()-17,3,1,"Calendrier"),1) -> RTT | G47: 0 | H47: =IF(AND(K47=0.5,COUNTA(C47:F47)=4),"erreur",IF(AND(D47-C47>0,F47-E47=0),G47-Calendrier!$AS$9/2-M47,IF(AND(F47-E47>0,D47-C47=0),(F47-E47)-Calendrier!$AS$9/2-M47,IF(COUNTA(C47:F47)=4,(D47-C47)+(F47-E47)-M47-Calendrier!$AS$9,0)))) -> 0 | I47: 0 | J47: RTT | K47: 0 | M47: 0
A48: 30 | B48: =INDIRECT(ADDRESS(MATCH($B$1,Calendrier!$A$15:$A$59,0)+14,ROW()-17,3,1,"Calendrier"),1) -> Sa | G48: 0 | H48: =IF(AND(K48=0.5,COUNTA(C48:F48)=4),"erreur",IF(AND(D48-C48>0,F48-E48=0),G48-Calendrier!$AS$9/2-M48,IF(AND(F48-E48>0,D48-C48=0),(F48-E48)-Calendrier!$AS$9/2-M48,IF(COUNTA(C48:F48)=4,(D48-C48)+(F48-E48)-M48-Calendrier!$AS$9,0)))) -> 0 | I48: 0 | J48: Sa | K48: 0 | M48: 0
A49: 31 | B49: =INDIRECT(ADDRESS(MATCH($B$1,Calendrier!$A$15:$A$59,0)+14,ROW()-17,3,1,"Calendrier"),1) -> Di | G49: 0 | H49: =IF(AND(K49=0.5,COUNTA(C49:F49)=4),"erreur",IF(AND(D49-C49>0,F49-E49=0),G49-Calendrier!$AS$9/2-M49,IF(AND(F49-E49>0,D49-C49=0),(F49-E49)-Calendrier!$AS$9/2-M49,IF(COUNTA(C49:F49)=4,(D49-C49)+(F49-E49)-M49-Calendrier!$AS$9,0)))) -> 0 | I49: 0 | J49: Di | K49: 0 | M49: 0
H50: solde des variations | I50: =I49 -> 0

Sheet FEV
B1: =RIGHT(CELL("nomfichier",$A$1),3) -> FEV | C1: FICHE DE SUIVI HORAIRE
B3: mois : | C3: FEVRIER | F3: année | G3: =Calendrier!A1 -> 2016 | I3: service | J3: =Calendrier!F4 -> COMPTABILITE
B5: nom : | C5: =Calendrier!F2 -> MARTIN | F5: prénom | G5: =Calendrier!F3 -> PATRICK | I5: N° Ident. | J5: =Calendrier!F1 -> N123456
H6: à réaliser | I6: cumul | J6: en cours | K6: reste | M6: n/cumul
D7: Nb J/T | E7: =Calendrier!$A$10 -> 213 | F7: =+$H$10 -> 0 | G7: =$H$12 -> 213 | H7: =Calendrier!$N$1 -> 366 | I7: =JAN!M7 -> 13 | J7: =SUM(J8:J15) -> 10 | K7: =H7-(I7+J7) -> 343 | M7: =SUM(M8:M15) -> 23
G8: CA | H8: =Calendrier!N5 -> 25 | I8: =JAN!M8 -> 0 | J8: =IF(G8="",0,COUNTIF($J$19:$J$49,G8))+IF(F8="",0,COUNTIF($J$19:$J$49,F8)/2) -> 0 | K8: =+H8-(I8+J8) -> 25 | L8: J | M8: =+I8+J8 -> 0
F9: 1/2RTT | G9: RTT | H9: =Calendrier!N8 -> 16 | I9: =JAN!M9 -> 2 | J9: =IF(G9="",0,COUNTIF($J$19:$J$49,G9))+IF(F9="",0,COUNTIF($J$19:$J$49,F9)/2) -> 2 | K9: =+H9-(I9+J9) -> 12 | L9: J | M9: 4
F10: 1/2CS | G10: CS | H10: =Calendrier!N9 -> 0 | I10: =JAN!M10 -> 0 | J10: =IF(G10="",0,COUNTIF($J$19:$J$49,G10))+IF(F10="",0,COUNTIF($J$19:$J$49,F10)/2) -> 0 | K10: =H10-(I10+J10) -> 0 | L10: J | M10: 0
G11: CP | H11: =Calendrier!N6 -> 0 | I11: =JAN!M11 -> 0 | J11: 0 | K11: =H11-(I11+J11) -> 0 | L11: J | M11: 0
F12: 1/2T | G12: T | H12: =Calendrier!N7 -> 213 | I12: =JAN!M12 -> 0 | J12: 0 | K12: =H12-(I12+J12) -> 213 | L12: J | M12: 0
G13: Sa | H13: =Calendrier!N4 -> 53 | I13: =JAN!M13 -> 5 | J13: 4 | K13: =+H13-(I13+J13) -> 44 | L13: J | M13: 9
G14: Di | H14: =Calendrier!N3 -> 47 | I14: =JAN!M14 -> 5 | J14: 4 | K14: =+H14-(I14+J14) -> 38 | L14: J | M14: 9
G15: F | H15: =Calendrier!N2 -> 12 | I15: =JAN!M15 -> 1 | J15: 0 | K15: =+H15-(I15+J15) -> 11 | L15: J | M15: =+I15+J15 -> 1
G16: heure/avance fin mois | I16: =JAN!I50 -> 0 | M16: =I50 -> 0
B17: Prévu | C17: Entrée | D17: Sortie | E17: Entrée | F17: Sortie | G17: total J | H17: variation | I17: cumul | J17: Type | K17: nb J/T | M17: Bon E/S | N17: Sortie | O17: Retour
N18: avec bon
A19: 1 | B19: =INDIRECT(ADDRESS(MATCH($B$1,Calendrier!$A$15:$A$59,0)+14,ROW()-17,3,1,"Calendrier"),1) -> T | G19: =IF(COUNTA(C19:F19)=4,(D19-C19)+(F19-E19)-M19,IF(COUNTA(C19:D19)<2,(F19-E19)-M19,(D19-C19)-M19)) -> 0 | H19: =IF(AND(K19=0.5,COUNTA(C19:F19)=4),"erreur",IF(AND(D19-C19>0,F19-E19=0),G19-Calendrier!$AS$9/2-M19,IF(AND(F19-E19>0,D19-C19=0),(F19-E19)-Calendrier!$AS$9/2-M19,IF(COUNTA(C19:F19)=4,(D19-C19)+(F19-E19)-M19-Calendrier!$AS$9,0)))) -> 0 | I19: =+I18+I16 -> 0 | J19: =IF(AND(COUNTA(C19:F19)=0,B19<>"T"),B19,IF(AND(OR(B19=$F$9,B19=$F$10),COUNTA(C19:F19=2)),"T",IF(G19>=6,"T",""))) ->  | K19: =IF(OR(B19=$F$9,B19=$F$10),0.5,IF(G19>=6,1,0)) -> 0 | M19: =+O19-N19 -> 0
A20: 2 | B20: =INDIRECT(ADDRESS(MATCH($B$1,Calendrier!$A$15:$A$59,0)+14,ROW()-17,3,1,"Calendrier"),1) -> T | G20: 0 | H20: =IF(AND(K20=0.5,COUNTA(C20:F20)=4),"erreur",IF(AND(D20-C20>0,F20-E20=0),G20-Calendrier!$AS$9/2-M20,IF(AND(F20-E20>0,D20-C20=0),(F20-E20)-Calendrier!$AS$9/2-M20,IF(COUNTA(C20:F20)=4,(D20-C20)+(F20-E20)-M20-Calendrier!$AS$9,0)))) -> 0 | I20: =+I19+H20 -> 0 | K20: 0 | M20: =+O20-N20 -> 0
A21: 3 | B21: =INDIRECT(ADDRESS(MATCH($B$1,Calendrier!$A$15:$A$59,0)+14,ROW()-17,3,1,"Calendrier"),1) -> T | G21: 0 | H21: =IF(AND(K21=0.5,COUNTA(C21:F21)=4),"erreur",IF(AND(D21-C21>0,F21-E21=0),G21-Calendrier!$AS$9/2-M21,IF(AND(F21-E21>0,D21-C21=0),(F21-E21)-Calendrier!$AS$9/2-M21,IF(COUNTA(C21:F21)=4,(D21-C21)+(F21-E21)-M21-Calendrier!$AS$9,0)))) -> 0 | I21: 0 | K21: 0 | M21: 0
A22: 4 | B22: =INDIRECT(ADDRESS(MATCH($B$1,Calendrier!$A$15:$A$59,0)+14,ROW()-17,3,1,"Calendrier"),1) -> T | G22: 0 | H22: =IF(AND(K22=0.5,COUNTA(C22:F22)=4),"erreur",IF(AND(D22-C22>0,F22-E22=0),G22-Calendrier!$AS$9/2-M22,IF(AND(F22-E22>0,D22-C22=0),(F22-E22)-Calendrier!$AS$9/2-M22,IF(COUNTA(C22:F22)=4,(D22-C22)+(F22-E22)-M22-Calendrier!$AS$9,0)))) -> 0 | I22: 0 | K22: 0 | M22: 0
A23: 5 | B23: =INDIRECT(ADDRESS(MATCH($B$1,Calendrier!$A$15:$A$59,0)+14,ROW()-17,3,1,"Calendrier"),1) -> T | G23: 0 | H23: =IF(AND(K23=0.5,COUNTA(C23:F23)=4),"erreur",IF(AND(D23-C23>0,F23-E23=0),G23-Calendrier!$AS$9/2-M23,IF(AND(F23-E23>0,D23-C23=0),(F23-E23)-Calendrier!$AS$9/2-M23,IF(COUNTA(C23:F23)=4,(D23-C23)+(F23-E23)-M23-Calendrier!$AS$9,0)))) -> 0 | I23: 0 | K23: =IF(OR(B23=$F$9,B23=$F$10),0.5,IF(G23>=6,1,0)) -> 0 | M23: 0
A24: 6 | B24: =INDIRECT(ADDRESS(MATCH($B$1,Calendrier!$A$15:$A$59,0)+14,ROW()-17,3,1,"Calendrier"),1) -> Sa | G24: 0 | H24: =IF(AND(K24=0.5,COUNTA(C24:F24)=4),"erreur",IF(AND(D24-C24>0,F24-E24=0),G24-Calendrier!$AS$9/2-M24,IF(AND(F24-E24>0,D24-C24=0),(F24-E24)-Calendrier!$AS$9/2-M24,IF(COUNTA(C24:F24)=4,(D24-C24)+(F24-E24)-M24-Calendrier!$AS$9,0)))) -> 0 | I24: 0 | J24: Sa | K24: 0 | M24: 0
A25: 7 | B25: =INDIRECT(ADDRESS(MATCH($B$1,Calendrier!$A$15:$A$59,0)+14,ROW()-17,3,1,"Calendrier"),1) -> Di | G25: 0 | H25: =IF(AND(K25=0.5,COUNTA(C25:F25)=4),"erreur",IF(AND(D25-C25>0,F25-E25=0),G25-Calendrier!$AS$9/2-M25,IF(AND(F25-E25>0,D25-C25=0),(F25-E25)-Calendrier!$AS$9/2-M25,IF(COUNTA(C25:F25)=4,(D25-C25)+(F25-E25)-M25-Calendrier!$AS$9,0)))) -> 0 | I25: 0 | J25: Di | K25: 0 | M25: 0
A26: 8 | B26: =INDIRECT(ADDRESS(MATCH($B$1,Calendrier!$A$15:$A$59,0)+14,ROW()-17,3,1,"Calendrier"),1) -> T | G26: 0 | H26: =IF(AND(K26=0.5,COUNTA(C26:F26)=4),"erreur",IF(AND(D26-C26>0,F26-E26=0),G26-Calendrier!$AS$9/2-M26,IF(AND(F26-E26>0,D26-C26=0),(F26-E26)-Calendrier!$AS$9/2-M26,IF(COUNTA(C26:F26)=4,(D26-C26)+(F26-E26)-M26-Calendrier!$AS$9,0)))) -> 0 | I26: 0 | K26: 0 | M26: 0
A27: 9 | B27: =INDIRECT(ADDRESS(MATCH($B$1,Calendrier!$A$15:$A$59,0)+14,ROW()-17,3,1,"Calendrier"),1) -> T | G27: 0 | H27: =IF(AND(K27=0.5,COUNTA(C27:F27)=4),"erreur",IF(AND(D27-C27>0,F27-E27=0),G27-Calendrier!$AS$9/2-M27,IF(AND(F27-E27>0,D27-C27=0),(F27-E27)-Calendrier!$AS$9/2-M27,IF(COUNTA(C27:F27)=4,(D27-C27)+(F27-E27)-M27-Calendrier!$AS$9,0)))) -> 0 | I27: 0 | K27: 0 | M27: 0
A28: 10 | B28: =INDIRECT(ADDRESS(MATCH($B$1,Calendrier!$A$15:$A$59,0)+14,ROW()-17,3,1,"Calendrier"),1) -> T | G28: 0 | H28: =IF(AND(K28=0.5,COUNTA(C28:F28)=4),"erreur",IF(AND(D28-C28>0,F28-E28=0),G28-Calendrier!$AS$9/2-M28,IF(AND(F28-E28>0,D28-C28=0),(F28-E28)-Calendrier!$AS$9/2-M28,IF(COUNTA(C28:F28)=4,(D28-C28)+(F28-E28)-M28-Calendrier!$AS$9,0)))) -> 0 | I28: 0 | K28: 0 | M28: 0
A29: 11 | B29: =INDIRECT(ADDRESS(MATCH($B$1,Calendrier!$A$15:$A$59,0)+14,ROW()-17,3,1,"Calendrier"),1) -> T | G29: 0 | H29: =IF(AND(K29=0.5,COUNTA(C29:F29)=4),"erreur",IF(AND(D29-C29>0,F29-E29=0),G29-Calendrier!$AS$9/2-M29,IF(AND(F29-E29>0,D29-C29=0),(F29-E29)-Calendrier!$AS$9/2-M29,IF(COUNTA(C29:F29)=4,(D29-C29)+(F29-E29)-M29-Calendrier!$AS$9,0)))) -> 0 | I29: 0 | K29: 0 | M29: 0
A30: 12 | B30: =INDIRECT(ADDRESS(MATCH($B$1,Calendrier!$A$15:$A$59,0)+14,ROW()-17,3,1,"Calendrier"),1) -> T | G30: 0 | H30: =IF(AND(K30=0.5,COUNTA(C30:F30)=4),"erreur",IF(AND(D30-C30>0,F30-E30=0),G30-Calendrier!$AS$9/2-M30,IF(AND(F30-E30>0,D30-C30=0),(F30-E30)-Calendrier!$AS$9/2-M30,IF(COUNTA(C30:F30)=4,(D30-C30)+(F30-E30)-M30-Calendrier!$AS$9,0)))) -> 0 | I30: 0 | K30: 0 | M30: 0
A31: 13 | B31: =INDIRECT(ADDRESS(MATCH($B$1,Calendrier!$A$15:$A$59,0)+14,ROW()-17,3,1,"Calendrier"),1) -> Sa | G31: 0 | H31: =IF(AND(K31=0.5,COUNTA(C31:F31)=4),"erreur",IF(AND(D31-C31>0,F31-E31=0),G31-Calendrier!$AS$9/2-M31,IF(AND(F31-E31>0,D31-C31=0),(F31-E31)-Calendrier!$AS$9/2-M31,IF(COUNTA(C31:F31)=4,(D31-C31)+(F31-E31)-M31-Calendrier!$AS$9,0)))) -> 0 | I31: 0 | J31: Sa | K31: 0 | M31: 0
A32: 14 | B32: =INDIRECT(ADDRESS(MATCH($B$1,Calendrier!$A$15:$A$59,0)+14,ROW()-17,3,1,"Calendrier"),1) -> Di | G32: 0 | H32: =IF(AND(K32=0.5,COUNTA(C32:F32)=4),"erreur",IF(AND(D32-C32>0,F32-E32=0),G32-Calendrier!$AS$9/2-M32,IF(AND(F32-E32>0,D32-C32=0),(F32-E32)-Calendrier!$AS$9/2-M32,IF(COUNTA(C32:F32)=4,(D32-C32)+(F32-E32)-M32-Calendrier!$AS$9,0)))) -> 0 | I32: 0 | J32: Di | K32: 0 | M32: 0
A33: 15 | B33: =INDIRECT(ADDRESS(MATCH($B$1,Calendrier!$A$15:$A$59,0)+14,ROW()-17,3,1,"Calendrier"),1) -> RTT | G33: 0 | H33: =IF(AND(K33=0.5,COUNTA(C33:F33)=4),"erreur",IF(AND(D33-C33>0,F33-E33=0),G33-Calendrier!$AS$9/2-M33,IF(AND(F33-E33>0,D33-C33=0),(F33-E33)-Calendrier!$AS$9/2-M33,IF(COUNTA(C33:F33)=4,(D33-C33)+(F33-E33)-M33-Calendrier!$AS$9,0)))) -> 0 | I33: 0 | J33: =IF(AND(COUNTA(C33:F33)=0,B33<>"T"),B33,IF(AND(OR(B33=$F$9,B33=$F$10),COUNTA(C33:F33=2)),"T",IF(G33>=6,"T",""))) -> RTT | K33: 0 | M33: 0
A34: 16 | B34: =INDIRECT(ADDRESS(MATCH($B$1,Calendrier!$A$15:$A$59,0)+14,ROW()-17,3,1,"Calendrier"),1) -> T | G34: 0 | H34: =IF(AND(K34=0.5,COUNTA(C34:F34)=4),"erreur",IF(AND(D34-C34>0,F34-E34=0),G34-Calendrier!$AS$9/2-M34,IF(AND(F34-E34>0,D34-C34=0),(F34-E34)-Calendrier!$AS$9/2-M34,IF(COUNTA(C34:F34)=4,(D34-C34)+(F34-E34)-M34-Calendrier!$AS$9,0)))) -> 0 | I34: 0 | K34: 0 | M34: 0
A35: 17 | B35: =INDIRECT(ADDRESS(MATCH($B$1,Calendrier!$A$15:$A$59,0)+14,ROW()-17,3,1,"Calendrier"),1) -> T | G35: 0 | H35: =IF(AND(K35=0.5,COUNTA(C35:F35)=4),"erreur",IF(AND(D35-C35>0,F35-E35=0),G35-Calendrier!$AS$9/2-M35,IF(AND(F35-E35>0,D35-C35=0),(F35-E35)-Calendrier!$AS$9/2-M35,IF(COUNTA(C35:F35)=4,(D35-C35)+(F35-E35)-M35-Calendrier!$AS$9,0)))) -> 0 | I35: 0 | K35: 0 | M35: 0
A36: 18 | B36: =INDIRECT(ADDRESS(MATCH($B$1,Calendrier!$A$15:$A$59,0)+14,ROW()-17,3,1,"Calendrier"),1) -> T | G36: 0 | H36: =IF(AND(K36=0.5,COUNTA(C36:F36)=4),"erreur",IF(AND(D36-C36>0,F36-E36=0),G36-Calendrier!$AS$9/2-M36,IF(AND(F36-E36>0,D36-C36=0),(F36-E36)-Calendrier!$AS$9/2-M36,IF(COUNTA(C36:F36)=4,(D36-C36)+(F36-E36)-M36-Calendrier!$AS$9,0)))) -> 0 | I36: 0 | K36: 0 | M36: 0
A37: 19 | B37: =INDIRECT(ADDRESS(MATCH($B$1,Calendrier!$A$15:$A$59,0)+14,ROW()-17,3,1,"Calendrier"),1) -> T | G37: 0 | H37: =IF(AND(K37=0.5,COUNTA(C37:F37)=4),"erreur",IF(AND(D37-C37>0,F37-E37=0),G37-Calendrier!$AS$9/2-M37,IF(AND(F37-E37>0,D37-C37=0),(F37-E37)-Calendrier!$AS$9/2-M37,IF(COUNTA(C37:F37)=4,(D37-C37)+(F37-E37)-M37-Calendrier!$AS$9,0)))) -> 0 | I37: 0 | K37: 0 | M37: 0
A38: 20 | B38: =INDIRECT(ADDRESS(MATCH($B$1,Calendrier!$A$15:$A$59,0)+14,ROW()-17,3,1,"Calendrier"),1) -> Sa | G38: 0 | H38: =IF(AND(K38=0.5,COUNTA(C38:F38)=4),"erreur",IF(AND(D38-C38>0,F38-E38=0),G38-Calendrier!$AS$9/2-M38,IF(AND(F38-E38>0,D38-C38=0),(F38-E38)-Calendrier!$AS$9/2-M38,IF(COUNTA(C38:F38)=4,(D38-C38)+(F38-E38)-M38-Calendrier!$AS$9,0)))) -> 0 | I38: 0 | J38: Sa | K38: 0 | M38: 0
A39: 21 | B39: =INDIRECT(ADDRESS(MATCH($B$1,Calendrier!$A$15:$A$59,0)+14,ROW()-17,3,1,"Calendrier"),1) -> Di | G39: 0 | H39: =IF(AND(K39=0.5,COUNTA(C39:F39)=4),"erreur",IF(AND(D39-C39>0,F39-E39=0),G39-Calendrier!$AS$9/2-M39,IF(AND(F39-E39>0,D39-C39=0),(F39-E39)-Calendrier!$AS$9/2-M39,IF(COUNTA(C39:F39)=4,(D39-C39)+(F39-E39)-M39-Calendrier!$AS$9,0)))) -> 0 | I39: 0 | J39: Di | K39: 0 | M39: 0
A40: 22 | B40: =INDIRECT(ADDRESS(MATCH($B$1,Calendrier!$A$15:$A$59,0)+14,ROW()-17,3,1,"Calendrier"),1) -> T | G40: 0 | H40: =IF(AND(K40=0.5,COUNTA(C40:F40)=4),"erreur",IF(AND(D40-C40>0,F40-E40=0),G40-Calendrier!$AS$9/2-M40,IF(AND(F40-E40>0,D40-C40=0),(F40-E40)-Calendrier!$AS$9/2-M40,IF(COUNTA(C40:F40)=4,(D40-C40)+(F40-E40)-M40-Calendrier!$AS$9,0)))) -> 0 | I40: 0 | K40: 0 | M40: 0
A41: 23 | B41: =INDIRECT(ADDRESS(MATCH($B$1,Calendrier!$A$15:$A$59,0)+14,ROW()-17,3,1,"Calendrier"),1) -> T | G41: 0 | H41: =IF(AND(K41=0.5,COUNTA(C41:F41)=4),"erreur",IF(AND(D41-C41>0,F41-E41=0),G41-Calendrier!$AS$9/2-M41,IF(AND(F41-E41>0,D41-C41=0),(F41-E41)-Calendrier!$AS$9/2-M41,IF(COUNTA(C41:F41)=4,(D41-C41)+(F41-E41)-M41-Calendrier!$AS$9,0)))) -> 0 | I41: 0 | K41: 0 | M41: 0
A42: 24 | B42: =INDIRECT(ADDRESS(MATCH($B$1,Calendrier!$A$15:$A$59,0)+14,ROW()-17,3,1,"Calendrier"),1) -> T | G42: 0 | H42: =IF(AND(K42=0.5,COUNTA(C42:F42)=4),"erreur",IF(AND(D42-C42>0,F42-E42=0),G42-Calendrier!$AS$9/2-M42,IF(AND(F42-E42>0,D42-C42=0),(F42-E42)-Calendrier!$AS$9/2-M42,IF(COUNTA(C42:F42)=4,(D42-C42)+(F42-E42)-M42-Calendrier!$AS$9,0)))) -> 0 | I42: 0 | K42: 0 | M42: 0
A43: 25 | B43: =INDIRECT(ADDRESS(MATCH($B$1,Calendrier!$A$15:$A$59,0)+14,ROW()-17,3,1,"Calendrier"),1) -> T | G43: 0 | H43: =IF(AND(K43=0.5,COUNTA(C43:F43)=4),"erreur",IF(AND(D43-C43>0,F43-E43=0),G43-Calendrier!$AS$9/2-M43,IF(AND(F43-E43>0,D43-C43=0),(F43-E43)-Calendrier!$AS$9/2-M43,IF(COUNTA(C43:F43)=4,(D43-C43)+(F43-E43)-M43-Calendrier!$AS$9,0)))) -> 0 | I43: 0 | K43: 0 | M43: 0
A44: 26 | B44: =INDIRECT(ADDRESS(MATCH($B$1,Calendrier!$A$15:$A$59,0)+14,ROW()-17,3,1,"Calendrier"),1) -> RTT | G44: 0 | H44: =IF(AND(K44=0.5,COUNTA(C44:F44)=4),"erreur",IF(AND(D44-C44>0,F44-E44=0),G44-Calendrier!$AS$9/2-M44,IF(AND(F44-E44>0,D44-C44=0),(F44-E44)-Calendrier!$AS$9/2-M44,IF(COUNTA(C44:F44)=4,(D44-C44)+(F44-E44)-M44-Calendrier!$AS$9,0)))) -> 0 | I44: 0 | J44: RTT | K44: 0 | M44: 0
A45: 27 | B45: =INDIRECT(ADDRESS(MATCH($B$1,Calendrier!$A$15:$A$59,0)+14,ROW()-17,3,1,"Calendrier"),1) -> Sa | G45: 0 | H45: =IF(AND(K45=0.5,COUNTA(C45:F45)=4),"erreur",IF(AND(D45-C45>0,F45-E45=0),G45-Calendrier!$AS$9/2-M45,IF(AND(F45-E45>0,D45-C45=0),(F45-E45)-Calendrier!$AS$9/2-M45,IF(COUNTA(C45:F45)=4,(D45-C45)+(F45-E45)-M45-Calendrier!$AS$9,0)))) -> 0 | I45: 0 | J45: Sa | K45: 0 | M45: 0
A46: 28 | B46: =INDIRECT(ADDRESS(MATCH($B$1,Calendrier!$A$15:$A$59,0)+14,ROW()-17,3,1,"Calendrier"),1) -> Di | G46: 0 | H46: =IF(AND(K46=0.5,COUNTA(C46:F46)=4),"erreur",IF(AND(D46-C46>0,F46-E46=0),G46-Calendrier!$AS$9/2-M46,IF(AND(F46-E46>0,D46-C46=0),(F46-E46)-Calendrier!$AS$9/2-M46,IF(COUNTA(C46:F46)=4,(D46-C46)+(F46-E46)-M46-Calendrier!$AS$9,0)))) -> 0 | I46: 0 | J46: Di | K46: 0 | M46: 0
A47: =IF(Calendrier!AD17<>"",29,"") -> 29 | B47: =INDIRECT(ADDRESS(MATCH($B$1,Calendrier!$A$15:$A$59,0)+14,ROW()-17,3,1,"Calendrier"),1) -> T | G47: 0 | H47: =IF(AND(K47=0.5,COUNTA(C47:F47)=4),"erreur",IF(AND(D47-C47>0,F47-E47=0),G47-Calendrier!$AS$9/2-M47,IF(AND(F47-E47>0,D47-C47=0),(F47-E47)-Calendrier!$AS$9/2-M47,IF(COUNTA(C47:F47)=4,(D47-C47)+(F47-E47)-M47-Calendrier!$AS$9,0)))) -> 0 | I47: 0 | K47: 0 | M47: 0
I48: 0 | M48: 0
I49: 0 | M49: 0
H50: solde des variations | I50: =I49 -> 0

Sheet MAR
B1: =RIGHT(CELL("nomfichier",$A$1),3) -> MAR | C1: FICHE DE SUIVI HORAIRE
B3: mois : | C3: MARS | F3: année | G3: =Calendrier!A1 -> 2016 | I3: service | J3: =Calendrier!F4 -> COMPTABILITE
B5: nom : | C5: =Calendrier!F2 -> MARTIN | F5: prénom | G5: =Calendrier!F3 -> PATRICK | I5: N° Ident. | J5: =Calendrier!F1 -> N123456
H6: à réaliser | I6: cumul | J6: en cours | K6: reste | M6: n/cumul
D7: Nb J/T | E7: =Calendrier!$A$10 -> 213 | F7: =+$H$10 -> 0 | G7: =$H$12 -> 213 | H7: =Calendrier!$N$1 -> 366 | I7: =FEV!M7 -> 23 | J7: =SUM(J8:J15) -> 11 | K7: =H7-(I7+J7) -> 332 | M7: =SUM(M8:M15) -> 34
G8: CA | H8: =Calendrier!N5 -> 25 | I8: =FEV!M8 -> 0 | J8: =IF(G8="",0,COUNTIF($J$19:$J$49,G8))+IF(F8="",0,COUNTIF($J$19:$J$49,F8)/2) -> 0 | K8: =+H8-(I8+J8) -> 25 | L8: J | M8: =+I8+J8 -> 0
F9: 1/2RTT | G9: RTT | H9: =Calendrier!N8 -> 16 | I9: =FEV!M9 -> 4 | J9: =IF(G9="",0,COUNTIF($J$19:$J$49,G9))+IF(F9="",0,COUNTIF($J$19:$J$49,F9)/2) -> 2 | K9: =+H9-(I9+J9) -> 10 | L9: J | M9: 6
F10: 1/2CS | G10: CS | H10: =Calendrier!N9 -> 0 | I10: =FEV!M10 -> 0 | J10: =IF(G10="",0,COUNTIF($J$19:$J$49,G10))+IF(F10="",0,COUNTIF($J$19:$J$49,F10)/2) -> 0 | K10: =H10-(I10+J10) -> 0 | L10: J | M10: 0
G11: CP | H11: =Calendrier!N6 -> 0 | I11: =FEV!M11 -> 0 | J11: 0 | K11: =H11-(I11+J11) -> 0 | L11: J | M11: 0
F12: 1/2T | G12: T | H12: =Calendrier!N7 -> 213 | I12: =FEV!M12 -> 0 | J12: 0 | K12: =+H12-(I12+J12) -> 213 | L12: J | M12: 0
G13: Sa | H13: =Calendrier!N4 -> 53 | I13: =FEV!M13 -> 9 | J13: 4 | K13: =+H13-(I13+J13) -> 40 | L13: J | M13: 13
G14: Di | H14: =Calendrier!N3 -> 47 | I14: =FEV!M14 -> 9 | J14: 3 | K14: =+H14-(I14+J14) -> 35 | L14: J | M14: 12
G15: F | H15: =Calendrier!N2 -> 12 | I15: =FEV!M15 -> 1 | J15: 2 | K15: =+H15-(I15+J15) -> 9 | L15: J | M15: =+I15+J15 -> 3
G16: heure/avance fin mois | I16: =FEV!I50 -> 0 | M16: =I50 -> 0
B17: Prévu | C17: Entrée | D17: Sortie | E17: Entrée | F17: Sortie | G17: total J | H17: variation | I17: cumul | J17: Type | K17: nb J/T | M17: Bon E/S | N17: Sortie | O17: Retour
N18: avec bon
A19: 1 | B19: =INDIRECT(ADDRESS(MATCH($B$1,Calendrier!$A$15:$A$59,0)+14,ROW()-17,3,1,"Calendrier"),1) -> T | G19: =IF(COUNTA(C19:F19)=4,(D19-C19)+(F19-E19)-M19,IF(COUNTA(C19:D19)<2,(F19-E19)-M19,(D19-C19)-M19)) -> 0 | H19: =IF(AND(K19=0.5,COUNTA(C19:F19)=4),"erreur",IF(AND(D19-C19>0,F19-E19=0),G19-Calendrier!$AS$9/2-M19,IF(AND(F19-E19>0,D19-C19=0),(F19-E19)-Calendrier!$AS$9/2-M19,IF(COUNTA(C19:F19)=4,(D19-C19)+(F19-E19)-M19-Calendrier!$AS$9,0)))) -> 0 | I19: =+I16+H19 -> 0 | J19: =IF(AND(COUNTA(C19:F19)=0,B19<>"T"),B19,IF(AND(OR(B19=$F$9,B19=$F$10),COUNTA(C19:F19=2)),"T",IF(G19>=6,"T",""))) ->  | K19: =IF(OR(B19=$F$9,B19=$F$10),0.5,IF(G19>=6,1,0)) -> 0 | M19: =+O19-N19 -> 0
A20: 2 | B20: =INDIRECT(ADDRESS(MATCH($B$1,Calendrier!$A$15:$A$59,0)+14,ROW()-17,3,1,"Calendrier"),1) -> T | G20: 0 | H20: =IF(AND(K20=0.5,COUNTA(C20:F20)=4),"erreur",IF(AND(D20-C20>0,F20-E20=0),G20-Calendrier!$AS$9/2-M20,IF(AND(F20-E20>0,D20-C20=0),(F20-E20)-Calendrier!$AS$9/2-M20,IF(COUNTA(C20:F20)=4,(D20-C20)+(F20-E20)-M20-Calendrier!$AS$9,0)))) -> 0 | I20: =+I19+H20 -> 0 | K20: 0 | M20: =+O20-N20 -> 0
A21: 3 | B21: =INDIRECT(ADDRESS(MATCH($B$1,Calendrier!$A$15:$A$59,0)+14,ROW()-17,3,1,"Calendrier"),1) -> T | G21: 0 | H21: =IF(AND(K21=0.5,COUNTA(C21:F21)=4),"erreur",IF(AND(D21-C21>0,F21-E21=0),G21-Calendrier!$AS$9/2-M21,IF(AND(F21-E21>0,D21-C21=0),(F21-E21)-Calendrier!$AS$9/2-M21,IF(COUNTA(C21:F21)=4,(D21-C21)+(F21-E21)-M21-Calendrier!$AS$9,0)))) -> 0 | I21: =+I20+H21 -> 0 | K21: 0 | M21: 0
A22: 4 | B22: =INDIRECT(ADDRESS(MATCH($B$1,Calendrier!$A$15:$A$59,0)+14,ROW()-17,3,1,"Calendrier"),1) -> T | G22: 0 | H22: =IF(AND(K22=0.5,COUNTA(C22:F22)=4),"erreur",IF(AND(D22-C22>0,F22-E22=0),G22-Calendrier!$AS$9/2-M22,IF(AND(F22-E22>0,D22-C22=0),(F22-E22)-Calendrier!$AS$9/2-M22,IF(COUNTA(C22:F22)=4,(D22-C22)+(F22-E22)-M22-Calendrier!$AS$9,0)))) -> 0 | I22: 0 | K22: 0 | M22: 0
A23: 5 | B23: =INDIRECT(ADDRESS(MATCH($B$1,Calendrier!$A$15:$A$59,0)+14,ROW()-17,3,1,"Calendrier"),1) -> Sa | G23: 0 | H23: =IF(AND(K23=0.5,COUNTA(C23:F23)=4),"erreur",IF(AND(D23-C23>0,F23-E23=0),G23-Calendrier!$AS$9/2-M23,IF(AND(F23-E23>0,D23-C23=0),(F23-E23)-Calendrier!$AS$9/2-M23,IF(COUNTA(C23:F23)=4,(D23-C23)+(F23-E23)-M23-Calendrier!$AS$9,0)))) -> 0 | I23: 0 | J23: Sa | K23: =IF(OR(B23=$F$9,B23=$F$10),0.5,IF(G23>=6,1,0)) -> 0 | M23: 0
A24: 6 | B24: =INDIRECT(ADDRESS(MATCH($B$1,Calendrier!$A$15:$A$59,0)+14,ROW()-17,3,1,"Calendrier"),1) -> Di | G24: 0 | H24: =IF(AND(K24=0.5,COUNTA(C24:F24)=4),"erreur",IF(AND(D24-C24>0,F24-E24=0),G24-Calendrier!$AS$9/2-M24,IF(AND(F24-E24>0,D24-C24=0),(F24-E24)-Calendrier!$AS$9/2-M24,IF(COUNTA(C24:F24)=4,(D24-C24)+(F24-E24)-M24-Calendrier!$AS$9,0)))) -> 0 | I24: 0 | J24: Di | K24: 0 | M24: 0
A25: 7 | B25: =INDIRECT(ADDRESS(MATCH($B$1,Calendrier!$A$15:$A$59,0)+14,ROW()-17,3,1,"Calendrier"),1) -> T | G25: 0 | H25: =IF(AND(K25=0.5,COUNTA(C25:F25)=4),"erreur",IF(AND(D25-C25>0,F25-E25=0),G25-Calendrier!$AS$9/2-M25,IF(AND(F25-E25>0,D25-C25=0),(F25-E25)-Calendrier!$AS$9/2-M25,IF(COUNTA(C25:F25)=4,(D25-C25)+(F25-E25)-M25-Calendrier!$AS$9,0)))) -> 0 | I25: 0 | K25: 0 | M25: 0
A26: 8 | B26: =INDIRECT(ADDRESS(MATCH($B$1,Calendrier!$A$15:$A$59,0)+14,ROW()-17,3,1,"Calendrier"),1) -> T | G26: 0 | H26: =IF(AND(K26=0.5,COUNTA(C26:F26)=4),"erreur",IF(AND(D26-C26>0,F26-E26=0),G26-Calendrier!$AS$9/2-M26,IF(AND(F26-E26>0,D26-C26=0),(F26-E26)-Calendrier!$AS$9/2-M26,IF(COUNTA(C26:F26)=4,(D26-C26)+(F26-E26)-M26-Calendrier!$AS$9,0)))) -> 0 | I26: 0 | K26: 0 | M26: 0
A27: 9 | B27: =INDIRECT(ADDRESS(MATCH($B$1,Calendrier!$A$15:$A$59,0)+14,ROW()-17,3,1,"Calendrier"),1) -> T | G27: 0 | H27: =IF(AND(K27=0.5,COUNTA(C27:F27)=4),"erreur",IF(AND(D27-C27>0,F27-E27=0),G27-Calendrier!$AS$9/2-M27,IF(AND(F27-E27>0,D27-C27=0),(F27-E27)-Calendrier!$AS$9/2-M27,IF(COUNTA(C27:F27)=4,(D27-C27)+(F27-E27)-M27-Calendrier!$AS$9,0)))) -> 0 | I27: 0 | K27: 0 | M27: 0
A28: 10 | B28: =INDIRECT(ADDRESS(MATCH($B$1,Calendrier!$A$15:$A$59,0)+14,ROW()-17,3,1,"Calendrier"),1) -> T | G28: 0 | H28: =IF(AND(K28=0.5,COUNTA(C28:F28)=4),"erreur",IF(AND(D28-C28>0,F28-E28=0),G28-Calendrier!$AS$9/2-M28,IF(AND(F28-E28>0,D28-C28=0),(F28-E28)-Calendrier!$AS$9/2-M28,IF(COUNTA(C28:F28)=4,(D28-C28)+(F28-E28)-M28-Calendrier!$AS$9,0)))) -> 0 | I28: 0 | K28: 0 | M28: 0
A29: 11 | B29: =INDIRECT(ADDRESS(MATCH($B$1,Calendrier!$A$15:$A$59,0)+14,ROW()-17,3,1,"Calendrier"),1) -> T | G29: 0 | H29: =IF(AND(K29=0.5,COUNTA(C29:F29)=4),"erreur",IF(AND(D29-C29>0,F29-E29=0),G29-Calendrier!$AS$9/2-M29,IF(AND(F29-E29>0,D29-C29=0),(F29-E29)-Calendrier!$AS$9/2-M29,IF(COUNTA(C29:F29)=4,(D29-C29)+(F29-E29)-M29-Calendrier!$AS$9,0)))) -> 0 | I29: 0 | K29: 0 | M29: 0
A30: 12 | B30: =INDIRECT(ADDRESS(MATCH($B$1,Calendrier!$A$15:$A$59,0)+14,ROW()-17,3,1,"Calendrier"),1) -> Sa | G30: 0 | H30: =IF(AND(K30=0.5,COUNTA(C30:F30)=4),"erreur",IF(AND(D30-C30>0,F30-E30=0),G30-Calendrier!$AS$9/2-M30,IF(AND(F30-E30>0,D30-C30=0),(F30-E30)-Calendrier!$AS$9/2-M30,IF(COUNTA(C30:F30)=4,(D30-C30)+(F30-E30)-M30-Calendrier!$AS$9,0)))) -> 0 | I30: 0 | J30: Sa | K30: 0 | M30: 0
A31: 13 | B31: =INDIRECT(ADDRESS(MATCH($B$1,Calendrier!$A$15:$A$59,0)+14,ROW()-17,3,1,"Calendrier"),1) -> Di | G31: 0 | H31: =IF(AND(K31=0.5,COUNTA(C31:F31)=4),"erreur",IF(AND(D31-C31>0,F31-E31=0),G31-Calendrier!$AS$9/2-M31,IF(AND(F31-E31>0,D31-C31=0),(F31-E31)-Calendrier!$AS$9/2-M31,IF(COUNTA(C31:F31)=4,(D31-C31)+(F31-E31)-M31-Calendrier!$AS$9,0)))) -> 0 | I31: 0 | J31: Di | K31: 0 | M31: 0
A32: 14 | B32: =INDIRECT(ADDRESS(MATCH($B$1,Calendrier!$A$15:$A$59,0)+14,ROW()-17,3,1,"Calendrier"),1) -> RTT | G32: 0 | H32: =IF(AND(K32=0.5,COUNTA(C32:F32)=4),"erreur",IF(AND(D32-C32>0,F32-E32=0),G32-Calendrier!$AS$9/2-M32,IF(AND(F32-E32>0,D32-C32=0),(F32-E32)-Calendrier!$AS$9/2-M32,IF(COUNTA(C32:F32)=4,(D32-C32)+(F32-E32)-M32-Calendrier!$AS$9,0)))) -> 0 | I32: 0 | J32: RTT | K32: 0 | M32: 0
A33: 15 | B33: =INDIRECT(ADDRESS(MATCH($B$1,Calendrier!$A$15:$A$59,0)+14,ROW()-17,3,1,"Calendrier"),1) -> T | G33: 0 | H33: =IF(AND(K33=0.5,COUNTA(C33:F33)=4),"erreur",IF(AND(D33-C33>0,F33-E33=0),G33-Calendrier!$AS$9/2-M33,IF(AND(F33-E33>0,D33-C33=0),(F33-E33)-Calendrier!$AS$9/2-M33,IF(COUNTA(C33:F33)=4,(D33-C33)+(F33-E33)-M33-Calendrier!$AS$9,0)))) -> 0 | I33: 0 | J33: =IF(AND(COUNTA(C33:F33)=0,B33<>"T"),B33,IF(AND(OR(B33=$F$9,B33=$F$10),COUNTA(C33:F33=2)),"T",IF(G33>=6,"T",""))) ->  | K33: 0 | M33: 0
A34: 16 | B34: =INDIRECT(ADDRESS(MATCH($B$1,Calendrier!$A$15:$A$59,0)+14,ROW()-17,3,1,"Calendrier"),1) -> T | G34: 0 | H34: =IF(AND(K34=0.5,COUNTA(C34:F34)=4),"erreur",IF(AND(D34-C34>0,F34-E34=0),G34-Calendrier!$AS$9/2-M34,IF(AND(F34-E34>0,D34-C34=0),(F34-E34)-Calendrier!$AS$9/2-M34,IF(COUNTA(C34:F34)=4,(D34-C34)+(F34-E34)-M34-Calendrier!$AS$9,0)))) -> 0 | I34: 0 | K34: 0 | M34: 0
A35: 17 | B35: =INDIRECT(ADDRESS(MATCH($B$1,Calendrier!$A$15:$A$59,0)+14,ROW()-17,3,1,"Calendrier"),1) -> T | G35: 0 | H35: =IF(AND(K35=0.5,COUNTA(C35:F35)=4),"erreur",IF(AND(D35-C35>0,F35-E35=0),G35-Calendrier!$AS$9/2-M35,IF(AND(F35-E35>0,D35-C35=0),(F35-E35)-Calendrier!$AS$9/2-M35,IF(COUNTA(C35:F35)=4,(D35-C35)+(F35-E35)-M35-Calendrier!$AS$9,0)))) -> 0 | I35: 0 | K35: 0 | M35: 0
A36: 18 | B36: =INDIRECT(ADDRESS(MATCH($B$1,Calendrier!$A$15:$A$59,0)+14,ROW()-17,3,1,"Calendrier"),1) -> T | G36: 0 | H36: =IF(AND(K36=0.5,COUNTA(C36:F36)=4),"erreur",IF(AND(D36-C36>0,F36-E36=0),G36-Calendrier!$AS$9/2-M36,IF(AND(F36-E36>0,D36-C36=0),(F36-E36)-Calendrier!$AS$9/2-M36,IF(COUNTA(C36:F36)=4,(D36-C36)+(F36-E36)-M36-Calendrier!$AS$9,0)))) -> 0 | I36: 0 | K36: 0 | M36: 0
A37: 19 | B37: =INDIRECT(ADDRESS(MATCH($B$1,Calendrier!$A$15:$A$59,0)+14,ROW()-17,3,1,"Calendrier"),1) -> Sa | G37: 0 | H37: =IF(AND(K37=0.5,COUNTA(C37:F37)=4),"erreur",IF(AND(D37-C37>0,F37-E37=0),G37-Calendrier!$AS$9/2-M37,IF(AND(F37-E37>0,D37-C37=0),(F37-E37)-Calendrier!$AS$9/2-M37,IF(COUNTA(C37:F37)=4,(D37-C37)+(F37-E37)-M37-Calendrier!$AS$9,0)))) -> 0 | I37: 0 | J37: Sa | K37: 0 | M37: 0
A38: 20 | B38: =INDIRECT(ADDRESS(MATCH($B$1,Calendrier!$A$15:$A$59,0)+14,ROW()-17,3,1,"Calendrier"),1) -> Di | G38: 0 | H38: =IF(AND(K38=0.5,COUNTA(C38:F38)=4),"erreur",IF(AND(D38-C38>0,F38-E38=0),G38-Calendrier!$AS$9/2-M38,IF(AND(F38-E38>0,D38-C38=0),(F38-E38)-Calendrier!$AS$9/2-M38,IF(COUNTA(C38:F38)=4,(D38-C38)+(F38-E38)-M38-Calendrier!$AS$9,0)))) -> 0 | I38: 0 | J38: Di | K38: 0 | M38: 0
A39: 21 | B39: =INDIRECT(ADDRESS(MATCH($B$1,Calendrier!$A$15:$A$59,0)+14,ROW()-17,3,1,"Calendrier"),1) -> T | G39: 0 | H39: =IF(AND(K39=0.5,COUNTA(C39:F39)=4),"erreur",IF(AND(D39-C39>0,F39-E39=0),G39-Calendrier!$AS$9/2-M39,IF(AND(F39-E39>0,D39-C39=0),(F39-E39)-Calendrier!$AS$9/2-M39,IF(COUNTA(C39:F39)=4,(D39-C39)+(F39-E39)-M39-Calendrier!$AS$9,0)))) -> 0 | I39: 0 | K39: 0 | M39: 0
A40: 22 | B40: =INDIRECT(ADDRESS(MATCH($B$1,Calendrier!$A$15:$A$59,0)+14,ROW()-17,3,1,"Calendrier"),1) -> T | G40: 0 | H40: =IF(AND(K40=0.5,COUNTA(C40:F40)=4),"erreur",IF(AND(D40-C40>0,F40-E40=0),G40-Calendrier!$AS$9/2-M40,IF(AND(F40-E40>0,D40-C40=0),(F40-E40)-Calendrier!$AS$9/2-M40,IF(COUNTA(C40:F40)=4,(D40-C40)+(F40-E40)-M40-Calendrier!$AS$9,0)))) -> 0 | I40: 0 | K40: 0 | M40: 0
A41: 23 | B41: =INDIRECT(ADDRESS(MATCH($B$1,Calendrier!$A$15:$A$59,0)+14,ROW()-17,3,1,"Calendrier"),1) -> T | G41: 0 | H41: =IF(AND(K41=0.5,COUNTA(C41:F41)=4),"erreur",IF(AND(D41-C41>0,F41-E41=0),G41-Calendrier!$AS$9/2-M41,IF(AND(F41-E41>0,D41-C41=0),(F41-E41)-Calendrier!$AS$9/2-M41,IF(COUNTA(C41:F41)=4,(D41-C41)+(F41-E41)-M41-Calendrier!$AS$9,0)))) -> 0 | I41: 0 | K41: 0 | M41: 0
A42: 24 | B42: =INDIRECT(ADDRESS(MATCH($B$1,Calendrier!$A$15:$A$59,0)+14,ROW()-17,3,1,"Calendrier"),1) -> T | G42: 0 | H42: =IF(AND(K42=0.5,COUNTA(C42:F42)=4),"erreur",IF(AND(D42-C42>0,F42-E42=0),G42-Calendrier!$AS$9/2-M42,IF(AND(F42-E42>0,D42-C42=0),(F42-E42)-Calendrier!$AS$9/2-M42,IF(COUNTA(C42:F42)=4,(D42-C42)+(F42-E42)-M42-Calendrier!$AS$9,0)))) -> 0 | I42: 0 | K42: 0 | M42: 0
A43: 25 | B43: =INDIRECT(ADDRESS(MATCH($B$1,Calendrier!$A$15:$A$59,0)+14,ROW()-17,3,1,"Calendrier"),1) -> RTT | G43: 0 | H43: =IF(AND(K43=0.5,COUNTA(C43:F43)=4),"erreur",IF(AND(D43-C43>0,F43-E43=0),G43-Calendrier!$AS$9/2-M43,IF(AND(F43-E43>0,D43-C43=0),(F43-E43)-Calendrier!$AS$9/2-M43,IF(COUNTA(C43:F43)=4,(D43-C43)+(F43-E43)-M43-Calendrier!$AS$9,0)))) -> 0 | I43: 0 | J43: RTT | K43: 0 | M43: 0
A44: 26 | B44: =INDIRECT(ADDRESS(MATCH($B$1,Calendrier!$A$15:$A$59,0)+14,ROW()-17,3,1,"Calendrier"),1) -> Sa | G44: 0 | H44: =IF(AND(K44=0.5,COUNTA(C44:F44)=4),"erreur",IF(AND(D44-C44>0,F44-E44=0),G44-Calendrier!$AS$9/2-M44,IF(AND(F44-E44>0,D44-C44=0),(F44-E44)-Calendrier!$AS$9/2-M44,IF(COUNTA(C44:F44)=4,(D44-C44)+(F44-E44)-M44-Calendrier!$AS$9,0)))) -> 0 | I44: 0 | J44: Sa | K44: 0 | M44: 0
A45: 27 | B45: =INDIRECT(ADDRESS(MATCH($B$1,Calendrier!$A$15:$A$59,0)+14,ROW()-17,3,1,"Calendrier"),1) -> F | G45: 0 | H45: =IF(AND(K45=0.5,COUNTA(C45:F45)=4),"erreur",IF(AND(D45-C45>0,F45-E45=0),G45-Calendrier!$AS$9/2-M45,IF(AND(F45-E45>0,D45-C45=0),(F45-E45)-Calendrier!$AS$9/2-M45,IF(COUNTA(C45:F45)=4,(D45-C45)+(F45-E45)-M45-Calendrier!$AS$9,0)))) -> 0 | I45: 0 | J45: F | K45: 0 | M45: 0
A46: 28 | B46: =INDIRECT(ADDRESS(MATCH($B$1,Calendrier!$A$15:$A$59,0)+14,ROW()-17,3,1,"Calendrier"),1) -> F | G46: 0 | H46: =IF(AND(K46=0.5,COUNTA(C46:F46)=4),"erreur",IF(AND(D46-C46>0,F46-E46=0),G46-Calendrier!$AS$9/2-M46,IF(AND(F46-E46>0,D46-C46=0),(F46-E46)-Calendrier!$AS$9/2-M46,IF(COUNTA(C46:F46)=4,(D46-C46)+(F46-E46)-M46-Calendrier!$AS$9,0)))) -> 0 | I46: 0 | J46: F | K46: 0 | M46: 0
A47: 29 | B47: =INDIRECT(ADDRESS(MATCH($B$1,Calendrier!$A$15:$A$59,0)+14,ROW()-17,3,1,"Calendrier"),1) -> T | G47: 0 | H47: =IF(AND(K47=0.5,COUNTA(C47:F47)=4),"erreur",IF(AND(D47-C47>0,F47-E47=0),G47-Calendrier!$AS$9/2-M47,IF(AND(F47-E47>0,D47-C47=0),(F47-E47)-Calendrier!$AS$9/2-M47,IF(COUNTA(C47:F47)=4,(D47-C47)+(F47-E47)-M47-Calendrier!$AS$9,0)))) -> 0 | I47: 0 | K47: 0 | M47: 0
A48: 30 | B48: =INDIRECT(ADDRESS(MATCH($B$1,Calendrier!$A$15:$A$59,0)+14,ROW()-17,3,1,"Calendrier"),1) -> T | G48: 0 | H48: =IF(AND(K48=0.5,COUNTA(C48:F48)=4),"erreur",IF(AND(D48-C48>0,F48-E48=0),G48-Calendrier!$AS$9/2-M48,IF(AND(F48-E48>0,D48-C48=0),(F48-E48)-Calendrier!$AS$9/2-M48,IF(COUNTA(C48:F48)=4,(D48-C48)+(F48-E48)-M48-Calendrier!$AS$9,0)))) -> 0 | I48: 0 | K48: 0 | M48: 0
A49: 31 | B49: =INDIRECT(ADDRESS(MATCH($B$1,Calendrier!$A$15:$A$59,0)+14,ROW()-17,3,1,"Calendrier"),1) -> T | G49: 0 | H49: =IF(AND(K49=0.5,COUNTA(C49:F49)=4),"erreur",IF(AND(D49-C49>0,F49-E49=0),G49-Calendrier!$AS$9/2-M49,IF(AND(F49-E49>0,D49-C49=0),(F49-E49)-Calendrier!$AS$9/2-M49,IF(COUNTA(C49:F49)=4,(D49-C49)+(F49-E49)-M49-Calendrier!$AS$9,0)))) -> 0 | I49: 0 | K49: 0 | M49: 0
H50: solde des variations | I50: =I49 -> 0

Sheet AVR
B1: =RIGHT(CELL("nomfichier",$A$1),3) -> AVR | C1: FICHE DE SUIVI HORAIRE
B3: mois : | C3: AVRIL | F3: année | G3: =Calendrier!A1 -> 2016 | I3: service | J3: =Calendrier!F4 -> COMPTABILITE
B5: nom : | C5: =Calendrier!F2 -> MARTIN | F5: prénom | G5: =Calendrier!F3 -> PATRICK | I5: N° Ident. | J5: =Calendrier!F1 -> N123456
H6: à réaliser | I6: cumul | J6: en cours | K6: reste | M6: n/cumul
D7: Nb J/T | E7: =Calendrier!$A$10 -> 213 | F7: =+$H$10 -> 0 | G7: =$H$12 -> 213 | H7: =Calendrier!$N$1 -> 366 | I7: =MAR!M7 -> 34 | J7: =SUM(J8:J15) -> 11 | K7: =H7-(I7+J7) -> 321 | M7: =SUM(M8:M15) -> 45
G8: CA | H8: =Calendrier!N5 -> 25 | I8: =MAR!M8 -> 0 | J8: =IF(G8="",0,COUNTIF($J$19:$J$49,G8))+IF(F8="",0,COUNTIF($J$19:$J$49,F8)/2) -> 0 | K8: =+H8-(I8+J8) -> 25 | L8: J | M8: =+I8+J8 -> 0
F9: 1/2RTT | G9: RTT | H9: =Calendrier!N8 -> 16 | I9: =MAR!M9 -> 6 | J9: =IF(G9="",0,COUNTIF($J$19:$J$49,G9))+IF(F9="",0,COUNTIF($J$19:$J$49,F9)/2) -> 2 | K9: =+H9-(I9+J9) -> 8 | L9: J | M9: 8
F10: 1/2CS | G10: CS | H10: =Calendrier!N9 -> 0 | I10: =MAR!M10 -> 0 | J10: =IF(G10="",0,COUNTIF($J$19:$J$49,G10))+IF(F10="",0,COUNTIF($J$19:$J$49,F10)/2) -> 0 | K10: =H10-(I10+J10) -> 0 | L10: J | M10: 0
G11: CP | H11: =Calendrier!N6 -> 0 | I11: =MAR!M11 -> 0 | J11: 0 | K11: =H11-(I11+J11) -> 0 | L11: J | M11: 0
F12: 1/2T | G12: T | H12: =Calendrier!N7 -> 213 | I12: =MAR!M12 -> 0 | J12: 0 | K12: =+H12-(I12+J12) -> 213 | L12: J | M12: 0
G13: Sa | H13: =Calendrier!N4 -> 53 | I13: =MAR!M13 -> 13 | J13: 5 | K13: =+H13-(I13+J13) -> 35 | L13: J | M13: 18
G14: Di | H14: =Calendrier!N3 -> 47 | I14: =MAR!M14 -> 12 | J14: 4 | K14: =+H14-(I14+J14) -> 31 | L14: J | M14: 16
G15: F | H15: =Calendrier!N2 -> 12 | I15: =MAR!M15 -> 3 | J15: 0 | K15: =+H15-(I15+J15) -> 9 | L15: J | M15: =+I15+J15 -> 3
G16: heure/avance fin mois | I16: =MAR!I50 -> 0 | M16: =I50 -> 0
B17: Prévu | C17: Entrée | D17: Sortie | E17: Entrée | F17: Sortie | G17: total J | H17: variation | I17: cumul | J17: Type | K17: nb J/T | M17: Bon E/S | N17: Sortie | O17: Retour
N18: avec bon
A19: 1 | B19: =INDIRECT(ADDRESS(MATCH($B$1,Calendrier!$A$15:$A$59,0)+14,ROW()-17,3,1,"Calendrier"),1) -> T | G19: =IF(COUNTA(C19:F19)=4,(D19-C19)+(F19-E19)-M19,IF(COUNTA(C19:D19)<2,(F19-E19)-M19,(D19-C19)-M19)) -> 0 | H19: =IF(AND(K19=0.5,COUNTA(C19:F19)=4),"erreur",IF(AND(D19-C19>0,F19-E19=0),G19-Calendrier!$AS$9/2-M19,IF(AND(F19-E19>0,D19-C19=0),(F19-E19)-Calendrier!$AS$9/2-M19,IF(COUNTA(C19:F19)=4,(D19-C19)+(F19-E19)-M19-Calendrier!$AS$9,0)))) -> 0 | I19: =+I16+H19 -> 0 | J19: =IF(AND(COUNTA(C19:F19)=0,B19<>"T"),B19,IF(AND(OR(B19=$F$9,B19=$F$10),COUNTA(C19:F19=2)),"T",IF(G19>=6,"T",""))) ->  | K19: =IF(OR(B19=$F$9,B19=$F$10),0.5,IF(G19>=6,1,0)) -> 0 | M19: =+O19-N19 -> 0
A20: 2 | B20: =INDIRECT(ADDRESS(MATCH($B$1,Calendrier!$A$15:$A$59,0)+14,ROW()-17,3,1,"Calendrier"),1) -> Sa | G20: 0 | H20: =IF(AND(K20=0.5,COUNTA(C20:F20)=4),"erreur",IF(AND(D20-C20>0,F20-E20=0),G20-Calendrier!$AS$9/2-M20,IF(AND(F20-E20>0,D20-C20=0),(F20-E20)-Calendrier!$AS$9/2-M20,IF(COUNTA(C20:F20)=4,(D20-C20)+(F20-E20)-M20-Calendrier!$AS$9,0)))) -> 0 | I20: =+I19+H20 -> 0 | J20: Sa | K20: 0 | M20: =+O20-N20 -> 0
A21: 3 | B21: =INDIRECT(ADDRESS(MATCH($B$1,Calendrier!$A$15:$A$59,0)+14,ROW()-17,3,1,"Calendrier"),1) -> Di | G21: 0 | H21: =IF(AND(K21=0.5,COUNTA(C21:F21)=4),"erreur",IF(AND(D21-C21>0,F21-E21=0),G21-Calendrier!$AS$9/2-M21,IF(AND(F21-E21>0,D21-C21=0),(F21-E21)-Calendrier!$AS$9/2-M21,IF(COUNTA(C21:F21)=4,(D21-C21)+(F21-E21)-M21-Calendrier!$AS$9,0)))) -> 0 | I21: =+I20+H21 -> 0 | J21: Di | K21: 0 | M21: 0
A22: 4 | B22: =INDIRECT(ADDRESS(MATCH($B$1,Calendrier!$A$15:$A$59,0)+14,ROW()-17,3,1,"Calendrier"),1) -> T | G22: 0 | H22: =IF(AND(K22=0.5,COUNTA(C22:F22)=4),"erreur",IF(AND(D22-C22>0,F22-E22=0),G22-Calendrier!$AS$9/2-M22,IF(AND(F22-E22>0,D22-C22=0),(F22-E22)-Calendrier!$AS$9/2-M22,IF(COUNTA(C22:F22)=4,(D22-C22)+(F22-E22)-M22-Calendrier!$AS$9,0)))) -> 0 | I22: 0 | K22: 0 | M22: 0
A23: 5 | B23: =INDIRECT(ADDRESS(MATCH($B$1,Calendrier!$A$15:$A$59,0)+14,ROW()-17,3,1,"Calendrier"),1) -> T | G23: 0 | H23: =IF(AND(K23=0.5,COUNTA(C23:F23)=4),"erreur",IF(AND(D23-C23>0,F23-E23=0),G23-Calendrier!$AS$9/2-M23,IF(AND(F23-E23>0,D23-C23=0),(F23-E23)-Calendrier!$AS$9/2-M23,IF(COUNTA(C23:F23)=4,(D23-C23)+(F23-E23)-M23-Calendrier!$AS$9,0)))) -> 0 | I23: 0 | K23: =IF(OR(B23=$F$9,B23=$F$10),0.5,IF(G23>=6,1,0)) -> 0 | M23: 0
A24: 6 | B24: =INDIRECT(ADDRESS(MATCH($B$1,Calendrier!$A$15:$A$59,0)+14,ROW()-17,3,1,"Calendrier"),1) -> T | G24: 0 | H24: =IF(AND(K24=0.5,COUNTA(C24:F24)=4),"erreur",IF(AND(D24-C24>0,F24-E24=0),G24-Calendrier!$AS$9/2-M24,IF(AND(F24-E24>0,D24-C24=0),(F24-E24)-Calendrier!$AS$9/2-M24,IF(COUNTA(C24:F24)=4,(D24-C24)+(F24-E24)-M24-Calendrier!$AS$9,0)))) -> 0 | I24: 0 | K24: 0 | M24: 0
A25: 7 | B25: =INDIRECT(ADDRESS(MATCH($B$1,Calendrier!$A$15:$A$59,0)+14,ROW()-17,3,1,"Calendrier"),1) -> T | G25: 0 | H25: =IF(AND(K25=0.5,COUNTA(C25:F25)=4),"erreur",IF(AND(D25-C25>0,F25-E25=0),G25-Calendrier!$AS$9/2-M25,IF(AND(F25-E25>0,D25-C25=0),(F25-E25)-Calendrier!$AS$9/2-M25,IF(COUNTA(C25:F25)=4,(D25-C25)+(F25-E25)-M25-Calendrier!$AS$9,0)))) -> 0 | I25: 0 | K25: 0 | M25: 0
A26: 8 | B26: =INDIRECT(ADDRESS(MATCH($B$1,Calendrier!$A$15:$A$59,0)+14,ROW()-17,3,1,"Calendrier"),1) -> T | G26: 0 | H26: =IF(AND(K26=0.5,COUNTA(C26:F26)=4),"erreur",IF(AND(D26-C26>0,F26-E26=0),G26-Calendrier!$AS$9/2-M26,IF(AND(F26-E26>0,D26-C26=0),(F26-E26)-Calendrier!$AS$9/2-M26,IF(COUNTA(C26:F26)=4,(D26-C26)+(F26-E26)-M26-Calendrier!$AS$9,0)))) -> 0 | I26: 0 | K26: 0 | M26: 0
A27: 9 | B27: =INDIRECT(ADDRESS(MATCH($B$1,Calendrier!$A$15:$A$59,0)+14,ROW()-17,3,1,"Calendrier"),1) -> Sa | G27: 0 | H27: =IF(AND(K27=0.5,COUNTA(C27:F27)=4),"erreur",IF(AND(D27-C27>0,F27-E27=0),G27-Calendrier!$AS$9/2-M27,IF(AND(F27-E27>0,D27-C27=0),(F27-E27)-Calendrier!$AS$9/2-M27,IF(COUNTA(C27:F27)=4,(D27-C27)+(F27-E27)-M27-Calendrier!$AS$9,0)))) -> 0 | I27: 0 | J27: Sa | K27: 0 | M27: 0
A28: 10 | B28: =INDIRECT(ADDRESS(MATCH($B$1,Calendrier!$A$15:$A$59,0)+14,ROW()-17,3,1,"Calendrier"),1) -> Di | G28: 0 | H28: =IF(AND(K28=0.5,COUNTA(C28:F28)=4),"erreur",IF(AND(D28-C28>0,F28-E28=0),G28-Calendrier!$AS$9/2-M28,IF(AND(F28-E28>0,D28-C28=0),(F28-E28)-Calendrier!$AS$9/2-M28,IF(COUNTA(C28:F28)=4,(D28-C28)+(F28-E28)-M28-Calendrier!$AS$9,0)))) -> 0 | I28: 0 | J28: Di | K28: 0 | M28: 0
A29: 11 | B29: =INDIRECT(ADDRESS(MATCH($B$1,Calendrier!$A$15:$A$59,0)+14,ROW()-17,3,1,"Calendrier"),1) -> T | G29: 0 | H29: =IF(AND(K29=0.5,COUNTA(C29:F29)=4),"erreur",IF(AND(D29-C29>0,F29-E29=0),G29-Calendrier!$AS$9/2-M29,IF(AND(F29-E29>0,D29-C29=0),(F29-E29)-Calendrier!$AS$9/2-M29,IF(COUNTA(C29:F29)=4,(D29-C29)+(F29-E29)-M29-Calendrier!$AS$9,0)))) -> 0 | I29: 0 | K29: 0 | M29: 0
A30: 12 | B30: =INDIRECT(ADDRESS(MATCH($B$1,Calendrier!$A$15:$A$59,0)+14,ROW()-17,3,1,"Calendrier"),1) -> T | G30: 0 | H30: =IF(AND(K30=0.5,COUNTA(C30:F30)=4),"erreur",IF(AND(D30-C30>0,F30-E30=0),G30-Calendrier!$AS$9/2-M30,IF(AND(F30-E30>0,D30-C30=0),(F30-E30)-Calendrier!$AS$9/2-M30,IF(COUNTA(C30:F30)=4,(D30-C30)+(F30-E30)-M30-Calendrier!$AS$9,0)))) -> 0 | I30: 0 | K30: 0 | M30: 0
A31: 13 | B31: =INDIRECT(ADDRESS(MATCH($B$1,Calendrier!$A$15:$A$59,0)+14,ROW()-17,3,1,"Calendrier"),1) -> T | G31: 0 | H31: =IF(AND(K31=0.5,COUNTA(C31:F31)=4),"erreur",IF(AND(D31-C31>0,F31-E31=0),G31-Calendrier!$AS$9/2-M31,IF(AND(F31-E31>0,D31-C31=0),(F31-E31)-Calendrier!$AS$9/2-M31,IF(COUNTA(C31:F31)=4,(D31-C31)+(F31-E31)-M31-Calendrier!$AS$9,0)))) -> 0 | I31: 0 | K31: 0 | M31: 0
A32: 14 | B32: =INDIRECT(ADDRESS(MATCH($B$1,Calendrier!$A$15:$A$59,0)+14,ROW()-17,3,1,"Calendrier"),1) -> T | G32: 0 | H32: =IF(AND(K32=0.5,COUNTA(C32:F32)=4),"erreur",IF(AND(D32-C32>0,F32-E32=0),G32-Calendrier!$AS$9/2-M32,IF(AND(F32-E32>0,D32-C32=0),(F32-E32)-Calendrier!$AS$9/2-M32,IF(COUNTA(C32:F32)=4,(D32-C32)+(F32-E32)-M32-Calendrier!$AS$9,0)))) -> 0 | I32: 0 | K32: 0 | M32: 0
A33: 15 | B33: =INDIRECT(ADDRESS(MATCH($B$1,Calendrier!$A$15:$A$59,0)+14,ROW()-17,3,1,"Calendrier"),1) -> RTT | G33: 0 | H33: =IF(AND(K33=0.5,COUNTA(C33:F33)=4),"erreur",IF(AND(D33-C33>0,F33-E33=0),G33-Calendrier!$AS$9/2-M33,IF(AND(F33-E33>0,D33-C33=0),(F33-E33)-Calendrier!$AS$9/2-M33,IF(COUNTA(C33:F33)=4,(D33-C33)+(F33-E33)-M33-Calendrier!$AS$9,0)))) -> 0 | I33: 0 | J33: =IF(AND(COUNTA(C33:F33)=0,B33<>"T"),B33,IF(AND(OR(B33=$F$9,B33=$F$10),COUNTA(C33:F33=2)),"T",IF(G33>=6,"T",""))) -> RTT | K33: 0 | M33: 0
A34: 16 | B34: =INDIRECT(ADDRESS(MATCH($B$1,Calendrier!$A$15:$A$59,0)+14,ROW()-17,3,1,"Calendrier"),1) -> Sa | G34: 0 | H34: =IF(AND(K34=0.5,COUNTA(C34:F34)=4),"erreur",IF(AND(D34-C34>0,F34-E34=0),G34-Calendrier!$AS$9/2-M34,IF(AND(F34-E34>0,D34-C34=0),(F34-E34)-Calendrier!$AS$9/2-M34,IF(COUNTA(C34:F34)=4,(D34-C34)+(F34-E34)-M34-Calendrier!$AS$9,0)))) -> 0 | I34: 0 | J34: Sa | K34: 0 | M34: 0
A35: 17 | B35: =INDIRECT(ADDRESS(MATCH($B$1,Calendrier!$A$15:$A$59,0)+14,ROW()-17,3,1,"Calendrier"),1) -> Di | G35: 0 | H35: =IF(AND(K35=0.5,COUNTA(C35:F35)=4),"erreur",IF(AND(D35-C35>0,F35-E35=0),G35-Calendrier!$AS$9/2-M35,IF(AND(F35-E35>0,D35-C35=0),(F35-E35)-Calendrier!$AS$9/2-M35,IF(COUNTA(C35:F35)=4,(D35-C35)+(F35-E35)-M35-Calendrier!$AS$9,0)))) -> 0 | I35: 0 | J35: Di | K35: 0 | M35: 0
A36: 18 | B36: =INDIRECT(ADDRESS(MATCH($B$1,Calendrier!$A$15:$A$59,0)+14,ROW()-17,3,1,"Calendrier"),1) -> T | G36: 0 | H36: =IF(AND(K36=0.5,COUNTA(C36:F36)=4),"erreur",IF(AND(D36-C36>0,F36-E36=0),G36-Calendrier!$AS$9/2-M36,IF(AND(F36-E36>0,D36-C36=0),(F36-E36)-Calendrier!$AS$9/2-M36,IF(COUNTA(C36:F36)=4,(D36-C36)+(F36-E36)-M36-Calendrier!$AS$9,0)))) -> 0 | I36: 0 | K36: 0 | M36: 0
A37: 19 | B37: =INDIRECT(ADDRESS(MATCH($B$1,Calendrier!$A$15:$A$59,0)+14,ROW()-17,3,1,"Calendrier"),1) -> T | G37: 0 | H37: =IF(AND(K37=0.5,COUNTA(C37:F37)=4),"erreur",IF(AND(D37-C37>0,F37-E37=0),G37-Calendrier!$AS$9/2-M37,IF(AND(F37-E37>0,D37-C37=0),(F37-E37)-Calendrier!$AS$9/2-M37,IF(COUNTA(C37:F37)=4,(D37-C37)+(F37-E37)-M37-Calendrier!$AS$9,0)))) -> 0 | I37: 0 | K37: 0 | M37: 0
A38: 20 | B38: =INDIRECT(ADDRESS(MATCH($B$1,Calendrier!$A$15:$A$59,0)+14,ROW()-17,3,1,"Calendrier"),1) -> T | G38: 0 | H38: =IF(AND(K38=0.5,COUNTA(C38:F38)=4),"erreur",IF(AND(D38-C38>0,F38-E38=0),G38-Calendrier!$AS$9/2-M38,IF(AND(F38-E38>0,D38-C38=0),(F38-E38)-Calendrier!$AS$9/2-M38,IF(COUNTA(C38:F38)=4,(D38-C38)+(F38-E38)-M38-Calendrier!$AS$9,0)))) -> 0 | I38: 0 | K38: 0 | M38: 0
A39: 21 | B39: =INDIRECT(ADDRESS(MATCH($B$1,Calendrier!$A$15:$A$59,0)+14,ROW()-17,3,1,"Calendrier"),1) -> T | G39: 0 | H39: =IF(AND(K39=0.5,COUNTA(C39:F39)=4),"erreur",IF(AND(D39-C39>0,F39-E39=0),G39-Calendrier!$AS$9/2-M39,IF(AND(F39-E39>0,D39-C39=0),(F39-E39)-Calendrier!$AS$9/2-M39,IF(COUNTA(C39:F39)=4,(D39-C39)+(F39-E39)-M39-Calendrier!$AS$9,0)))) -> 0 | I39: 0 | K39: 0 | M39: 0
A40: 22 | B40: =INDIRECT(ADDRESS(MATCH($B$1,Calendrier!$A$15:$A$59,0)+14,ROW()-17,3,1,"Calendrier"),1) -> T | G40: 0 | H40: =IF(AND(K40=0.5,COUNTA(C40:F40)=4),"erreur",IF(AND(D40-C40>0,F40-E40=0),G40-Calendrier!$AS$9/2-M40,IF(AND(F40-E40>0,D40-C40=0),(F40-E40)-Calendrier!$AS$9/2-M40,IF(COUNTA(C40:F40)=4,(D40-C40)+(F40-E40)-M40-Calendrier!$AS$9,0)))) -> 0 | I40: 0 | K40: 0 | M40: 0
A41: 23 | B41: =INDIRECT(ADDRESS(MATCH($B$1,Calendrier!$A$15:$A$59,0)+14,ROW()-17,3,1,"Calendrier"),1) -> Sa | G41: 0 | H41: =IF(AND(K41=0.5,COUNTA(C41:F41)=4),"erreur",IF(AND(D41-C41>0,F41-E41=0),G41-Calendrier!$AS$9/2-M41,IF(AND(F41-E41>0,D41-C41=0),(F41-E41)-Calendrier!$AS$9/2-M41,IF(COUNTA(C41:F41)=4,(D41-C41)+(F41-E41)-M41-Calendrier!$AS$9,0)))) -> 0 | I41: 0 | J41: Sa | K41: 0 | M41: 0
A42: 24 | B42: =INDIRECT(ADDRESS(MATCH($B$1,Calendrier!$A$15:$A$59,0)+14,ROW()-17,3,1,"Calendrier"),1) -> Di | G42: 0 | H42: =IF(AND(K42=0.5,COUNTA(C42:F42)=4),"erreur",IF(AND(D42-C42>0,F42-E42=0),G42-Calendrier!$AS$9/2-M42,IF(AND(F42-E42>0,D42-C42=0),(F42-E42)-Calendrier!$AS$9/2-M42,IF(COUNTA(C42:F42)=4,(D42-C42)+(F42-E42)-M42-Calendrier!$AS$9,0)))) -> 0 | I42: 0 | J42: Di | K42: 0 | M42: 0
A43: 25 | B43: =INDIRECT(ADDRESS(MATCH($B$1,Calendrier!$A$15:$A$59,0)+14,ROW()-17,3,1,"Calendrier"),1) -> RTT | G43: 0 | H43: =IF(AND(K43=0.5,COUNTA(C43:F43)=4),"erreur",IF(AND(D43-C43>0,F43-E43=0),G43-Calendrier!$AS$9/2-M43,IF(AND(F43-E43>0,D43-C43=0),(F43-E43)-Calendrier!$AS$9/2-M43,IF(COUNTA(C43:F43)=4,(D43-C43)+(F43-E43)-M43-Calendrier!$AS$9,0)))) -> 0 | I43: 0 | J43: RTT | K43: 0 | M43: 0
A44: 26 | B44: =INDIRECT(ADDRESS(MATCH($B$1,Calendrier!$A$15:$A$59,0)+14,ROW()-17,3,1,"Calendrier"),1) -> T | G44: 0 | H44: =IF(AND(K44=0.5,COUNTA(C44:F44)=4),"erreur",IF(AND(D44-C44>0,F44-E44=0),G44-Calendrier!$AS$9/2-M44,IF(AND(F44-E44>0,D44-C44=0),(F44-E44)-Calendrier!$AS$9/2-M44,IF(COUNTA(C44:F44)=4,(D44-C44)+(F44-E44)-M44-Calendrier!$AS$9,0)))) -> 0 | I44: 0 | K44: 0 | M44: 0
A45: 27 | B45: =INDIRECT(ADDRESS(MATCH($B$1,Calendrier!$A$15:$A$59,0)+14,ROW()-17,3,1,"Calendrier"),1) -> T | G45: 0 | H45: =IF(AND(K45=0.5,COUNTA(C45:F45)=4),"erreur",IF(AND(D45-C45>0,F45-E45=0),G45-Calendrier!$AS$9/2-M45,IF(AND(F45-E45>0,D45-C45=0),(F45-E45)-Calendrier!$AS$9/2-M45,IF(COUNTA(C45:F45)=4,(D45-C45)+(F45-E45)-M45-Calendrier!$AS$9,0)))) -> 0 | I45: 0 | K45: 0 | M45: 0
A46: 28 | B46: =INDIRECT(ADDRESS(MATCH($B$1,Calendrier!$A$15:$A$59,0)+14,ROW()-17,3,1,"Calendrier"),1) -> T | G46: 0 | H46: =IF(AND(K46=0.5,COUNTA(C46:F46)=4),"erreur",IF(AND(D46-C46>0,F46-E46=0),G46-Calendrier!$AS$9/2-M46,IF(AND(F46-E46>0,D46-C46=0),(F46-E46)-Calendrier!$AS$9/2-M46,IF(COUNTA(C46:F46)=4,(D46-C46)+(F46-E46)-M46-Calendrier!$AS$9,0)))) -> 0 | I46: 0 | K46: 0 | M46: 0
A47: 29 | B47: =INDIRECT(ADDRESS(MATCH($B$1,Calendrier!$A$15:$A$59,0)+14,ROW()-17,3,1,"Calendrier"),1) -> T | G47: 0 | H47: =IF(AND(K47=0.5,COUNTA(C47:F47)=4),"erreur",IF(AND(D47-C47>0,F47-E47=0),G47-Calendrier!$AS$9/2-M47,IF(AND(F47-E47>0,D47-C47=0),(F47-E47)-Calendrier!$AS$9/2-M47,IF(COUNTA(C47:F47)=4,(D47-C47)+(F47-E47)-M47-Calendrier!$AS$9,0)))) -> 0 | I47: 0 | K47: 0 | M47: 0
A48: 30 | B48: =INDIRECT(ADDRESS(MATCH($B$1,Calendrier!$A$15:$A$59,0)+14,ROW()-17,3,1,"Calendrier"),1) -> Sa | G48: 0 | H48: =IF(AND(K48=0.5,COUNTA(C48:F48)=4),"erreur",IF(AND(D48-C48>0,F48-E48=0),G48-Calendrier!$AS$9/2-M48,IF(AND(F48-E48>0,D48-C48=0),(F48-E48)-Calendrier!$AS$9/2-M48,IF(COUNTA(C48:F48)=4,(D48-C48)+(F48-E48)-M48-Calendrier!$AS$9,0)))) -> 0 | I48: 0 | J48: Sa | K48: 0 | M48: 0
I49: 0 | M49: 0
H50: solde des variations | I50: =I49 -> 0
J52: =IF(G52>6,"T","") -> 

Sheet MAI
B1: =RIGHT(CELL("nomfichier",$A$1),3) -> MAI | C1: FICHE DE SUIVI HORAIRE
B3: mois : | C3: MAI | F3: année | G3: =Calendrier!A1 -> 2016 | I3: service | J3: =Calendrier!F4 -> COMPTABILITE
B5: nom : | C5: =Calendrier!F2 -> MARTIN | F5: prénom | G5: =Calendrier!F3 -> PATRICK | I5: N° Ident. | J5: =Calendrier!F1 -> N123456
H6: à réaliser | I6: cumul | J6: en cours | K6: reste | M6: n/cumul
D7: Nb J/T | E7: =Calendrier!$A$10 -> 213 | F7: =+$H$10 -> 0 | G7: =$H$12 -> 213 | H7: =Calendrier!$N$1 -> 366 | I7: =AVR!M7 -> 45 | J7: =SUM(J8:J15) -> 11 | K7: =H7-(I7+J7) -> 310 | M7: =SUM(M8:M15) -> 56
G8: CA | H8: =Calendrier!N5 -> 25 | I8: =AVR!M8 -> 0 | J8: =IF(G8="",0,COUNTIF($J$19:$J$49,G8))+IF(F8="",0,COUNTIF($J$19:$J$49,F8)/2) -> 0 | K8: =+H8-(I8+J8) -> 25 | L8: J | M8: =+I8+J8 -> 0
F9: 1/2RTT | G9: RTT | H9: =Calendrier!N8 -> 16 | I9: =AVR!M9 -> 8 | J9: =IF(G9="",0,COUNTIF($J$19:$J$49,G9))+IF(F9="",0,COUNTIF($J$19:$J$49,F9)/2) -> 1 | K9: =+H9-(I9+J9) -> 7 | L9: J | M9: 9
F10: 1/2CS | G10: CS | H10: =Calendrier!N9 -> 0 | I10: =AVR!M10 -> 0 | J10: =IF(G10="",0,COUNTIF($J$19:$J$49,G10))+IF(F10="",0,COUNTIF($J$19:$J$49,F10)/2) -> 0 | K10: =H10-(I10+J10) -> 0 | L10: J | M10: 0
G11: CP | H11: =Calendrier!N6 -> 0 | I11: =AVR!M11 -> 0 | J11: 0 | K11: =H11-(I11+J11) -> 0 | L11: J | M11: 0
F12: 1/2T | G12: T | H12: =Calendrier!N7 -> 213 | I12: =AVR!M12 -> 0 | J12: 0 | K12: =+H12-(I12+J12) -> 213 | L12: J | M12: 0
G13: Sa | H13: =Calendrier!N4 -> 53 | I13: =AVR!M13 -> 18 | J13: 4 | K13: =+H13-(I13+J13) -> 31 | L13: J | M13: 22
G14: Di | H14: =Calendrier!N3 -> 47 | I14: =AVR!M14 -> 16 | J14: 2 | K14: =+H14-(I14+J14) -> 29 | L14: J | M14: 18
G15: F | H15: =Calendrier!N2 -> 12 | I15: =AVR!M15 -> 3 | J15: 4 | K15: =+H15-(I15+J15) -> 5 | L15: J | M15: =+I15+J15 -> 7
G16: heure/avance fin mois | I16: =AVR!I50 -> 0 | M16: =I50 -> 0
B17: Prévu | C17: Entrée | D17: Sortie | E17: Entrée | F17: Sortie | G17: total J | H17: variation | I17: cumul | J17: Type | K17: nb J/T | M17: Bon E/S | N17: Sortie | O17: Retour
N18: avec bon
A19: 1 | B19: =INDIRECT(ADDRESS(MATCH($B$1,Calendrier!$A$15:$A$59,0)+14,ROW()-17,3,1,"Calendrier"),1) -> F | G19: =IF(COUNTA(C19:F19)=4,(D19-C19)+(F19-E19)-M19,IF(COUNTA(C19:D19)<2,(F19-E19)-M19,(D19-C19)-M19)) -> 0 | H19: =IF(AND(K19=0.5,COUNTA(C19:F19)=4),"erreur",IF(AND(D19-C19>0,F19-E19=0),G19-Calendrier!$AS$9/2-M19,IF(AND(F19-E19>0,D19-C19=0),(F19-E19)-Calendrier!$AS$9/2-M19,IF(COUNTA(C19:F19)=4,(D19-C19)+(F19-E19)-M19-Calendrier!$AS$9,0)))) -> 0 | I19: =+I16+H19 -> 0 | J19: =IF(AND(COUNTA(C19:F19)=0,B19<>"T"),B19,IF(AND(OR(B19=$F$9,B19=$F$10),COUNTA(C19:F19=2)),"T",IF(G19>=6,"T",""))) -> F | K19: =IF(OR(B19=$F$9,B19=$F$10),0.5,IF(G19>=6,1,0)) -> 0 | M19: =+O19-N19 -> 0
A20: 2 | B20: =INDIRECT(ADDRESS(MATCH($B$1,Calendrier!$A$15:$A$59,0)+14,ROW()-17,3,1,"Calendrier"),1) -> T | G20: 0 | H20: =IF(AND(K20=0.5,COUNTA(C20:F20)=4),"erreur",IF(AND(D20-C20>0,F20-E20=0),G20-Calendrier!$AS$9/2-M20,IF(AND(F20-E20>0,D20-C20=0),(F20-E20)-Calendrier!$AS$9/2-M20,IF(COUNTA(C20:F20)=4,(D20-C20)+(F20-E20)-M20-Calendrier!$AS$9,0)))) -> 0 | I20: =+I19+H20 -> 0 | K20: 0 | M20: =+O20-N20 -> 0
A21: 3 | B21: =INDIRECT(ADDRESS(MATCH($B$1,Calendrier!$A$15:$A$59,0)+14,ROW()-17,3,1,"Calendrier"),1) -> T | G21: 0 | H21: =IF(AND(K21=0.5,COUNTA(C21:F21)=4),"erreur",IF(AND(D21-C21>0,F21-E21=0),G21-Calendrier!$AS$9/2-M21,IF(AND(F21-E21>0,D21-C21=0),(F21-E21)-Calendrier!$AS$9/2-M21,IF(COUNTA(C21:F21)=4,(D21-C21)+(F21-E21)-M21-Calendrier!$AS$9,0)))) -> 0 | I21: 0 | K21: 0 | M21: 0
A22: 4 | B22: =INDIRECT(ADDRESS(MATCH($B$1,Calendrier!$A$15:$A$59,0)+14,ROW()-17,3,1,"Calendrier"),1) -> T | G22: 0 | H22: =IF(AND(K22=0.5,COUNTA(C22:F22)=4),"erreur",IF(AND(D22-C22>0,F22-E22=0),G22-Calendrier!$AS$9/2-M22,IF(AND(F22-E22>0,D22-C22=0),(F22-E22)-Calendrier!$AS$9/2-M22,IF(COUNTA(C22:F22)=4,(D22-C22)+(F22-E22)-M22-Calendrier!$AS$9,0)))) -> 0 | I22: 0 | K22: 0 | M22: 0
A23: 5 | B23: =INDIRECT(ADDRESS(MATCH($B$1,Calendrier!$A$15:$A$59,0)+14,ROW()-17,3,1,"Calendrier"),1) -> F | G23: 0 | H23: =IF(AND(K23=0.5,COUNTA(C23:F23)=4),"erreur",IF(AND(D23-C23>0,F23-E23=0),G23-Calendrier!$AS$9/2-M23,IF(AND(F23-E23>0,D23-C23=0),(F23-E23)-Calendrier!$AS$9/2-M23,IF(COUNTA(C23:F23)=4,(D23-C23)+(F23-E23)-M23-Calendrier!$AS$9,0)))) -> 0 | I23: 0 | J23: F | K23: =IF(OR(B23=$F$9,B23=$F$10),0.5,IF(G23>=6,1,0)) -> 0 | M23: 0
A24: 6 | B24: =INDIRECT(ADDRESS(MATCH($B$1,Calendrier!$A$15:$A$59,0)+14,ROW()-17,3,1,"Calendrier"),1) -> RTT | G24: 0 | H24: =IF(AND(K24=0.5,COUNTA(C24:F24)=4),"erreur",IF(AND(D24-C24>0,F24-E24=0),G24-Calendrier!$AS$9/2-M24,IF(AND(F24-E24>0,D24-C24=0),(F24-E24)-Calendrier!$AS$9/2-M24,IF(COUNTA(C24:F24)=4,(D24-C24)+(F24-E24)-M24-Calendrier!$AS$9,0)))) -> 0 | I24: 0 | J24: RTT | K24: 0 | M24: 0
A25: 7 | B25: =INDIRECT(ADDRESS(MATCH($B$1,Calendrier!$A$15:$A$59,0)+14,ROW()-17,3,1,"Calendrier"),1) -> Sa | G25: 0 | H25: =IF(AND(K25=0.5,COUNTA(C25:F25)=4),"erreur",IF(AND(D25-C25>0,F25-E25=0),G25-Calendrier!$AS$9/2-M25,IF(AND(F25-E25>0,D25-C25=0),(F25-E25)-Calendrier!$AS$9/2-M25,IF(COUNTA(C25:F25)=4,(D25-C25)+(F25-E25)-M25-Calendrier!$AS$9,0)))) -> 0 | I25: 0 | J25: Sa | K25: 0 | M25: 0
A26: 8 | B26: =INDIRECT(ADDRESS(MATCH($B$1,Calendrier!$A$15:$A$59,0)+14,ROW()-17,3,1,"Calendrier"),1) -> F | G26: 0 | H26: =IF(AND(K26=0.5,COUNTA(C26:F26)=4),"erreur",IF(AND(D26-C26>0,F26-E26=0),G26-Calendrier!$AS$9/2-M26,IF(AND(F26-E26>0,D26-C26=0),(F26-E26)-Calendrier!$AS$9/2-M26,IF(COUNTA(C26:F26)=4,(D26-C26)+(F26-E26)-M26-Calendrier!$AS$9,0)))) -> 0 | I26: 0 | J26: F | K26: 0 | M26: 0
A27: 9 | B27: =INDIRECT(ADDRESS(MATCH($B$1,Calendrier!$A$15:$A$59,0)+14,ROW()-17,3,1,"Calendrier"),1) -> T | G27: 0 | H27: =IF(AND(K27=0.5,COUNTA(C27:F27)=4),"erreur",IF(AND(D27-C27>0,F27-E27=0),G27-Calendrier!$AS$9/2-M27,IF(AND(F27-E27>0,D27-C27=0),(F27-E27)-Calendrier!$AS$9/2-M27,IF(COUNTA(C27:F27)=4,(D27-C27)+(F27-E27)-M27-Calendrier!$AS$9,0)))) -> 0 | I27: 0 | K27: 0 | M27: 0
A28: 10 | B28: =INDIRECT(ADDRESS(MATCH($B$1,Calendrier!$A$15:$A$59,0)+14,ROW()-17,3,1,"Calendrier"),1) -> T | G28: 0 | H28: =IF(AND(K28=0.5,COUNTA(C28:F28)=4),"erreur",IF(AND(D28-C28>0,F28-E28=0),G28-Calendrier!$AS$9/2-M28,IF(AND(F28-E28>0,D28-C28=0),(F28-E28)-Calendrier!$AS$9/2-M28,IF(COUNTA(C28:F28)=4,(D28-C28)+(F28-E28)-M28-Calendrier!$AS$9,0)))) -> 0 | I28: 0 | K28: 0 | M28: 0
A29: 11 | B29: =INDIRECT(ADDRESS(MATCH($B$1,Calendrier!$A$15:$A$59,0)+14,ROW()-17,3,1,"Calendrier"),1) -> T | G29: 0 | H29: =IF(AND(K29=0.5,COUNTA(C29:F29)=4),"erreur",IF(AND(D29-C29>0,F29-E29=0),G29-Calendrier!$AS$9/2-M29,IF(AND(F29-E29>0,D29-C29=0),(F29-E29)-Calendrier!$AS$9/2-M29,IF(COUNTA(C29:F29)=4,(D29-C29)+(F29-E29)-M29-Calendrier!$AS$9,0)))) -> 0 | I29: 0 | K29: 0 | M29: 0
A30: 12 | B30: =INDIRECT(ADDRESS(MATCH($B$1,Calendrier!$A$15:$A$59,0)+14,ROW()-17,3,1,"Calendrier"),1) -> T | G30: 0 | H30: =IF(AND(K30=0.5,COUNTA(C30:F30)=4),"erreur",IF(AND(D30-C30>0,F30-E30=0),G30-Calendrier!$AS$9/2-M30,IF(AND(F30-E30>0,D30-C30=0),(F30-E30)-Calendrier!$AS$9/2-M30,IF(COUNTA(C30:F30)=4,(D30-C30)+(F30-E30)-M30-Calendrier!$AS$9,0)))) -> 0 | I30: 0 | K30: 0 | M30: 0
A31: 13 | B31: =INDIRECT(ADDRESS(MATCH($B$1,Calendrier!$A$15:$A$59,0)+14,ROW()-17,3,1,"Calendrier"),1) -> T | G31: 0 | H31: =IF(AND(K31=0.5,COUNTA(C31:F31)=4),"erreur",IF(AND(D31-C31>0,F31-E31=0),G31-Calendrier!$AS$9/2-M31,IF(AND(F31-E31>0,D31-C31=0),(F31-E31)-Calendrier!$AS$9/2-M31,IF(COUNTA(C31:F31)=4,(D31-C31)+(F31-E31)-M31-Calendrier!$AS$9,0)))) -> 0 | I31: 0 | K31: 0 | M31: 0
A32: 14 | B32: =INDIRECT(ADDRESS(MATCH($B$1,Calendrier!$A$15:$A$59,0)+14,ROW()-17,3,1,"Calendrier"),1) -> Sa | G32: 0 | H32: =IF(AND(K32=0.5,COUNTA(C32:F32)=4),"erreur",IF(AND(D32-C32>0,F32-E32=0),G32-Calendrier!$AS$9/2-M32,IF(AND(F32-E32>0,D32-C32=0),(F32-E32)-Calendrier!$AS$9/2-M32,IF(COUNTA(C32:F32)=4,(D32-C32)+(F32-E32)-M32-Calendrier!$AS$9,0)))) -> 0 | I32: 0 | J32: Sa | K32: 0 | M32: 0
A33: 15 | B33: =INDIRECT(ADDRESS(MATCH($B$1,Calendrier!$A$15:$A$59,0)+14,ROW()-17,3,1,"Calendrier"),1) -> F | G33: 0 | H33: =IF(AND(K33=0.5,COUNTA(C33:F33)=4),"erreur",IF(AND(D33-C33>0,F33-E33=0),G33-Calendrier!$AS$9/2-M33,IF(AND(F33-E33>0,D33-C33=0),(F33-E33)-Calendrier!$AS$9/2-M33,IF(COUNTA(C33:F33)=4,(D33-C33)+(F33-E33)-M33-Calendrier!$AS$9,0)))) -> 0 | I33: 0 | J33: =IF(AND(COUNTA(C33:F33)=0,B33<>"T"),B33,IF(AND(OR(B33=$F$9,B33=$F$10),COUNTA(C33:F33=2)),"T",IF(G33>=6,"T",""))) -> F | K33: 0 | M33: 0
A34: 16 | B34: =INDIRECT(ADDRESS(MATCH($B$1,Calendrier!$A$15:$A$59,0)+14,ROW()-17,3,1,"Calendrier"),1) -> T | G34: 0 | H34: =IF(AND(K34=0.5,COUNTA(C34:F34)=4),"erreur",IF(AND(D34-C34>0,F34-E34=0),G34-Calendrier!$AS$9/2-M34,IF(AND(F34-E34>0,D34-C34=0),(F34-E34)-Calendrier!$AS$9/2-M34,IF(COUNTA(C34:F34)=4,(D34-C34)+(F34-E34)-M34-Calendrier!$AS$9,0)))) -> 0 | I34: 0 | K34: 0 | M34: 0
A35: 17 | B35: =INDIRECT(ADDRESS(MATCH($B$1,Calendrier!$A$15:$A$59,0)+14,ROW()-17,3,1,"Calendrier"),1) -> T | G35: 0 | H35: =IF(AND(K35=0.5,COUNTA(C35:F35)=4),"erreur",IF(AND(D35-C35>0,F35-E35=0),G35-Calendrier!$AS$9/2-M35,IF(AND(F35-E35>0,D35-C35=0),(F35-E35)-Calendrier!$AS$9/2-M35,IF(COUNTA(C35:F35)=4,(D35-C35)+(F35-E35)-M35-Calendrier!$AS$9,0)))) -> 0 | I35: 0 | K35: 0 | M35: 0
A36: 18 | B36: =INDIRECT(ADDRESS(MATCH($B$1,Calendrier!$A$15:$A$59,0)+14,ROW()-17,3,1,"Calendrier"),1) -> T | G36: 0 | H36: =IF(AND(K36=0.5,COUNTA(C36:F36)=4),"erreur",IF(AND(D36-C36>0,F36-E36=0),G36-Calendrier!$AS$9/2-M36,IF(AND(F36-E36>0,D36-C36=0),(F36-E36)-Calendrier!$AS$9/2-M36,IF(COUNTA(C36:F36)=4,(D36-C36)+(F36-E36)-M36-Calendrier!$AS$9,0)))) -> 0 | I36: 0 | K36: 0 | M36: 0
A37: 19 | B37: =INDIRECT(ADDRESS(MATCH($B$1,Calendrier!$A$15:$A$59,0)+14,ROW()-17,3,1,"Calendrier"),1) -> T | G37: 0 | H37: =IF(AND(K37=0.5,COUNTA(C37:F37)=4),"erreur",IF(AND(D37-C37>0,F37-E37=0),G37-Calendrier!$AS$9/2-M37,IF(AND(F37-E37>0,D37-C37=0),(F37-E37)-Calendrier!$AS$9/2-M37,IF(COUNTA(C37:F37)=4,(D37-C37)+(F37-E37)-M37-Calendrier!$AS$9,0)))) -> 0 | I37: 0 | K37: 0 | M37: 0
A38: 20 | B38: =INDIRECT(ADDRESS(MATCH($B$1,Calendrier!$A$15:$A$59,0)+14,ROW()-17,3,1,"Calendrier"),1) -> T | G38: 0 | H38: =IF(AND(K38=0.5,COUNTA(C38:F38)=4),"erreur",IF(AND(D38-C38>0,F38-E38=0),G38-Calendrier!$AS$9/2-M38,IF(AND(F38-E38>0,D38-C38=0),(F38-E38)-Calendrier!$AS$9/2-M38,IF(COUNTA(C38:F38)=4,(D38-C38)+(F38-E38)-M38-Calendrier!$AS$9,0)))) -> 0 | I38: 0 | K38: 0 | M38: 0
A39: 21 | B39: =INDIRECT(ADDRESS(MATCH($B$1,Calendrier!$A$15:$A$59,0)+14,ROW()-17,3,1,"Calendrier"),1) -> Sa | G39: 0 | H39: =IF(AND(K39=0.5,COUNTA(C39:F39)=4),"erreur",IF(AND(D39-C39>0,F39-E39=0),G39-Calendrier!$AS$9/2-M39,IF(AND(F39-E39>0,D39-C39=0),(F39-E39)-Calendrier!$AS$9/2-M39,IF(COUNTA(C39:F39)=4,(D39-C39)+(F39-E39)-M39-Calendrier!$AS$9,0)))) -> 0 | I39: 0 | J39: Sa | K39: 0 | M39: 0
A40: 22 | B40: =INDIRECT(ADDRESS(MATCH($B$1,Calendrier!$A$15:$A$59,0)+14,ROW()-17,3,1,"Calendrier"),1) -> Di | G40: 0 | H40: =IF(AND(K40=0.5,COUNTA(C40:F40)=4),"erreur",IF(AND(D40-C40>0,F40-E40=0),G40-Calendrier!$AS$9/2-M40,IF(AND(F40-E40>0,D40-C40=0),(F40-E40)-Calendrier!$AS$9/2-M40,IF(COUNTA(C40:F40)=4,(D40-C40)+(F40-E40)-M40-Calendrier!$AS$9,0)))) -> 0 | I40: 0 | J40: Di | K40: 0 | M40: 0
A41: 23 | B41: =INDIRECT(ADDRESS(MATCH($B$1,Calendrier!$A$15:$A$59,0)+14,ROW()-17,3,1,"Calendrier"),1) -> T | G41: 0 | H41: =IF(AND(K41=0.5,COUNTA(C41:F41)=4),"erreur",IF(AND(D41-C41>0,F41-E41=0),G41-Calendrier!$AS$9/2-M41,IF(AND(F41-E41>0,D41-C41=0),(F41-E41)-Calendrier!$AS$9/2-M41,IF(COUNTA(C41:F41)=4,(D41-C41)+(F41-E41)-M41-Calendrier!$AS$9,0)))) -> 0 | I41: 0 | K41: 0 | M41: 0
A42: 24 | B42: =INDIRECT(ADDRESS(MATCH($B$1,Calendrier!$A$15:$A$59,0)+14,ROW()-17,3,1,"Calendrier"),1) -> T | G42: 0 | H42: =IF(AND(K42=0.5,COUNTA(C42:F42)=4),"erreur",IF(AND(D42-C42>0,F42-E42=0),G42-Calendrier!$AS$9/2-M42,IF(AND(F42-E42>0,D42-C42=0),(F42-E42)-Calendrier!$AS$9/2-M42,IF(COUNTA(C42:F42)=4,(D42-C42)+(F42-E42)-M42-Calendrier!$AS$9,0)))) -> 0 | I42: 0 | K42: 0 | M42: 0
A43: 25 | B43: =INDIRECT(ADDRESS(MATCH($B$1,Calendrier!$A$15:$A$59,0)+14,ROW()-17,3,1,"Calendrier"),1) -> T | G43: 0 | H43: =IF(AND(K43=0.5,COUNTA(C43:F43)=4),"erreur",IF(AND(D43-C43>0,F43-E43=0),G43-Calendrier!$AS$9/2-M43,IF(AND(F43-E43>0,D43-C43=0),(F43-E43)-Calendrier!$AS$9/2-M43,IF(COUNTA(C43:F43)=4,(D43-C43)+(F43-E43)-M43-Calendrier!$AS$9,0)))) -> 0 | I43: 0 | K43: 0 | M43: 0
A44: 26 | B44: =INDIRECT(ADDRESS(MATCH($B$1,Calendrier!$A$15:$A$59,0)+14,ROW()-17,3,1,"Calendrier"),1) -> T | G44: 0 | H44: =IF(AND(K44=0.5,COUNTA(C44:F44)=4),"erreur",IF(AND(D44-C44>0,F44-E44=0),G44-Calendrier!$AS$9/2-M44,IF(AND(F44-E44>0,D44-C44=0),(F44-E44)-Calendrier!$AS$9/2-M44,IF(COUNTA(C44:F44)=4,(D44-C44)+(F44-E44)-M44-Calendrier!$AS$9,0)))) -> 0 | I44: 0 | K44: 0 | M44: 0
A45: 27 | B45: =INDIRECT(ADDRESS(MATCH($B$1,Calendrier!$A$15:$A$59,0)+14,ROW()-17,3,1,"Calendrier"),1) -> T | G45: 0 | H45: =IF(AND(K45=0.5,COUNTA(C45:F45)=4),"erreur",IF(AND(D45-C45>0,F45-E45=0),G45-Calendrier!$AS$9/2-M45,IF(AND(F45-E45>0,D45-C45=0),(F45-E45)-Calendrier!$AS$9/2-M45,IF(COUNTA(C45:F45)=4,(D45-C45)+(F45-E45)-M45-Calendrier!$AS$9,0)))) -> 0 | I45: 0 | K45: 0 | M45: 0
A46: 28 | B46: =INDIRECT(ADDRESS(MATCH($B$1,Calendrier!$A$15:$A$59,0)+14,ROW()-17,3,1,"Calendrier"),1) -> Sa | G46: 0 | H46: =IF(AND(K46=0.5,COUNTA(C46:F46)=4),"erreur",IF(AND(D46-C46>0,F46-E46=0),G46-Calendrier!$AS$9/2-M46,IF(AND(F46-E46>0,D46-C46=0),(F46-E46)-Calendrier!$AS$9/2-M46,IF(COUNTA(C46:F46)=4,(D46-C46)+(F46-E46)-M46-Calendrier!$AS$9,0)))) -> 0 | I46: 0 | J46: Sa | K46: 0 | M46: 0
A47: 29 | B47: =INDIRECT(ADDRESS(MATCH($B$1,Calendrier!$A$15:$A$59,0)+14,ROW()-17,3,1,"Calendrier"),1) -> Di | G47: 0 | H47: =IF(AND(K47=0.5,COUNTA(C47:F47)=4),"erreur",IF(AND(D47-C47>0,F47-E47=0),G47-Calendrier!$AS$9/2-M47,IF(AND(F47-E47>0,D47-C47=0),(F47-E47)-Calendrier!$AS$9/2-M47,IF(COUNTA(C47:F47)=4,(D47-C47)+(F47-E47)-M47-Calendrier!$AS$9,0)))) -> 0 | I47: 0 | J47: Di | K47: 0 | M47: 0
A48: 30 | B48: =INDIRECT(ADDRESS(MATCH($B$1,Calendrier!$A$15:$A$59,0)+14,ROW()-17,3,1,"Calendrier"),1) -> T | G48: 0 | H48: =IF(AND(K48=0.5,COUNTA(C48:F48)=4),"erreur",IF(AND(D48-C48>0,F48-E48=0),G48-Calendrier!$AS$9/2-M48,IF(AND(F48-E48>0,D48-C48=0),(F48-E48)-Calendrier!$AS$9/2-M48,IF(COUNTA(C48:F48)=4,(D48-C48)+(F48-E48)-M48-Calendrier!$AS$9,0)))) -> 0 | I48: 0 | K48: 0 | M48: 0
A49: 31 | B49: =INDIRECT(ADDRESS(MATCH($B$1,Calendrier!$A$15:$A$59,0)+14,ROW()-17,3,1,"Calendrier"),1) -> T | G49: 0 | H49: =IF(AND(K49=0.5,COUNTA(C49:F49)=4),"erreur",IF(AND(D49-C49>0,F49-E49=0),G49-Calendrier!$AS$9/2-M49,IF(AND(F49-E49>0,D49-C49=0),(F49-E49)-Calendrier!$AS$9/2-M49,IF(COUNTA(C49:F49)=4,(D49-C49)+(F49-E49)-M49-Calendrier!$AS$9,0)))) -> 0 | I49: 0 | K49: 0 | M49: 0
H50: solde des variations | I50: =I49 -> 0

Sheet JUN
B1: =RIGHT(CELL("nomfichier",$A$1),3) -> JUN | C1: FICHE DE SUIVI HORAIRE
B3: mois : | C3: JUIN | F3: année | G3: =Calendrier!A1 -> 2016 | I3: service | J3: =Calendrier!F4 -> COMPTABILITE
B5: nom : | C5: =Calendrier!F2 -> MARTIN | F5: prénom | G5: =Calendrier!F3 -> PATRICK | I5: N° Ident. | J5: =Calendrier!F1 -> N123456
H6: à réaliser | I6: cumul | J6: en cours | K6: reste | M6: n/cumul
D7: Nb J/T | E7: =Calendrier!$A$10 -> 213 | F7: =+$H$10 -> 0 | G7: =$H$12 -> 213 | H7: =Calendrier!$N$1 -> 366 | I7: =MAI!M7 -> 56 | J7: =SUM(J8:J15) -> 10 | K7: =H7-(I7+J7) -> 300 | M7: =SUM(M8:M15) -> 66
G8: CA | H8: =Calendrier!N5 -> 25 | I8: =MAI!M8 -> 0 | J8: =IF(G8="",0,COUNTIF($J$19:$J$49,G8))+IF(F8="",0,COUNTIF($J$19:$J$49,F8)/2) -> 0 | K8: =+H8-(I8+J8) -> 25 | L8: J | M8: =+I8+J8 -> 0
F9: 1/2RTT | G9: RTT | H9: =Calendrier!N8 -> 16 | I9: =MAI!M9 -> 9 | J9: =IF(G9="",0,COUNTIF($J$19:$J$49,G9))+IF(F9="",0,COUNTIF($J$19:$J$49,F9)/2) -> 2 | K9: =+H9-(I9+J9) -> 5 | L9: J | M9: 11
F10: 1/2CS | G10: CS | H10: =Calendrier!N9 -> 0 | I10: =MAI!M10 -> 0 | J10: =IF(G10="",0,COUNTIF($J$19:$J$49,G10))+IF(F10="",0,COUNTIF($J$19:$J$49,F10)/2) -> 0 | K10: =H10-(I10+J10) -> 0 | L10: J | M10: 0
G11: CP | H11: =Calendrier!N6 -> 0 | I11: =MAI!M11 -> 0 | J11: 0 | K11: =H11-(I11+J11) -> 0 | L11: J | M11: 0
F12: 1/2T | G12: T | H12: =Calendrier!N7 -> 213 | I12: =MAI!M12 -> 0 | J12: 0 | K12: =+H12-(I12+J12) -> 213 | L12: J | M12: 0
G13: Sa | H13: =Calendrier!N4 -> 53 | I13: =MAI!M13 -> 22 | J13: 4 | K13: =+H13-(I13+J13) -> 27 | L13: J | M13: 26
G14: Di | H14: =Calendrier!N3 -> 47 | I14: =MAI!M14 -> 18 | J14: 4 | K14: =+H14-(I14+J14) -> 25 | L14: J | M14: 22
G15: F | H15: =Calendrier!N2 -> 12 | I15: =MAI!M15 -> 7 | J15: 0 | K15: =+H15-(I15+J15) -> 5 | L15: J | M15: =+I15+J15 -> 7
G16: heure/avance fin mois | I16: =MAI!I50 -> 0 | M16: =I50 -> 0
B17: Prévu | C17: Entrée | D17: Sortie | E17: Entrée | F17: Sortie | G17: total J | H17: variation | I17: cumul | J17: Type | K17: nb J/T | M17: Bon E/S | N17: Sortie | O17: Retour
N18: avec bon
A19: 1 | B19: =INDIRECT(ADDRESS(MATCH($B$1,Calendrier!$A$15:$A$59,0)+14,ROW()-17,3,1,"Calendrier"),1) -> T | G19: =IF(COUNTA(C19:F19)=4,(D19-C19)+(F19-E19)-M19,IF(COUNTA(C19:D19)<2,(F19-E19)-M19,(D19-C19)-M19)) -> 0 | H19: =IF(AND(K19=0.5,COUNTA(C19:F19)=4),"erreur",IF(AND(D19-C19>0,F19-E19=0),G19-Calendrier!$AS$9/2-M19,IF(AND(F19-E19>0,D19-C19=0),(F19-E19)-Calendrier!$AS$9/2-M19,IF(COUNTA(C19:F19)=4,(D19-C19)+(F19-E19)-M19-Calendrier!$AS$9,0)))) -> 0 | I19: =+I16+H19 -> 0 | J19: =IF(AND(COUNTA(C19:F19)=0,B19<>"T"),B19,IF(AND(OR(B19=$F$9,B19=$F$10),COUNTA(C19:F19=2)),"T",IF(G19>=6,"T",""))) ->  | K19: =IF(OR(B19=$F$9,B19=$F$10),0.5,IF(G19>=6,1,0)) -> 0 | M19: =+O19-N19 -> 0
A20: 2 | B20: =INDIRECT(ADDRESS(MATCH($B$1,Calendrier!$A$15:$A$59,0)+14,ROW()-17,3,1,"Calendrier"),1) -> T | G20: 0 | H20: =IF(AND(K20=0.5,COUNTA(C20:F20)=4),"erreur",IF(AND(D20-C20>0,F20-E20=0),G20-Calendrier!$AS$9/2-M20,IF(AND(F20-E20>0,D20-C20=0),(F20-E20)-Calendrier!$AS$9/2-M20,IF(COUNTA(C20:F20)=4,(D20-C20)+(F20-E20)-M20-Calendrier!$AS$9,0)))) -> 0 | I20: =+I19+H20 -> 0 | K20: 0 | M20: =+O20-N20 -> 0
A21: 3 | B21: =INDIRECT(ADDRESS(MATCH($B$1,Calendrier!$A$15:$A$59,0)+14,ROW()-17,3,1,"Calendrier"),1) -> T | G21: 0 | H21: =IF(AND(K21=0.5,COUNTA(C21:F21)=4),"erreur",IF(AND(D21-C21>0,F21-E21=0),G21-Calendrier!$AS$9/2-M21,IF(AND(F21-E21>0,D21-C21=0),(F21-E21)-Calendrier!$AS$9/2-M21,IF(COUNTA(C21:F21)=4,(D21-C21)+(F21-E21)-M21-Calendrier!$AS$9,0)))) -> 0 | I21: 0 | K21: 0 | M21: 0
A22: 4 | B22: =INDIRECT(ADDRESS(MATCH($B$1,Calendrier!$A$15:$A$59,0)+14,ROW()-17,3,1,"Calendrier"),1) -> Sa | G22: 0 | H22: =IF(AND(K22=0.5,COUNTA(C22:F22)=4),"erreur",IF(AND(D22-C22>0,F22-E22=0),G22-Calendrier!$AS$9/2-M22,IF(AND(F22-E22>0,D22-C22=0),(F22-E22)-Calendrier!$AS$9/2-M22,IF(COUNTA(C22:F22)=4,(D22-C22)+(F22-E22)-M22-Calendrier!$AS$9,0)))) -> 0 | I22: 0 | J22: Sa | K22: 0 | M22: 0
A23: 5 | B23: =INDIRECT(ADDRESS(MATCH($B$1,Calendrier!$A$15:$A$59,0)+14,ROW()-17,3,1,"Calendrier"),1) -> Di | G23: 0 | H23: =IF(AND(K23=0.5,COUNTA(C23:F23)=4),"erreur",IF(AND(D23-C23>0,F23-E23=0),G23-Calendrier!$AS$9/2-M23,IF(AND(F23-E23>0,D23-C23=0),(F23-E23)-Calendrier!$AS$9/2-M23,IF(COUNTA(C23:F23)=4,(D23-C23)+(F23-E23)-M23-Calendrier!$AS$9,0)))) -> 0 | I23: 0 | J23: Di | K23: =IF(OR(B23=$F$9,B23=$F$10),0.5,IF(G23>=6,1,0)) -> 0 | M23: 0
A24: 6 | B24: =INDIRECT(ADDRESS(MATCH($B$1,Calendrier!$A$15:$A$59,0)+14,ROW()-17,3,1,"Calendrier"),1) -> T | G24: 0 | H24: =IF(AND(K24=0.5,COUNTA(C24:F24)=4),"erreur",IF(AND(D24-C24>0,F24-E24=0),G24-Calendrier!$AS$9/2-M24,IF(AND(F24-E24>0,D24-C24=0),(F24-E24)-Calendrier!$AS$9/2-M24,IF(COUNTA(C24:F24)=4,(D24-C24)+(F24-E24)-M24-Calendrier!$AS$9,0)))) -> 0 | I24: 0 | K24: 0 | M24: 0
A25: 7 | B25: =INDIRECT(ADDRESS(MATCH($B$1,Calendrier!$A$15:$A$59,0)+14,ROW()-17,3,1,"Calendrier"),1) -> T | G25: 0 | H25: =IF(AND(K25=0.5,COUNTA(C25:F25)=4),"erreur",IF(AND(D25-C25>0,F25-E25=0),G25-Calendrier!$AS$9/2-M25,IF(AND(F25-E25>0,D25-C25=0),(F25-E25)-Calendrier!$AS$9/2-M25,IF(COUNTA(C25:F25)=4,(D25-C25)+(F25-E25)-M25-Calendrier!$AS$9,0)))) -> 0 | I25: 0 | K25: 0 | M25: 0
A26: 8 | B26: =INDIRECT(ADDRESS(MATCH($B$1,Calendrier!$A$15:$A$59,0)+14,ROW()-17,3,1,"Calendrier"),1) -> T | G26: 0 | H26: =IF(AND(K26=0.5,COUNTA(C26:F26)=4),"erreur",IF(AND(D26-C26>0,F26-E26=0),G26-Calendrier!$AS$9/2-M26,IF(AND(F26-E26>0,D26-C26=0),(F26-E26)-Calendrier!$AS$9/2-M26,IF(COUNTA(C26:F26)=4,(D26-C26)+(F26-E26)-M26-Calendrier!$AS$9,0)))) -> 0 | I26: 0 | K26: 0 | M26: 0
A27: 9 | B27: =INDIRECT(ADDRESS(MATCH($B$1,Calendrier!$A$15:$A$59,0)+14,ROW()-17,3,1,"Calendrier"),1) -> T | G27: 0 | H27: =IF(AND(K27=0.5,COUNTA(C27:F27)=4),"erreur",IF(AND(D27-C27>0,F27-E27=0),G27-Calendrier!$AS$9/2-M27,IF(AND(F27-E27>0,D27-C27=0),(F27-E27)-Calendrier!$AS$9/2-M27,IF(COUNTA(C27:F27)=4,(D27-C27)+(F27-E27)-M27-Calendrier!$AS$9,0)))) -> 0 | I27: 0 | K27: 0 | M27: 0
A28: 10 | B28: =INDIRECT(ADDRESS(MATCH($B$1,Calendrier!$A$15:$A$59,0)+14,ROW()-17,3,1,"Calendrier"),1) -> RTT | G28: 0 | H28: =IF(AND(K28=0.5,COUNTA(C28:F28)=4),"erreur",IF(AND(D28-C28>0,F28-E28=0),G28-Calendrier!$AS$9/2-M28,IF(AND(F28-E28>0,D28-C28=0),(F28-E28)-Calendrier!$AS$9/2-M28,IF(COUNTA(C28:F28)=4,(D28-C28)+(F28-E28)-M28-Calendrier!$AS$9,0)))) -> 0 | I28: 0 | J28: RTT | K28: 0 | M28: 0
A29: 11 | B29: =INDIRECT(ADDRESS(MATCH($B$1,Calendrier!$A$15:$A$59,0)+14,ROW()-17,3,1,"Calendrier"),1) -> Sa | G29: 0 | H29: =IF(AND(K29=0.5,COUNTA(C29:F29)=4),"erreur",IF(AND(D29-C29>0,F29-E29=0),G29-Calendrier!$AS$9/2-M29,IF(AND(F29-E29>0,D29-C29=0),(F29-E29)-Calendrier!$AS$9/2-M29,IF(COUNTA(C29:F29)=4,(D29-C29)+(F29-E29)-M29-Calendrier!$AS$9,0)))) -> 0 | I29: 0 | J29: Sa | K29: 0 | M29: 0
A30: 12 | B30: =INDIRECT(ADDRESS(MATCH($B$1,Calendrier!$A$15:$A$59,0)+14,ROW()-17,3,1,"Calendrier"),1) -> Di | G30: 0 | H30: =IF(AND(K30=0.5,COUNTA(C30:F30)=4),"erreur",IF(AND(D30-C30>0,F30-E30=0),G30-Calendrier!$AS$9/2-M30,IF(AND(F30-E30>0,D30-C30=0),(F30-E30)-Calendrier!$AS$9/2-M30,IF(COUNTA(C30:F30)=4,(D30-C30)+(F30-E30)-M30-Calendrier!$AS$9,0)))) -> 0 | I30: 0 | J30: Di | K30: 0 | M30: 0
A31: 13 | B31: =INDIRECT(ADDRESS(MATCH($B$1,Calendrier!$A$15:$A$59,0)+14,ROW()-17,3,1,"Calendrier"),1) -> T | G31: 0 | H31: =IF(AND(K31=0.5,COUNTA(C31:F31)=4),"erreur",IF(AND(D31-C31>0,F31-E31=0),G31-Calendrier!$AS$9/2-M31,IF(AND(F31-E31>0,D31-C31=0),(F31-E31)-Calendrier!$AS$9/2-M31,IF(COUNTA(C31:F31)=4,(D31-C31)+(F31-E31)-M31-Calendrier!$AS$9,0)))) -> 0 | I31: 0 | K31: 0 | M31: 0
A32: 14 | B32: =INDIRECT(ADDRESS(MATCH($B$1,Calendrier!$A$15:$A$59,0)+14,ROW()-17,3,1,"Calendrier"),1) -> T | G32: 0 | H32: =IF(AND(K32=0.5,COUNTA(C32:F32)=4),"erreur",IF(AND(D32-C32>0,F32-E32=0),G32-Calendrier!$AS$9/2-M32,IF(AND(F32-E32>0,D32-C32=0),(F32-E32)-Calendrier!$AS$9/2-M32,IF(COUNTA(C32:F32)=4,(D32-C32)+(F32-E32)-M32-Calendrier!$AS$9,0)))) -> 0 | I32: 0 | K32: 0 | M32: 0
A33: 15 | B33: =INDIRECT(ADDRESS(MATCH($B$1,Calendrier!$A$15:$A$59,0)+14,ROW()-17,3,1,"Calendrier"),1) -> T | G33: 0 | H33: =IF(AND(K33=0.5,COUNTA(C33:F33)=4),"erreur",IF(AND(D33-C33>0,F33-E33=0),G33-Calendrier!$AS$9/2-M33,IF(AND(F33-E33>0,D33-C33=0),(F33-E33)-Calendrier!$AS$9/2-M33,IF(COUNTA(C33:F33)=4,(D33-C33)+(F33-E33)-M33-Calendrier!$AS$9,0)))) -> 0 | I33: 0 | J33: =IF(AND(COUNTA(C33:F33)=0,B33<>"T"),B33,IF(AND(OR(B33=$F$9,B33=$F$10),COUNTA(C33:F33=2)),"T",IF(G33>=6,"T",""))) ->  | K33: 0 | M33: 0
A34: 16 | B34: =INDIRECT(ADDRESS(MATCH($B$1,Calendrier!$A$15:$A$59,0)+14,ROW()-17,3,1,"Calendrier"),1) -> T | G34: 0 | H34: =IF(AND(K34=0.5,COUNTA(C34:F34)=4),"erreur",IF(AND(D34-C34>0,F34-E34=0),G34-Calendrier!$AS$9/2-M34,IF(AND(F34-E34>0,D34-C34=0),(F34-E34)-Calendrier!$AS$9/2-M34,IF(COUNTA(C34:F34)=4,(D34-C34)+(F34-E34)-M34-Calendrier!$AS$9,0)))) -> 0 | I34: 0 | K34: 0 | M34: 0
A35: 17 | B35: =INDIRECT(ADDRESS(MATCH($B$1,Calendrier!$A$15:$A$59,0)+14,ROW()-17,3,1,"Calendrier"),1) -> RTT | G35: 0 | H35: =IF(AND(K35=0.5,COUNTA(C35:F35)=4),"erreur",IF(AND(D35-C35>0,F35-E35=0),G35-Calendrier!$AS$9/2-M35,IF(AND(F35-E35>0,D35-C35=0),(F35-E35)-Calendrier!$AS$9/2-M35,IF(COUNTA(C35:F35)=4,(D35-C35)+(F35-E35)-M35-Calendrier!$AS$9,0)))) -> 0 | I35: 0 | J35: RTT | K35: 0 | M35: 0
A36: 18 | B36: =INDIRECT(ADDRESS(MATCH($B$1,Calendrier!$A$15:$A$59,0)+14,ROW()-17,3,1,"Calendrier"),1) -> Sa | G36: 0 | H36: =IF(AND(K36=0.5,COUNTA(C36:F36)=4),"erreur",IF(AND(D36-C36>0,F36-E36=0),G36-Calendrier!$AS$9/2-M36,IF(AND(F36-E36>0,D36-C36=0),(F36-E36)-Calendrier!$AS$9/2-M36,IF(COUNTA(C36:F36)=4,(D36-C36)+(F36-E36)-M36-Calendrier!$AS$9,0)))) -> 0 | I36: 0 | J36: Sa | K36: 0 | M36: 0
A37: 19 | B37: =INDIRECT(ADDRESS(MATCH($B$1,Calendrier!$A$15:$A$59,0)+14,ROW()-17,3,1,"Calendrier"),1) -> Di | G37: 0 | H37: =IF(AND(K37=0.5,COUNTA(C37:F37)=4),"erreur",IF(AND(D37-C37>0,F37-E37=0),G37-Calendrier!$AS$9/2-M37,IF(AND(F37-E37>0,D37-C37=0),(F37-E37)-Calendrier!$AS$9/2-M37,IF(COUNTA(C37:F37)=4,(D37-C37)+(F37-E37)-M37-Calendrier!$AS$9,0)))) -> 0 | I37: 0 | J37: Di | K37: 0 | M37: 0
A38: 20 | B38: =INDIRECT(ADDRESS(MATCH($B$1,Calendrier!$A$15:$A$59,0)+14,ROW()-17,3,1,"Calendrier"),1) -> T | G38: 0 | H38: =IF(AND(K38=0.5,COUNTA(C38:F38)=4),"erreur",IF(AND(D38-C38>0,F38-E38=0),G38-Calendrier!$AS$9/2-M38,IF(AND(F38-E38>0,D38-C38=0),(F38-E38)-Calendrier!$AS$9/2-M38,IF(COUNTA(C38:F38)=4,(D38-C38)+(F38-E38)-M38-Calendrier!$AS$9,0)))) -> 0 | I38: 0 | K38: 0 | M38: 0
A39: 21 | B39: =INDIRECT(ADDRESS(MATCH($B$1,Calendrier!$A$15:$A$59,0)+14,ROW()-17,3,1,"Calendrier"),1) -> T | G39: 0 | H39: =IF(AND(K39=0.5,COUNTA(C39:F39)=4),"erreur",IF(AND(D39-C39>0,F39-E39=0),G39-Calendrier!$AS$9/2-M39,IF(AND(F39-E39>0,D39-C39=0),(F39-E39)-Calendrier!$AS$9/2-M39,IF(COUNTA(C39:F39)=4,(D39-C39)+(F39-E39)-M39-Calendrier!$AS$9,0)))) -> 0 | I39: 0 | K39: 0 | M39: 0
A40: 22 | B40: =INDIRECT(ADDRESS(MATCH($B$1,Calendrier!$A$15:$A$59,0)+14,ROW()-17,3,1,"Calendrier"),1) -> T | G40: 0 | H40: =IF(AND(K40=0.5,COUNTA(C40:F40)=4),"erreur",IF(AND(D40-C40>0,F40-E40=0),G40-Calendrier!$AS$9/2-M40,IF(AND(F40-E40>0,D40-C40=0),(F40-E40)-Calendrier!$AS$9/2-M40,IF(COUNTA(C40:F40)=4,(D40-C40)+(F40-E40)-M40-Calendrier!$AS$9,0)))) -> 0 | I40: 0 | K40: 0 | M40: 0
A41: 23 | B41: =INDIRECT(ADDRESS(MATCH($B$1,Calendrier!$A$15:$A$59,0)+14,ROW()-17,3,1,"Calendrier"),1) -> T | G41: 0 | H41: =IF(AND(K41=0.5,COUNTA(C41:F41)=4),"erreur",IF(AND(D41-C41>0,F41-E41=0),G41-Calendrier!$AS$9/2-M41,IF(AND(F41-E41>0,D41-C41=0),(F41-E41)-Calendrier!$AS$9/2-M41,IF(COUNTA(C41:F41)=4,(D41-C41)+(F41-E41)-M41-Calendrier!$AS$9,0)))) -> 0 | I41: 0 | K41: 0 | M41: 0
A42: 24 | B42: =INDIRECT(ADDRESS(MATCH($B$1,Calendrier!$A$15:$A$59,0)+14,ROW()-17,3,1,"Calendrier"),1) -> T | G42: 0 | H42: =IF(AND(K42=0.5,COUNTA(C42:F42)=4),"erreur",IF(AND(D42-C42>0,F42-E42=0),G42-Calendrier!$AS$9/2-M42,IF(AND(F42-E42>0,D42-C42=0),(F42-E42)-Calendrier!$AS$9/2-M42,IF(COUNTA(C42:F42)=4,(D42-C42)+(F42-E42)-M42-Calendrier!$AS$9,0)))) -> 0 | I42: 0 | K42: 0 | M42: 0
A43: 25 | B43: =INDIRECT(ADDRESS(MATCH($B$1,Calendrier!$A$15:$A$59,0)+14,ROW()-17,3,1,"Calendrier"),1) -> Sa | G43: 0 | H43: =IF(AND(K43=0.5,COUNTA(C43:F43)=4),"erreur",IF(AND(D43-C43>0,F43-E43=0),G43-Calendrier!$AS$9/2-M43,IF(AND(F43-E43>0,D43-C43=0),(F43-E43)-Calendrier!$AS$9/2-M43,IF(COUNTA(C43:F43)=4,(D43-C43)+(F43-E43)-M43-Calendrier!$AS$9,0)))) -> 0 | I43: 0 | J43: Sa | K43: 0 | M43: 0
A44: 26 | B44: =INDIRECT(ADDRESS(MATCH($B$1,Calendrier!$A$15:$A$59,0)+14,ROW()-17,3,1,"Calendrier"),1) -> Di | G44: 0 | H44: =IF(AND(K44=0.5,COUNTA(C44:F44)=4),"erreur",IF(AND(D44-C44>0,F44-E44=0),G44-Calendrier!$AS$9/2-M44,IF(AND(F44-E44>0,D44-C44=0),(F44-E44)-Calendrier!$AS$9/2-M44,IF(COUNTA(C44:F44)=4,(D44-C44)+(F44-E44)-M44-Calendrier!$AS$9,0)))) -> 0 | I44: 0 | J44: Di | K44: 0 | M44: 0
A45: 27 | B45: =INDIRECT(ADDRESS(MATCH($B$1,Calendrier!$A$15:$A$59,0)+14,ROW()-17,3,1,"Calendrier"),1) -> T | G45: 0 | H45: =IF(AND(K45=0.5,COUNTA(C45:F45)=4),"erreur",IF(AND(D45-C45>0,F45-E45=0),G45-Calendrier!$AS$9/2-M45,IF(AND(F45-E45>0,D45-C45=0),(F45-E45)-Calendrier!$AS$9/2-M45,IF(COUNTA(C45:F45)=4,(D45-C45)+(F45-E45)-M45-Calendrier!$AS$9,0)))) -> 0 | I45: 0 | K45: 0 | M45: 0
A46: 28 | B46: =INDIRECT(ADDRESS(MATCH($B$1,Calendrier!$A$15:$A$59,0)+14,ROW()-17,3,1,"Calendrier"),1) -> T | G46: 0 | H46: =IF(AND(K46=0.5,COUNTA(C46:F46)=4),"erreur",IF(AND(D46-C46>0,F46-E46=0),G46-Calendrier!$AS$9/2-M46,IF(AND(F46-E46>0,D46-C46=0),(F46-E46)-Calendrier!$AS$9/2-M46,IF(COUNTA(C46:F46)=4,(D46-C46)+(F46-E46)-M46-Calendrier!$AS$9,0)))) -> 0 | I46: 0 | K46: 0 | M46: 0
A47: 29 | B47: =INDIRECT(ADDRESS(MATCH($B$1,Calendrier!$A$15:$A$59,0)+14,ROW()-17,3,1,"Calendrier"),1) -> T | G47: 0 | H47: =IF(AND(K47=0.5,COUNTA(C47:F47)=4),"erreur",IF(AND(D47-C47>0,F47-E47=0),G47-Calendrier!$AS$9/2-M47,IF(AND(F47-E47>0,D47-C47=0),(F47-E47)-Calendrier!$AS$9/2-M47,IF(COUNTA(C47:F47)=4,(D47-C47)+(F47-E47)-M47-Calendrier!$AS$9,0)))) -> 0 | I47: 0 | K47: 0 | M47: 0
A48: 30 | B48: =INDIRECT(ADDRESS(MATCH($B$1,Calendrier!$A$15:$A$59,0)+14,ROW()-17,3,1,"Calendrier"),1) -> T | G48: 0 | H48: =IF(AND(K48=0.5,COUNTA(C48:F48)=4),"erreur",IF(AND(D48-C48>0,F48-E48=0),G48-Calendrier!$AS$9/2-M48,IF(AND(F48-E48>0,D48-C48=0),(F48-E48)-Calendrier!$AS$9/2-M48,IF(COUNTA(C48:F48)=4,(D48-C48)+(F48-E48)-M48-Calendrier!$AS$9,0)))) -> 0 | I48: 0 | K48: 0 | M48: 0
I49: 0 | J49: 0 | K49: 0 | M49: 0
H50: solde des variations | I50: =I49 -> 0

Sheet JUL
B1: =RIGHT(CELL("nomfichier",$A$1),3) -> JUL | C1: FICHE DE SUIVI HORAIRE
B3: mois : | C3: JUILLET | F3: année | G3: =Calendrier!A1 -> 2016 | I3: service | J3: =Calendrier!F4 -> COMPTABILITE
B5: nom : | C5: =Calendrier!F2 -> MARTIN | F5: prénom | G5: =Calendrier!F3 -> PATRICK | I5: N° Ident. | J5: =Calendrier!F1 -> N123456
H6: à réaliser | I6: cumul | J6: en cours | K6: reste | M6: n/cumul
D7: Nb J/T | E7: =Calendrier!$A$10 -> 213 | F7: =+$H$10 -> 0 | G7: =$H$12 -> 213 | H7: =Calendrier!$N$1 -> 366 | I7: =JUN!M7 -> 66 | J7: =SUM(J8:J15) -> 13 | K7: =H7-(I7+J7) -> 287 | M7: =SUM(M8:M15) -> 79
G8: CA | H8: =Calendrier!N5 -> 25 | I8: =JUN!M8 -> 0 | J8: =IF(G8="",0,COUNTIF($J$19:$J$49,G8))+IF(F8="",0,COUNTIF($J$19:$J$49,F8)/2) -> 1 | K8: =+H8-(I8+J8) -> 24 | L8: J | M8: =+I8+J8 -> 1
F9: 1/2RTT | G9: RTT | H9: =Calendrier!N8 -> 16 | I9: =JUN!M9 -> 11 | J9: =IF(G9="",0,COUNTIF($J$19:$J$49,G9))+IF(F9="",0,COUNTIF($J$19:$J$49,F9)/2) -> 1 | K9: =+H9-(I9+J9) -> 4 | L9: J | M9: 12
F10: 1/2CS | G10: CS | H10: =Calendrier!N9 -> 0 | I10: =JUN!M10 -> 0 | J10: =IF(G10="",0,COUNTIF($J$19:$J$49,G10))+IF(F10="",0,COUNTIF($J$19:$J$49,F10)/2) -> 0 | K10: =H10-(I10+J10) -> 0 | L10: J | M10: 0
G11: CP | H11: =Calendrier!N6 -> 0 | I11: =JUN!M11 -> 0 | J11: 0 | K11: =H11-(I11+J11) -> 0 | L11: J | M11: 0
F12: 1/2T | G12: T | H12: =Calendrier!N7 -> 213 | I12: =JUN!M12 -> 0 | J12: 0 | K12: =+H12-(I12+J12) -> 213 | L12: J | M12: 0
G13: Sa | H13: =Calendrier!N4 -> 53 | I13: =JUN!M13 -> 26 | J13: 5 | K13: =+H13-(I13+J13) -> 22 | L13: J | M13: 31
G14: Di | H14: =Calendrier!N3 -> 47 | I14: =JUN!M14 -> 22 | J14: 5 | K14: =+H14-(I14+J14) -> 20 | L14: J | M14: 27
G15: F | H15: =Calendrier!N2 -> 12 | I15: =JUN!M15 -> 7 | J15: 1 | K15: =+H15-(I15+J15) -> 4 | L15: J | M15: =+I15+J15 -> 8
G16: heure/avance fin mois | I16: =JUN!I50 -> 0 | M16: =I50 -> 0
B17: Prévu | C17: Entrée | D17: Sortie | E17: Entrée | F17: Sortie | G17: total J | H17: variation | I17: cumul | J17: Type | K17: nb J/T | M17: Bon E/S | N17: Sortie | O17: Retour
N18: avec bon
A19: 1 | B19: =INDIRECT(ADDRESS(MATCH($B$1,Calendrier!$A$15:$A$59,0)+14,ROW()-17,3,1,"Calendrier"),1) -> T | G19: =IF(COUNTA(C19:F19)=4,(D19-C19)+(F19-E19)-M19,IF(COUNTA(C19:D19)<2,(F19-E19)-M19,(D19-C19)-M19)) -> 0 | H19: =IF(AND(K19=0.5,COUNTA(C19:F19)=4),"erreur",IF(AND(D19-C19>0,F19-E19=0),G19-Calendrier!$AS$9/2-M19,IF(AND(F19-E19>0,D19-C19=0),(F19-E19)-Calendrier!$AS$9/2-M19,IF(COUNTA(C19:F19)=4,(D19-C19)+(F19-E19)-M19-Calendrier!$AS$9,0)))) -> 0 | I19: =+I16+H19 -> 0 | J19: =IF(AND(COUNTA(C19:F19)=0,B19<>"T"),B19,IF(AND(OR(B19=$F$9,B19=$F$10),COUNTA(C19:F19=2)),"T",IF(G19>=6,"T",""))) ->  | K19: =IF(OR(B19=$F$9,B19=$F$10),0.5,IF(G19>=6,1,0)) -> 0 | M19: =+O19-N19 -> 0
A20: 2 | B20: =INDIRECT(ADDRESS(MATCH($B$1,Calendrier!$A$15:$A$59,0)+14,ROW()-17,3,1,"Calendrier"),1) -> Sa | G20: 0 | H20: =IF(AND(K20=0.5,COUNTA(C20:F20)=4),"erreur",IF(AND(D20-C20>0,F20-E20=0),G20-Calendrier!$AS$9/2-M20,IF(AND(F20-E20>0,D20-C20=0),(F20-E20)-Calendrier!$AS$9/2-M20,IF(COUNTA(C20:F20)=4,(D20-C20)+(F20-E20)-M20-Calendrier!$AS$9,0)))) -> 0 | I20: =+I19+H20 -> 0 | J20: Sa | K20: 0 | M20: =+O20-N20 -> 0
A21: 3 | B21: =INDIRECT(ADDRESS(MATCH($B$1,Calendrier!$A$15:$A$59,0)+14,ROW()-17,3,1,"Calendrier"),1) -> Di | G21: 0 | H21: =IF(AND(K21=0.5,COUNTA(C21:F21)=4),"erreur",IF(AND(D21-C21>0,F21-E21=0),G21-Calendrier!$AS$9/2-M21,IF(AND(F21-E21>0,D21-C21=0),(F21-E21)-Calendrier!$AS$9/2-M21,IF(COUNTA(C21:F21)=4,(D21-C21)+(F21-E21)-M21-Calendrier!$AS$9,0)))) -> 0 | I21: 0 | J21: Di | K21: 0 | M21: 0
A22: 4 | B22: =INDIRECT(ADDRESS(MATCH($B$1,Calendrier!$A$15:$A$59,0)+14,ROW()-17,3,1,"Calendrier"),1) -> T | G22: 0 | H22: =IF(AND(K22=0.5,COUNTA(C22:F22)=4),"erreur",IF(AND(D22-C22>0,F22-E22=0),G22-Calendrier!$AS$9/2-M22,IF(AND(F22-E22>0,D22-C22=0),(F22-E22)-Calendrier!$AS$9/2-M22,IF(COUNTA(C22:F22)=4,(D22-C22)+(F22-E22)-M22-Calendrier!$AS$9,0)))) -> 0 | I22: 0 | K22: 0 | M22: 0
A23: 5 | B23: =INDIRECT(ADDRESS(MATCH($B$1,Calendrier!$A$15:$A$59,0)+14,ROW()-17,3,1,"Calendrier"),1) -> T | G23: 0 | H23: =IF(AND(K23=0.5,COUNTA(C23:F23)=4),"erreur",IF(AND(D23-C23>0,F23-E23=0),G23-Calendrier!$AS$9/2-M23,IF(AND(F23-E23>0,D23-C23=0),(F23-E23)-Calendrier!$AS$9/2-M23,IF(COUNTA(C23:F23)=4,(D23-C23)+(F23-E23)-M23-Calendrier!$AS$9,0)))) -> 0 | I23: 0 | K23: =IF(OR(B23=$F$9,B23=$F$10),0.5,IF(G23>=6,1,0)) -> 0 | M23: 0
A24: 6 | B24: =INDIRECT(ADDRESS(MATCH($B$1,Calendrier!$A$15:$A$59,0)+14,ROW()-17,3,1,"Calendrier"),1) -> T | G24: 0 | H24: =IF(AND(K24=0.5,COUNTA(C24:F24)=4),"erreur",IF(AND(D24-C24>0,F24-E24=0),G24-Calendrier!$AS$9/2-M24,IF(AND(F24-E24>0,D24-C24=0),(F24-E24)-Calendrier!$AS$9/2-M24,IF(COUNTA(C24:F24)=4,(D24-C24)+(F24-E24)-M24-Calendrier!$AS$9,0)))) -> 0 | I24: 0 | K24: 0 | M24: 0
A25: 7 | B25: =INDIRECT(ADDRESS(MATCH($B$1,Calendrier!$A$15:$A$59,0)+14,ROW()-17,3,1,"Calendrier"),1) -> T | G25: 0 | H25: =IF(AND(K25=0.5,COUNTA(C25:F25)=4),"erreur",IF(AND(D25-C25>0,F25-E25=0),G25-Calendrier!$AS$9/2-M25,IF(AND(F25-E25>0,D25-C25=0),(F25-E25)-Calendrier!$AS$9/2-M25,IF(COUNTA(C25:F25)=4,(D25-C25)+(F25-E25)-M25-Calendrier!$AS$9,0)))) -> 0 | I25: 0 | K25: 0 | M25: 0
A26: 8 | B26: =INDIRECT(ADDRESS(MATCH($B$1,Calendrier!$A$15:$A$59,0)+14,ROW()-17,3,1,"Calendrier"),1) -> T | G26: 0 | H26: =IF(AND(K26=0.5,COUNTA(C26:F26)=4),"erreur",IF(AND(D26-C26>0,F26-E26=0),G26-Calendrier!$AS$9/2-M26,IF(AND(F26-E26>0,D26-C26=0),(F26-E26)-Calendrier!$AS$9/2-M26,IF(COUNTA(C26:F26)=4,(D26-C26)+(F26-E26)-M26-Calendrier!$AS$9,0)))) -> 0 | I26: 0 | K26: 0 | M26: 0
A27: 9 | B27: =INDIRECT(ADDRESS(MATCH($B$1,Calendrier!$A$15:$A$59,0)+14,ROW()-17,3,1,"Calendrier"),1) -> Sa | G27: 0 | H27: =IF(AND(K27=0.5,COUNTA(C27:F27)=4),"erreur",IF(AND(D27-C27>0,F27-E27=0),G27-Calendrier!$AS$9/2-M27,IF(AND(F27-E27>0,D27-C27=0),(F27-E27)-Calendrier!$AS$9/2-M27,IF(COUNTA(C27:F27)=4,(D27-C27)+(F27-E27)-M27-Calendrier!$AS$9,0)))) -> 0 | I27: 0 | J27: Sa | K27: 0 | M27: 0
A28: 10 | B28: =INDIRECT(ADDRESS(MATCH($B$1,Calendrier!$A$15:$A$59,0)+14,ROW()-17,3,1,"Calendrier"),1) -> Di | G28: 0 | H28: =IF(AND(K28=0.5,COUNTA(C28:F28)=4),"erreur",IF(AND(D28-C28>0,F28-E28=0),G28-Calendrier!$AS$9/2-M28,IF(AND(F28-E28>0,D28-C28=0),(F28-E28)-Calendrier!$AS$9/2-M28,IF(COUNTA(C28:F28)=4,(D28-C28)+(F28-E28)-M28-Calendrier!$AS$9,0)))) -> 0 | I28: 0 | J28: Di | K28: 0 | M28: 0
A29: 11 | B29: =INDIRECT(ADDRESS(MATCH($B$1,Calendrier!$A$15:$A$59,0)+14,ROW()-17,3,1,"Calendrier"),1) -> T | G29: 0 | H29: =IF(AND(K29=0.5,COUNTA(C29:F29)=4),"erreur",IF(AND(D29-C29>0,F29-E29=0),G29-Calendrier!$AS$9/2-M29,IF(AND(F29-E29>0,D29-C29=0),(F29-E29)-Calendrier!$AS$9/2-M29,IF(COUNTA(C29:F29)=4,(D29-C29)+(F29-E29)-M29-Calendrier!$AS$9,0)))) -> 0 | I29: 0 | K29: 0 | M29: 0
A30: 12 | B30: =INDIRECT(ADDRESS(MATCH($B$1,Calendrier!$A$15:$A$59,0)+14,ROW()-17,3,1,"Calendrier"),1) -> T | G30: 0 | H30: =IF(AND(K30=0.5,COUNTA(C30:F30)=4),"erreur",IF(AND(D30-C30>0,F30-E30=0),G30-Calendrier!$AS$9/2-M30,IF(AND(F30-E30>0,D30-C30=0),(F30-E30)-Calendrier!$AS$9/2-M30,IF(COUNTA(C30:F30)=4,(D30-C30)+(F30-E30)-M30-Calendrier!$AS$9,0)))) -> 0 | I30: 0 | K30: 0 | M30: 0
A31: 13 | B31: =INDIRECT(ADDRESS(MATCH($B$1,Calendrier!$A$15:$A$59,0)+14,ROW()-17,3,1,"Calendrier"),1) -> T | G31: 0 | H31: =IF(AND(K31=0.5,COUNTA(C31:F31)=4),"erreur",IF(AND(D31-C31>0,F31-E31=0),G31-Calendrier!$AS$9/2-M31,IF(AND(F31-E31>0,D31-C31=0),(F31-E31)-Calendrier!$AS$9/2-M31,IF(COUNTA(C31:F31)=4,(D31-C31)+(F31-E31)-M31-Calendrier!$AS$9,0)))) -> 0 | I31: 0 | K31: 0 | M31: 0
A32: 14 | B32: =INDIRECT(ADDRESS(MATCH($B$1,Calendrier!$A$15:$A$59,0)+14,ROW()-17,3,1,"Calendrier"),1) -> F | G32: 0 | H32: =IF(AND(K32=0.5,COUNTA(C32:F32)=4),"erreur",IF(AND(D32-C32>0,F32-E32=0),G32-Calendrier!$AS$9/2-M32,IF(AND(F32-E32>0,D32-C32=0),(F32-E32)-Calendrier!$AS$9/2-M32,IF(COUNTA(C32:F32)=4,(D32-C32)+(F32-E32)-M32-Calendrier!$AS$9,0)))) -> 0 | I32: 0 | J32: F | K32: 0 | M32: 0
A33: 15 | B33: =INDIRECT(ADDRESS(MATCH($B$1,Calendrier!$A$15:$A$59,0)+14,ROW()-17,3,1,"Calendrier"),1) -> CA | G33: 0 | H33: =IF(AND(K33=0.5,COUNTA(C33:F33)=4),"erreur",IF(AND(D33-C33>0,F33-E33=0),G33-Calendrier!$AS$9/2-M33,IF(AND(F33-E33>0,D33-C33=0),(F33-E33)-Calendrier!$AS$9/2-M33,IF(COUNTA(C33:F33)=4,(D33-C33)+(F33-E33)-M33-Calendrier!$AS$9,0)))) -> 0 | I33: 0 | J33: =IF(AND(COUNTA(C33:F33)=0,B33<>"T"),B33,IF(AND(OR(B33=$F$9,B33=$F$10),COUNTA(C33:F33=2)),"T",IF(G33>=6,"T",""))) -> CA | K33: 0 | M33: 0
A34: 16 | B34: =INDIRECT(ADDRESS(MATCH($B$1,Calendrier!$A$15:$A$59,0)+14,ROW()-17,3,1,"Calendrier"),1) -> Sa | G34: 0 | H34: =IF(AND(K34=0.5,COUNTA(C34:F34)=4),"erreur",IF(AND(D34-C34>0,F34-E34=0),G34-Calendrier!$AS$9/2-M34,IF(AND(F34-E34>0,D34-C34=0),(F34-E34)-Calendrier!$AS$9/2-M34,IF(COUNTA(C34:F34)=4,(D34-C34)+(F34-E34)-M34-Calendrier!$AS$9,0)))) -> 0 | I34: 0 | J34: Sa | K34: 0 | M34: 0
A35: 17 | B35: =INDIRECT(ADDRESS(MATCH($B$1,Calendrier!$A$15:$A$59,0)+14,ROW()-17,3,1,"Calendrier"),1) -> Di | G35: 0 | H35: =IF(AND(K35=0.5,COUNTA(C35:F35)=4),"erreur",IF(AND(D35-C35>0,F35-E35=0),G35-Calendrier!$AS$9/2-M35,IF(AND(F35-E35>0,D35-C35=0),(F35-E35)-Calendrier!$AS$9/2-M35,IF(COUNTA(C35:F35)=4,(D35-C35)+(F35-E35)-M35-Calendrier!$AS$9,0)))) -> 0 | I35: 0 | J35: Di | K35: 0 | M35: 0
A36: 18 | B36: =INDIRECT(ADDRESS(MATCH($B$1,Calendrier!$A$15:$A$59,0)+14,ROW()-17,3,1,"Calendrier"),1) -> T | G36: 0 | H36: =IF(AND(K36=0.5,COUNTA(C36:F36)=4),"erreur",IF(AND(D36-C36>0,F36-E36=0),G36-Calendrier!$AS$9/2-M36,IF(AND(F36-E36>0,D36-C36=0),(F36-E36)-Calendrier!$AS$9/2-M36,IF(COUNTA(C36:F36)=4,(D36-C36)+(F36-E36)-M36-Calendrier!$AS$9,0)))) -> 0 | I36: 0 | K36: 0 | M36: 0
A37: 19 | B37: =INDIRECT(ADDRESS(MATCH($B$1,Calendrier!$A$15:$A$59,0)+14,ROW()-17,3,1,"Calendrier"),1) -> T | G37: 0 | H37: =IF(AND(K37=0.5,COUNTA(C37:F37)=4),"erreur",IF(AND(D37-C37>0,F37-E37=0),G37-Calendrier!$AS$9/2-M37,IF(AND(F37-E37>0,D37-C37=0),(F37-E37)-Calendrier!$AS$9/2-M37,IF(COUNTA(C37:F37)=4,(D37-C37)+(F37-E37)-M37-Calendrier!$AS$9,0)))) -> 0 | I37: 0 | K37: 0 | M37: 0
A38: 20 | B38: =INDIRECT(ADDRESS(MATCH($B$1,Calendrier!$A$15:$A$59,0)+14,ROW()-17,3,1,"Calendrier"),1) -> T | G38: 0 | H38: =IF(AND(K38=0.5,COUNTA(C38:F38)=4),"erreur",IF(AND(D38-C38>0,F38-E38=0),G38-Calendrier!$AS$9/2-M38,IF(AND(F38-E38>0,D38-C38=0),(F38-E38)-Calendrier!$AS$9/2-M38,IF(COUNTA(C38:F38)=4,(D38-C38)+(F38-E38)-M38-Calendrier!$AS$9,0)))) -> 0 | I38: 0 | K38: 0 | M38: 0
A39: 21 | B39: =INDIRECT(ADDRESS(MATCH($B$1,Calendrier!$A$15:$A$59,0)+14,ROW()-17,3,1,"Calendrier"),1) -> T | G39: 0 | H39: =IF(AND(K39=0.5,COUNTA(C39:F39)=4),"erreur",IF(AND(D39-C39>0,F39-E39=0),G39-Calendrier!$AS$9/2-M39,IF(AND(F39-E39>0,D39-C39=0),(F39-E39)-Calendrier!$AS$9/2-M39,IF(COUNTA(C39:F39)=4,(D39-C39)+(F39-E39)-M39-Calendrier!$AS$9,0)))) -> 0 | I39: 0 | K39: 0 | M39: 0
A40: 22 | B40: =INDIRECT(ADDRESS(MATCH($B$1,Calendrier!$A$15:$A$59,0)+14,ROW()-17,3,1,"Calendrier"),1) -> T | G40: 0 | H40: =IF(AND(K40=0.5,COUNTA(C40:F40)=4),"erreur",IF(AND(D40-C40>0,F40-E40=0),G40-Calendrier!$AS$9/2-M40,IF(AND(F40-E40>0,D40-C40=0),(F40-E40)-Calendrier!$AS$9/2-M40,IF(COUNTA(C40:F40)=4,(D40-C40)+(F40-E40)-M40-Calendrier!$AS$9,0)))) -> 0 | I40: 0 | K40: 0 | M40: 0
A41: 23 | B41: =INDIRECT(ADDRESS(MATCH($B$1,Calendrier!$A$15:$A$59,0)+14,ROW()-17,3,1,"Calendrier"),1) -> Sa | G41: 0 | H41: =IF(AND(K41=0.5,COUNTA(C41:F41)=4),"erreur",IF(AND(D41-C41>0,F41-E41=0),G41-Calendrier!$AS$9/2-M41,IF(AND(F41-E41>0,D41-C41=0),(F41-E41)-Calendrier!$AS$9/2-M41,IF(COUNTA(C41:F41)=4,(D41-C41)+(F41-E41)-M41-Calendrier!$AS$9,0)))) -> 0 | I41: 0 | J41: Sa | K41: 0 | M41: 0
A42: 24 | B42: =INDIRECT(ADDRESS(MATCH($B$1,Calendrier!$A$15:$A$59,0)+14,ROW()-17,3,1,"Calendrier"),1) -> Di | G42: 0 | H42: =IF(AND(K42=0.5,COUNTA(C42:F42)=4),"erreur",IF(AND(D42-C42>0,F42-E42=0),G42-Calendrier!$AS$9/2-M42,IF(AND(F42-E42>0,D42-C42=0),(F42-E42)-Calendrier!$AS$9/2-M42,IF(COUNTA(C42:F42)=4,(D42-C42)+(F42-E42)-M42-Calendrier!$AS$9,0)))) -> 0 | I42: 0 | J42: Di | K42: 0 | M42: 0
A43: 25 | B43: =INDIRECT(ADDRESS(MATCH($B$1,Calendrier!$A$15:$A$59,0)+14,ROW()-17,3,1,"Calendrier"),1) -> RTT | G43: 0 | H43: =IF(AND(K43=0.5,COUNTA(C43:F43)=4),"erreur",IF(AND(D43-C43>0,F43-E43=0),G43-Calendrier!$AS$9/2-M43,IF(AND(F43-E43>0,D43-C43=0),(F43-E43)-Calendrier!$AS$9/2-M43,IF(COUNTA(C43:F43)=4,(D43-C43)+(F43-E43)-M43-Calendrier!$AS$9,0)))) -> 0 | I43: 0 | J43: RTT | K43: 0 | M43: 0
A44: 26 | B44: =INDIRECT(ADDRESS(MATCH($B$1,Calendrier!$A$15:$A$59,0)+14,ROW()-17,3,1,"Calendrier"),1) -> T | G44: 0 | H44: =IF(AND(K44=0.5,COUNTA(C44:F44)=4),"erreur",IF(AND(D44-C44>0,F44-E44=0),G44-Calendrier!$AS$9/2-M44,IF(AND(F44-E44>0,D44-C44=0),(F44-E44)-Calendrier!$AS$9/2-M44,IF(COUNTA(C44:F44)=4,(D44-C44)+(F44-E44)-M44-Calendrier!$AS$9,0)))) -> 0 | I44: 0 | K44: 0 | M44: 0
A45: 27 | B45: =INDIRECT(ADDRESS(MATCH($B$1,Calendrier!$A$15:$A$59,0)+14,ROW()-17,3,1,"Calendrier"),1) -> T | G45: 0 | H45: =IF(AND(K45=0.5,COUNTA(C45:F45)=4),"erreur",IF(AND(D45-C45>0,F45-E45=0),G45-Calendrier!$AS$9/2-M45,IF(AND(F45-E45>0,D45-C45=0),(F45-E45)-Calendrier!$AS$9/2-M45,IF(COUNTA(C45:F45)=4,(D45-C45)+(F45-E45)-M45-Calendrier!$AS$9,0)))) -> 0 | I45: 0 | K45: 0 | M45: 0
A46: 28 | B46: =INDIRECT(ADDRESS(MATCH($B$1,Calendrier!$A$15:$A$59,0)+14,ROW()-17,3,1,"Calendrier"),1) -> T | G46: 0 | H46: =IF(AND(K46=0.5,COUNTA(C46:F46)=4),"erreur",IF(AND(D46-C46>0,F46-E46=0),G46-Calendrier!$AS$9/2-M46,IF(AND(F46-E46>0,D46-C46=0),(F46-E46)-Calendrier!$AS$9/2-M46,IF(COUNTA(C46:F46)=4,(D46-C46)+(F46-E46)-M46-Calendrier!$AS$9,0)))) -> 0 | I46: 0 | K46: 0 | M46: 0
A47: 29 | B47: =INDIRECT(ADDRESS(MATCH($B$1,Calendrier!$A$15:$A$59,0)+14,ROW()-17,3,1,"Calendrier"),1) -> T | G47: 0 | H47: =IF(AND(K47=0.5,COUNTA(C47:F47)=4),"erreur",IF(AND(D47-C47>0,F47-E47=0),G47-Calendrier!$AS$9/2-M47,IF(AND(F47-E47>0,D47-C47=0),(F47-E47)-Calendrier!$AS$9/2-M47,IF(COUNTA(C47:F47)=4,(D47-C47)+(F47-E47)-M47-Calendrier!$AS$9,0)))) -> 0 | I47: 0 | K47: 0 | M47: 0
A48: 30 | B48: =INDIRECT(ADDRESS(MATCH($B$1,Calendrier!$A$15:$A$59,0)+14,ROW()-17,3,1,"Calendrier"),1) -> Sa | G48: 0 | H48: =IF(AND(K48=0.5,COUNTA(C48:F48)=4),"erreur",IF(AND(D48-C48>0,F48-E48=0),G48-Calendrier!$AS$9/2-M48,IF(AND(F48-E48>0,D48-C48=0),(F48-E48)-Calendrier!$AS$9/2-M48,IF(COUNTA(C48:F48)=4,(D48-C48)+(F48-E48)-M48-Calendrier!$AS$9,0)))) -> 0 | I48: 0 | J48: Sa | K48: 0 | M48: 0
A49: 31 | B49: =INDIRECT(ADDRESS(MATCH($B$1,Calendrier!$A$15:$A$59,0)+14,ROW()-17,3,1,"Calendrier"),1) -> Di | G49: 0 | H49: =IF(AND(K49=0.5,COUNTA(C49:F49)=4),"erreur",IF(AND(D49-C49>0,F49-E49=0),G49-Calendrier!$AS$9/2-M49,IF(AND(F49-E49>0,D49-C49=0),(F49-E49)-Calendrier!$AS$9/2-M49,IF(COUNTA(C49:F49)=4,(D49-C49)+(F49-E49)-M49-Calendrier!$AS$9,0)))) -> 0 | I49: 0 | J49: Di | K49: 0 | M49: 0
H50: solde des variations | I50: =I49 -> 0

Sheet AOU
B1: =RIGHT(CELL("nomfichier",$A$1),3) -> AOU | C1: FICHE DE SUIVI HORAIRE
B3: mois : | C3: AOUT | F3: année | G3: =Calendrier!A1 -> 2016 | I3: service | J3: =Calendrier!F4 -> COMPTABILITE
B5: nom : | C5: =Calendrier!F2 -> MARTIN | F5: prénom | G5: =Calendrier!F3 -> PATRICK | I5: N° Ident. | J5: =Calendrier!F1 -> N123456
H6: à réaliser | I6: cumul | J6: en cours | K6: reste | M6: n/cumul
D7: Nb J/T | E7: =Calendrier!$A$10 -> 213 | F7: =+$H$10 -> 0 | G7: =$H$12 -> 213 | H7: =Calendrier!$N$1 -> 366 | I7: =JUL!M7 -> 79 | J7: =SUM(J8:J15) -> 28 | K7: =H7-(I7+J7) -> 259 | M7: =SUM(M8:M15) -> 107
G8: CA | H8: =Calendrier!N5 -> 25 | I8: =JUL!M8 -> 1 | J8: =IF(G8="",0,COUNTIF($J$19:$J$49,G8))+IF(F8="",0,COUNTIF($J$19:$J$49,F8)/2) -> 19 | K8: =+H8-(I8+J8) -> 5 | L8: J | M8: =+I8+J8 -> 20
F9: 1/2RTT | G9: RTT | H9: =Calendrier!N8 -> 16 | I9: =JUL!M9 -> 12 | J9: =IF(G9="",0,COUNTIF($J$19:$J$49,G9))+IF(F9="",0,COUNTIF($J$19:$J$49,F9)/2) -> 0 | K9: =+H9-(I9+J9) -> 4 | L9: J | M9: 12
F10: 1/2CS | G10: CS | H10: =Calendrier!N9 -> 0 | I10: =JUL!M10 -> 0 | J10: =IF(G10="",0,COUNTIF($J$19:$J$49,G10))+IF(F10="",0,COUNTIF($J$19:$J$49,F10)/2) -> 0 | K10: =H10-(I10+J10) -> 0 | L10: J | M10: 0
G11: CP | H11: =Calendrier!N6 -> 0 | I11: =JUL!M11 -> 0 | J11: 0 | K11: =H11-(I11+J11) -> 0 | L11: J | M11: 0
F12: 1/2T | G12: T | H12: =Calendrier!N7 -> 213 | I12: =JUL!M12 -> 0 | J12: 0 | K12: =+H12-(I12+J12) -> 213 | L12: J | M12: 0
G13: Sa | H13: =Calendrier!N4 -> 53 | I13: =JUL!M13 -> 31 | J13: 4 | K13: =+H13-(I13+J13) -> 18 | L13: J | M13: 35
G14: Di | H14: =Calendrier!N3 -> 47 | I14: =JUL!M14 -> 27 | J14: 4 | K14: =+H14-(I14+J14) -> 16 | L14: J | M14: 31
G15: F | H15: =Calendrier!N2 -> 12 | I15: =JUL!M15 -> 8 | J15: 1 | K15: =+H15-(I15+J15) -> 3 | L15: J | M15: =+I15+J15 -> 9
G16: heure/avance fin mois | I16: =JUL!I50 -> 0 | M16: =I50 -> 0
B17: Prévu | C17: Entrée | D17: Sortie | E17: Entrée | F17: Sortie | G17: total J | H17: variation | I17: cumul | J17: Type | K17: nb J/T | M17: Bon E/S | N17: Sortie | O17: Retour
N18: avec bon
A19: 1 | B19: =INDIRECT(ADDRESS(MATCH($B$1,Calendrier!$A$15:$A$59,0)+14,ROW()-17,3,1,"Calendrier"),1) -> CA | G19: =IF(COUNTA(C19:F19)=4,(D19-C19)+(F19-E19)-M19,IF(COUNTA(C19:D19)<2,(F19-E19)-M19,(D19-C19)-M19)) -> 0 | H19: =IF(AND(K19=0.5,COUNTA(C19:F19)=4),"erreur",IF(AND(D19-C19>0,F19-E19=0),G19-Calendrier!$AS$9/2-M19,IF(AND(F19-E19>0,D19-C19=0),(F19-E19)-Calendrier!$AS$9/2-M19,IF(COUNTA(C19:F19)=4,(D19-C19)+(F19-E19)-M19-Calendrier!$AS$9,0)))) -> 0 | I19: =+I16+H19 -> 0 | J19: =IF(AND(COUNTA(C19:F19)=0,B19<>"T"),B19,IF(AND(OR(B19=$F$9,B19=$F$10),COUNTA(C19:F19=2)),"T",IF(G19>=6,"T",""))) -> CA | K19: =IF(OR(B19=$F$9,B19=$F$10),0.5,IF(G19>=6,1,0)) -> 0 | M19: =+O19-N19 -> 0
A20: 2 | B20: =INDIRECT(ADDRESS(MATCH($B$1,Calendrier!$A$15:$A$59,0)+14,ROW()-17,3,1,"Calendrier"),1) -> CA | G20: 0 | H20: =IF(AND(K20=0.5,COUNTA(C20:F20)=4),"erreur",IF(AND(D20-C20>0,F20-E20=0),G20-Calendrier!$AS$9/2-M20,IF(AND(F20-E20>0,D20-C20=0),(F20-E20)-Calendrier!$AS$9/2-M20,IF(COUNTA(C20:F20)=4,(D20-C20)+(F20-E20)-M20-Calendrier!$AS$9,0)))) -> 0 | I20: =+I19+H20 -> 0 | J20: CA | K20: 0 | M20: =+O20-N20 -> 0
A21: 3 | B21: =INDIRECT(ADDRESS(MATCH($B$1,Calendrier!$A$15:$A$59,0)+14,ROW()-17,3,1,"Calendrier"),1) -> CA | G21: 0 | H21: =IF(AND(K21=0.5,COUNTA(C21:F21)=4),"erreur",IF(AND(D21-C21>0,F21-E21=0),G21-Calendrier!$AS$9/2-M21,IF(AND(F21-E21>0,D21-C21=0),(F21-E21)-Calendrier!$AS$9/2-M21,IF(COUNTA(C21:F21)=4,(D21-C21)+(F21-E21)-M21-Calendrier!$AS$9,0)))) -> 0 | I21: 0 | J21: CA | K21: 0 | M21: 0
A22: 4 | B22: =INDIRECT(ADDRESS(MATCH($B$1,Calendrier!$A$15:$A$59,0)+14,ROW()-17,3,1,"Calendrier"),1) -> CA | G22: 0 | H22: =IF(AND(K22=0.5,COUNTA(C22:F22)=4),"erreur",IF(AND(D22-C22>0,F22-E22=0),G22-Calendrier!$AS$9/2-M22,IF(AND(F22-E22>0,D22-C22=0),(F22-E22)-Calendrier!$AS$9/2-M22,IF(COUNTA(C22:F22)=4,(D22-C22)+(F22-E22)-M22-Calendrier!$AS$9,0)))) -> 0 | I22: 0 | J22: CA | K22: 0 | M22: 0
A23: 5 | B23: =INDIRECT(ADDRESS(MATCH($B$1,Calendrier!$A$15:$A$59,0)+14,ROW()-17,3,1,"Calendrier"),1) -> CA | G23: 0 | H23: =IF(AND(K23=0.5,COUNTA(C23:F23)=4),"erreur",IF(AND(D23-C23>0,F23-E23=0),G23-Calendrier!$AS$9/2-M23,IF(AND(F23-E23>0,D23-C23=0),(F23-E23)-Calendrier!$AS$9/2-M23,IF(COUNTA(C23:F23)=4,(D23-C23)+(F23-E23)-M23-Calendrier!$AS$9,0)))) -> 0 | I23: 0 | J23: CA | K23: =IF(OR(B23=$F$9,B23=$F$10),0.5,IF(G23>=6,1,0)) -> 0 | M23: 0
A24: 6 | B24: =INDIRECT(ADDRESS(MATCH($B$1,Calendrier!$A$15:$A$59,0)+14,ROW()-17,3,1,"Calendrier"),1) -> Sa | G24: 0 | H24: =IF(AND(K24=0.5,COUNTA(C24:F24)=4),"erreur",IF(AND(D24-C24>0,F24-E24=0),G24-Calendrier!$AS$9/2-M24,IF(AND(F24-E24>0,D24-C24=0),(F24-E24)-Calendrier!$AS$9/2-M24,IF(COUNTA(C24:F24)=4,(D24-C24)+(F24-E24)-M24-Calendrier!$AS$9,0)))) -> 0 | I24: 0 | J24: Sa | K24: 0 | M24: 0
A25: 7 | B25: =INDIRECT(ADDRESS(MATCH($B$1,Calendrier!$A$15:$A$59,0)+14,ROW()-17,3,1,"Calendrier"),1) -> Di | G25: 0 | H25: =IF(AND(K25=0.5,COUNTA(C25:F25)=4),"erreur",IF(AND(D25-C25>0,F25-E25=0),G25-Calendrier!$AS$9/2-M25,IF(AND(F25-E25>0,D25-C25=0),(F25-E25)-Calendrier!$AS$9/2-M25,IF(COUNTA(C25:F25)=4,(D25-C25)+(F25-E25)-M25-Calendrier!$AS$9,0)))) -> 0 | I25: 0 | J25: Di | K25: 0 | M25: 0
A26: 8 | B26: =INDIRECT(ADDRESS(MATCH($B$1,Calendrier!$A$15:$A$59,0)+14,ROW()-17,3,1,"Calendrier"),1) -> CA | G26: 0 | H26: =IF(AND(K26=0.5,COUNTA(C26:F26)=4),"erreur",IF(AND(D26-C26>0,F26-E26=0),G26-Calendrier!$AS$9/2-M26,IF(AND(F26-E26>0,D26-C26=0),(F26-E26)-Calendrier!$AS$9/2-M26,IF(COUNTA(C26:F26)=4,(D26-C26)+(F26-E26)-M26-Calendrier!$AS$9,0)))) -> 0 | I26: 0 | J26: CA | K26: 0 | M26: 0
A27: 9 | B27: =INDIRECT(ADDRESS(MATCH($B$1,Calendrier!$A$15:$A$59,0)+14,ROW()-17,3,1,"Calendrier"),1) -> CA | G27: 0 | H27: =IF(AND(K27=0.5,COUNTA(C27:F27)=4),"erreur",IF(AND(D27-C27>0,F27-E27=0),G27-Calendrier!$AS$9/2-M27,IF(AND(F27-E27>0,D27-C27=0),(F27-E27)-Calendrier!$AS$9/2-M27,IF(COUNTA(C27:F27)=4,(D27-C27)+(F27-E27)-M27-Calendrier!$AS$9,0)))) -> 0 | I27: 0 | J27: CA | K27: 0 | M27: 0
A28: 10 | B28: =INDIRECT(ADDRESS(MATCH($B$1,Calendrier!$A$15:$A$59,0)+14,ROW()-17,3,1,"Calendrier"),1) -> CA | G28: 0 | H28: =IF(AND(K28=0.5,COUNTA(C28:F28)=4),"erreur",IF(AND(D28-C28>0,F28-E28=0),G28-Calendrier!$AS$9/2-M28,IF(AND(F28-E28>0,D28-C28=0),(F28-E28)-Calendrier!$AS$9/2-M28,IF(COUNTA(C28:F28)=4,(D28-C28)+(F28-E28)-M28-Calendrier!$AS$9,0)))) -> 0 | I28: 0 | J28: CA | K28: 0 | M28: 0
A29: 11 | B29: =INDIRECT(ADDRESS(MATCH($B$1,Calendrier!$A$15:$A$59,0)+14,ROW()-17,3,1,"Calendrier"),1) -> CA | G29: 0 | H29: =IF(AND(K29=0.5,COUNTA(C29:F29)=4),"erreur",IF(AND(D29-C29>0,F29-E29=0),G29-Calendrier!$AS$9/2-M29,IF(AND(F29-E29>0,D29-C29=0),(F29-E29)-Calendrier!$AS$9/2-M29,IF(COUNTA(C29:F29)=4,(D29-C29)+(F29-E29)-M29-Calendrier!$AS$9,0)))) -> 0 | I29: 0 | J29: CA | K29: 0 | M29: 0
A30: 12 | B30: =INDIRECT(ADDRESS(MATCH($B$1,Calendrier!$A$15:$A$59,0)+14,ROW()-17,3,1,"Calendrier"),1) -> CA | G30: 0 | H30: =IF(AND(K30=0.5,COUNTA(C30:F30)=4),"erreur",IF(AND(D30-C30>0,F30-E30=0),G30-Calendrier!$AS$9/2-M30,IF(AND(F30-E30>0,D30-C30=0),(F30-E30)-Calendrier!$AS$9/2-M30,IF(COUNTA(C30:F30)=4,(D30-C30)+(F30-E30)-M30-Calendrier!$AS$9,0)))) -> 0 | I30: 0 | J30: CA | K30: 0 | M30: 0
A31: 13 | B31: =INDIRECT(ADDRESS(MATCH($B$1,Calendrier!$A$15:$A$59,0)+14,ROW()-17,3,1,"Calendrier"),1) -> Sa | G31: 0 | H31: =IF(AND(K31=0.5,COUNTA(C31:F31)=4),"erreur",IF(AND(D31-C31>0,F31-E31=0),G31-Calendrier!$AS$9/2-M31,IF(AND(F31-E31>0,D31-C31=0),(F31-E31)-Calendrier!$AS$9/2-M31,IF(COUNTA(C31:F31)=4,(D31-C31)+(F31-E31)-M31-Calendrier!$AS$9,0)))) -> 0 | I31: 0 | J31: Sa | K31: 0 | M31: 0
A32: 14 | B32: =INDIRECT(ADDRESS(MATCH($B$1,Calendrier!$A$15:$A$59,0)+14,ROW()-17,3,1,"Calendrier"),1) -> Di | G32: 0 | H32: =IF(AND(K32=0.5,COUNTA(C32:F32)=4),"erreur",IF(AND(D32-C32>0,F32-E32=0),G32-Calendrier!$AS$9/2-M32,IF(AND(F32-E32>0,D32-C32=0),(F32-E32)-Calendrier!$AS$9/2-M32,IF(COUNTA(C32:F32)=4,(D32-C32)+(F32-E32)-M32-Calendrier!$AS$9,0)))) -> 0 | I32: 0 | J32: Di | K32: 0 | M32: 0
A33: 15 | B33: =INDIRECT(ADDRESS(MATCH($B$1,Calendrier!$A$15:$A$59,0)+14,ROW()-17,3,1,"Calendrier"),1) -> F | G33: 0 | H33: =IF(AND(K33=0.5,COUNTA(C33:F33)=4),"erreur",IF(AND(D33-C33>0,F33-E33=0),G33-Calendrier!$AS$9/2-M33,IF(AND(F33-E33>0,D33-C33=0),(F33-E33)-Calendrier!$AS$9/2-M33,IF(COUNTA(C33:F33)=4,(D33-C33)+(F33-E33)-M33-Calendrier!$AS$9,0)))) -> 0 | I33: 0 | J33: =IF(AND(COUNTA(C33:F33)=0,B33<>"T"),B33,IF(AND(OR(B33=$F$9,B33=$F$10),COUNTA(C33:F33=2)),"T",IF(G33>=6,"T",""))) -> F | K33: 0 | M33: 0
A34: 16 | B34: =INDIRECT(ADDRESS(MATCH($B$1,Calendrier!$A$15:$A$59,0)+14,ROW()-17,3,1,"Calendrier"),1) -> CA | G34: 0 | H34: =IF(AND(K34=0.5,COUNTA(C34:F34)=4),"erreur",IF(AND(D34-C34>0,F34-E34=0),G34-Calendrier!$AS$9/2-M34,IF(AND(F34-E34>0,D34-C34=0),(F34-E34)-Calendrier!$AS$9/2-M34,IF(COUNTA(C34:F34)=4,(D34-C34)+(F34-E34)-M34-Calendrier!$AS$9,0)))) -> 0 | I34: 0 | J34: CA | K34: 0 | M34: 0
A35: 17 | B35: =INDIRECT(ADDRESS(MATCH($B$1,Calendrier!$A$15:$A$59,0)+14,ROW()-17,3,1,"Calendrier"),1) -> CA | G35: 0 | H35: =IF(AND(K35=0.5,COUNTA(C35:F35)=4),"erreur",IF(AND(D35-C35>0,F35-E35=0),G35-Calendrier!$AS$9/2-M35,IF(AND(F35-E35>0,D35-C35=0),(F35-E35)-Calendrier!$AS$9/2-M35,IF(COUNTA(C35:F35)=4,(D35-C35)+(F35-E35)-M35-Calendrier!$AS$9,0)))) -> 0 | I35: 0 | J35: CA | K35: 0 | M35: 0
A36: 18 | B36: =INDIRECT(ADDRESS(MATCH($B$1,Calendrier!$A$15:$A$59,0)+14,ROW()-17,3,1,"Calendrier"),1) -> CA | G36: 0 | H36: =IF(AND(K36=0.5,COUNTA(C36:F36)=4),"erreur",IF(AND(D36-C36>0,F36-E36=0),G36-Calendrier!$AS$9/2-M36,IF(AND(F36-E36>0,D36-C36=0),(F36-E36)-Calendrier!$AS$9/2-M36,IF(COUNTA(C36:F36)=4,(D36-C36)+(F36-E36)-M36-Calendrier!$AS$9,0)))) -> 0 | I36: 0 | J36: CA | K36: 0 | M36: 0
A37: 19 | B37: =INDIRECT(ADDRESS(MATCH($B$1,Calendrier!$A$15:$A$59,0)+14,ROW()-17,3,1,"Calendrier"),1) -> CA | G37: 0 | H37: =IF(AND(K37=0.5,COUNTA(C37:F37)=4),"erreur",IF(AND(D37-C37>0,F37-E37=0),G37-Calendrier!$AS$9/2-M37,IF(AND(F37-E37>0,D37-C37=0),(F37-E37)-Calendrier!$AS$9/2-M37,IF(COUNTA(C37:F37)=4,(D37-C37)+(F37-E37)-M37-Calendrier!$AS$9,0)))) -> 0 | I37: 0 | J37: CA | K37: 0 | M37: 0
A38: 20 | B38: =INDIRECT(ADDRESS(MATCH($B$1,Calendrier!$A$15:$A$59,0)+14,ROW()-17,3,1,"Calendrier"),1) -> Sa | G38: 0 | H38: =IF(AND(K38=0.5,COUNTA(C38:F38)=4),"erreur",IF(AND(D38-C38>0,F38-E38=0),G38-Calendrier!$AS$9/2-M38,IF(AND(F38-E38>0,D38-C38=0),(F38-E38)-Calendrier!$AS$9/2-M38,IF(COUNTA(C38:F38)=4,(D38-C38)+(F38-E38)-M38-Calendrier!$AS$9,0)))) -> 0 | I38: 0 | J38: Sa | K38: 0 | M38: 0
A39: 21 | B39: =INDIRECT(ADDRESS(MATCH($B$1,Calendrier!$A$15:$A$59,0)+14,ROW()-17,3,1,"Calendrier"),1) -> Di | G39: 0 | H39: =IF(AND(K39=0.5,COUNTA(C39:F39)=4),"erreur",IF(AND(D39-C39>0,F39-E39=0),G39-Calendrier!$AS$9/2-M39,IF(AND(F39-E39>0,D39-C39=0),(F39-E39)-Calendrier!$AS$9/2-M39,IF(COUNTA(C39:F39)=4,(D39-C39)+(F39-E39)-M39-Calendrier!$AS$9,0)))) -> 0 | I39: 0 | J39: Di | K39: 0 | M39: 0
A40: 22 | B40: =INDIRECT(ADDRESS(MATCH($B$1,Calendrier!$A$15:$A$59,0)+14,ROW()-17,3,1,"Calendrier"),1) -> CA | G40: 0 | H40: =IF(AND(K40=0.5,COUNTA(C40:F40)=4),"erreur",IF(AND(D40-C40>0,F40-E40=0),G40-Calendrier!$AS$9/2-M40,IF(AND(F40-E40>0,D40-C40=0),(F40-E40)-Calendrier!$AS$9/2-M40,IF(COUNTA(C40:F40)=4,(D40-C40)+(F40-E40)-M40-Calendrier!$AS$9,0)))) -> 0 | I40: 0 | J40: CA | K40: 0 | M40: 0
A41: 23 | B41: =INDIRECT(ADDRESS(MATCH($B$1,Calendrier!$A$15:$A$59,0)+14,ROW()-17,3,1,"Calendrier"),1) -> CA | G41: 0 | H41: =IF(AND(K41=0.5,COUNTA(C41:F41)=4),"erreur",IF(AND(D41-C41>0,F41-E41=0),G41-Calendrier!$AS$9/2-M41,IF(AND(F41-E41>0,D41-C41=0),(F41-E41)-Calendrier!$AS$9/2-M41,IF(COUNTA(C41:F41)=4,(D41-C41)+(F41-E41)-M41-Calendrier!$AS$9,0)))) -> 0 | I41: 0 | J41: CA | K41: 0 | M41: 0
A42: 24 | B42: =INDIRECT(ADDRESS(MATCH($B$1,Calendrier!$A$15:$A$59,0)+14,ROW()-17,3,1,"Calendrier"),1) -> CA | G42: 0 | H42: =IF(AND(K42=0.5,COUNTA(C42:F42)=4),"erreur",IF(AND(D42-C42>0,F42-E42=0),G42-Calendrier!$AS$9/2-M42,IF(AND(F42-E42>0,D42-C42=0),(F42-E42)-Calendrier!$AS$9/2-M42,IF(COUNTA(C42:F42)=4,(D42-C42)+(F42-E42)-M42-Calendrier!$AS$9,0)))) -> 0 | I42: 0 | J42: CA | K42: 0 | M42: 0
A43: 25 | B43: =INDIRECT(ADDRESS(MATCH($B$1,Calendrier!$A$15:$A$59,0)+14,ROW()-17,3,1,"Calendrier"),1) -> CA | G43: 0 | H43: =IF(AND(K43=0.5,COUNTA(C43:F43)=4),"erreur",IF(AND(D43-C43>0,F43-E43=0),G43-Calendrier!$AS$9/2-M43,IF(AND(F43-E43>0,D43-C43=0),(F43-E43)-Calendrier!$AS$9/2-M43,IF(COUNTA(C43:F43)=4,(D43-C43)+(F43-E43)-M43-Calendrier!$AS$9,0)))) -> 0 | I43: 0 | J43: CA | K43: 0 | M43: 0
A44: 26 | B44: =INDIRECT(ADDRESS(MATCH($B$1,Calendrier!$A$15:$A$59,0)+14,ROW()-17,3,1,"Calendrier"),1) -> CA | G44: 0 | H44: =IF(AND(K44=0.5,COUNTA(C44:F44)=4),"erreur",IF(AND(D44-C44>0,F44-E44=0),G44-Calendrier!$AS$9/2-M44,IF(AND(F44-E44>0,D44-C44=0),(F44-E44)-Calendrier!$AS$9/2-M44,IF(COUNTA(C44:F44)=4,(D44-C44)+(F44-E44)-M44-Calendrier!$AS$9,0)))) -> 0 | I44: 0 | J44: CA | K44: 0 | M44: 0
A45: 27 | B45: =INDIRECT(ADDRESS(MATCH($B$1,Calendrier!$A$15:$A$59,0)+14,ROW()-17,3,1,"Calendrier"),1) -> Sa | G45: 0 | H45: =IF(AND(K45=0.5,COUNTA(C45:F45)=4),"erreur",IF(AND(D45-C45>0,F45-E45=0),G45-Calendrier!$AS$9/2-M45,IF(AND(F45-E45>0,D45-C45=0),(F45-E45)-Calendrier!$AS$9/2-M45,IF(COUNTA(C45:F45)=4,(D45-C45)+(F45-E45)-M45-Calendrier!$AS$9,0)))) -> 0 | I45: 0 | J45: Sa | K45: 0 | M45: 0
A46: 28 | B46: =INDIRECT(ADDRESS(MATCH($B$1,Calendrier!$A$15:$A$59,0)+14,ROW()-17,3,1,"Calendrier"),1) -> Di | G46: 0 | H46: =IF(AND(K46=0.5,COUNTA(C46:F46)=4),"erreur",IF(AND(D46-C46>0,F46-E46=0),G46-Calendrier!$AS$9/2-M46,IF(AND(F46-E46>0,D46-C46=0),(F46-E46)-Calendrier!$AS$9/2-M46,IF(COUNTA(C46:F46)=4,(D46-C46)+(F46-E46)-M46-Calendrier!$AS$9,0)))) -> 0 | I46: 0 | J46: Di | K46: 0 | M46: 0
A47: 29 | B47: =INDIRECT(ADDRESS(MATCH($B$1,Calendrier!$A$15:$A$59,0)+14,ROW()-17,3,1,"Calendrier"),1) -> T | G47: 0 | H47: =IF(AND(K47=0.5,COUNTA(C47:F47)=4),"erreur",IF(AND(D47-C47>0,F47-E47=0),G47-Calendrier!$AS$9/2-M47,IF(AND(F47-E47>0,D47-C47=0),(F47-E47)-Calendrier!$AS$9/2-M47,IF(COUNTA(C47:F47)=4,(D47-C47)+(F47-E47)-M47-Calendrier!$AS$9,0)))) -> 0 | I47: 0 | K47: 0 | M47: 0
A48: 30 | B48: =INDIRECT(ADDRESS(MATCH($B$1,Calendrier!$A$15:$A$59,0)+14,ROW()-17,3,1,"Calendrier"),1) -> T | G48: 0 | H48: =IF(AND(K48=0.5,COUNTA(C48:F48)=4),"erreur",IF(AND(D48-C48>0,F48-E48=0),G48-Calendrier!$AS$9/2-M48,IF(AND(F48-E48>0,D48-C48=0),(F48-E48)-Calendrier!$AS$9/2-M48,IF(COUNTA(C48:F48)=4,(D48-C48)+(F48-E48)-M48-Calendrier!$AS$9,0)))) -> 0 | I48: 0 | K48: 0 | M48: 0
A49: 31 | B49: =INDIRECT(ADDRESS(MATCH($B$1,Calendrier!$A$15:$A$59,0)+14,ROW()-17,3,1,"Calendrier"),1) -> T | G49: 0 | H49: =IF(AND(K49=0.5,COUNTA(C49:F49)=4),"erreur",IF(AND(D49-C49>0,F49-E49=0),G49-Calendrier!$AS$9/2-M49,IF(AND(F49-E49>0,D49-C49=0),(F49-E49)-Calendrier!$AS$9/2-M49,IF(COUNTA(C49:F49)=4,(D49-C49)+(F49-E49)-M49-Calendrier!$AS$9,0)))) -> 0 | I49: 0 | K49: 0 | M49: 0
H50: solde des variations | I50: =I49 -> 0

Sheet SEP
B1: =RIGHT(CELL("nomfichier",$A$1),3) -> SEP | C1: FICHE DE SUIVI HORAIRE
B3: mois : | C3: SEPTEMBRE | F3: année | G3: =Calendrier!A1 -> 2016 | I3: service | J3: =Calendrier!F4 -> COMPTABILITE
B5: nom : | C5: =Calendrier!F2 -> MARTIN | F5: prénom | G5: =Calendrier!F3 -> PATRICK | I5: N° Ident. | J5: =Calendrier!F1 -> N123456
H6: à réaliser | I6: cumul | J6: en cours | K6: reste | M6: n/cumul
D7: Nb J/T | E7: =Calendrier!$A$10 -> 213 | F7: =+$H$10 -> 0 | G7: =$H$12 -> 213 | H7: =Calendrier!$N$1 -> 366 | I7: =AOU!M7 -> 107 | J7: =SUM(J8:J15) -> 9 | K7: =H7-(I7+J7) -> 250 | M7: =SUM(M8:M15) -> 116
G8: CA | H8: =Calendrier!N5 -> 25 | I8: =AOU!M8 -> 20 | J8: =IF(G8="",0,COUNTIF($J$19:$J$49,G8))+IF(F8="",0,COUNTIF($J$19:$J$49,F8)/2) -> 0 | K8: =+H8-(I8+J8) -> 5 | L8: J | M8: =+I8+J8 -> 20
F9: 1/2RTT | G9: RTT | H9: =Calendrier!N8 -> 16 | I9: =AOU!M9 -> 12 | J9: =IF(G9="",0,COUNTIF($J$19:$J$49,G9))+IF(F9="",0,COUNTIF($J$19:$J$49,F9)/2) -> 1 | K9: =+H9-(I9+J9) -> 3 | L9: J | M9: 13
F10: 1/2CS | G10: CS | H10: =Calendrier!N9 -> 0 | I10: =AOU!M10 -> 0 | J10: =IF(G10="",0,COUNTIF($J$19:$J$49,G10))+IF(F10="",0,COUNTIF($J$19:$J$49,F10)/2) -> 0 | K10: =H10-(I10+J10) -> 0 | L10: J | M10: 0
G11: CP | H11: =Calendrier!N6 -> 0 | I11: =AOU!M11 -> 0 | J11: 0 | K11: =H11-(I11+J11) -> 0 | L11: J | M11: 0
F12: 1/2T | G12: T | H12: =Calendrier!N7 -> 213 | I12: =AOU!M12 -> 0 | J12: 0 | K12: =+H12-(I12+J12) -> 213 | L12: J | M12: 0
G13: Sa | H13: =Calendrier!N4 -> 53 | I13: =AOU!M13 -> 35 | J13: 4 | K13: =+H13-(I13+J13) -> 14 | L13: J | M13: 39
G14: Di | H14: =Calendrier!N3 -> 47 | I14: =AOU!M14 -> 31 | J14: 4 | K14: =+H14-(I14+J14) -> 12 | L14: J | M14: 35
G15: F | H15: =Calendrier!N2 -> 12 | I15: =AOU!M15 -> 9 | J15: 0 | K15: =+H15-(I15+J15) -> 3 | L15: J | M15: =+I15+J15 -> 9
G16: heure/avance fin mois | I16: =AOU!I50 -> 0 | M16: =I50 -> 0
B17: Prévu | C17: Entrée | D17: Sortie | E17: Entrée | F17: Sortie | G17: total J | H17: variation | I17: cumul | J17: Type | K17: nb J/T | M17: Bon E/S | N17: Sortie | O17: Retour
N18: avec bon
A19: 1 | B19: =INDIRECT(ADDRESS(MATCH($B$1,Calendrier!$A$15:$A$59,0)+14,ROW()-17,3,1,"Calendrier"),1) -> T | G19: =IF(COUNTA(C19:F19)=4,(D19-C19)+(F19-E19)-M19,IF(COUNTA(C19:D19)<2,(F19-E19)-M19,(D19-C19)-M19)) -> 0 | H19: =IF(AND(K19=0.5,COUNTA(C19:F19)=4),"erreur",IF(AND(D19-C19>0,F19-E19=0),G19-Calendrier!$AS$9/2-M19,IF(AND(F19-E19>0,D19-C19=0),(F19-E19)-Calendrier!$AS$9/2-M19,IF(COUNTA(C19:F19)=4,(D19-C19)+(F19-E19)-M19-Calendrier!$AS$9,0)))) -> 0 | I19: =+I16+H19 -> 0 | J19: =IF(AND(COUNTA(C19:F19)=0,B19<>"T"),B19,IF(AND(OR(B19=$F$9,B19=$F$10),COUNTA(C19:F19=2)),"T",IF(G19>=6,"T",""))) ->  | K19: =IF(OR(B19=$F$9,B19=$F$10),0.5,IF(G19>=6,1,0)) -> 0 | M19: =+O19-N19 -> 0
A20: 2 | B20: =INDIRECT(ADDRESS(MATCH($B$1,Calendrier!$A$15:$A$59,0)+14,ROW()-17,3,1,"Calendrier"),1) -> T | G20: 0 | H20: =IF(AND(K20=0.5,COUNTA(C20:F20)=4),"erreur",IF(AND(D20-C20>0,F20-E20=0),G20-Calendrier!$AS$9/2-M20,IF(AND(F20-E20>0,D20-C20=0),(F20-E20)-Calendrier!$AS$9/2-M20,IF(COUNTA(C20:F20)=4,(D20-C20)+(F20-E20)-M20-Calendrier!$AS$9,0)))) -> 0 | I20: =+I19+H20 -> 0 | K20: 0 | M20: =+O20-N20 -> 0
A21: 3 | B21: =INDIRECT(ADDRESS(MATCH($B$1,Calendrier!$A$15:$A$59,0)+14,ROW()-17,3,1,"Calendrier"),1) -> Sa | G21: 0 | H21: =IF(AND(K21=0.5,COUNTA(C21:F21)=4),"erreur",IF(AND(D21-C21>0,F21-E21=0),G21-Calendrier!$AS$9/2-M21,IF(AND(F21-E21>0,D21-C21=0),(F21-E21)-Calendrier!$AS$9/2-M21,IF(COUNTA(C21:F21)=4,(D21-C21)+(F21-E21)-M21-Calendrier!$AS$9,0)))) -> 0 | I21: 0 | J21: Sa | K21: 0 | M21: 0
A22: 4 | B22: =INDIRECT(ADDRESS(MATCH($B$1,Calendrier!$A$15:$A$59,0)+14,ROW()-17,3,1,"Calendrier"),1) -> Di | G22: 0 | H22: =IF(AND(K22=0.5,COUNTA(C22:F22)=4),"erreur",IF(AND(D22-C22>0,F22-E22=0),G22-Calendrier!$AS$9/2-M22,IF(AND(F22-E22>0,D22-C22=0),(F22-E22)-Calendrier!$AS$9/2-M22,IF(COUNTA(C22:F22)=4,(D22-C22)+(F22-E22)-M22-Calendrier!$AS$9,0)))) -> 0 | I22: 0 | J22: Di | K22: 0 | M22: 0
A23: 5 | B23: =INDIRECT(ADDRESS(MATCH($B$1,Calendrier!$A$15:$A$59,0)+14,ROW()-17,3,1,"Calendrier"),1) -> T | G23: 0 | H23: =IF(AND(K23=0.5,COUNTA(C23:F23)=4),"erreur",IF(AND(D23-C23>0,F23-E23=0),G23-Calendrier!$AS$9/2-M23,IF(AND(F23-E23>0,D23-C23=0),(F23-E23)-Calendrier!$AS$9/2-M23,IF(COUNTA(C23:F23)=4,(D23-C23)+(F23-E23)-M23-Calendrier!$AS$9,0)))) -> 0 | I23: 0 | K23: =IF(OR(B23=$F$9,B23=$F$10),0.5,IF(G23>=6,1,0)) -> 0 | M23: 0
A24: 6 | B24: =INDIRECT(ADDRESS(MATCH($B$1,Calendrier!$A$15:$A$59,0)+14,ROW()-17,3,1,"Calendrier"),1) -> T | G24: 0 | H24: =IF(AND(K24=0.5,COUNTA(C24:F24)=4),"erreur",IF(AND(D24-C24>0,F24-E24=0),G24-Calendrier!$AS$9/2-M24,IF(AND(F24-E24>0,D24-C24=0),(F24-E24)-Calendrier!$AS$9/2-M24,IF(COUNTA(C24:F24)=4,(D24-C24)+(F24-E24)-M24-Calendrier!$AS$9,0)))) -> 0 | I24: 0 | K24: 0 | M24: 0
A25: 7 | B25: =INDIRECT(ADDRESS(MATCH($B$1,Calendrier!$A$15:$A$59,0)+14,ROW()-17,3,1,"Calendrier"),1) -> T | G25: 0 | H25: =IF(AND(K25=0.5,COUNTA(C25:F25)=4),"erreur",IF(AND(D25-C25>0,F25-E25=0),G25-Calendrier!$AS$9/2-M25,IF(AND(F25-E25>0,D25-C25=0),(F25-E25)-Calendrier!$AS$9/2-M25,IF(COUNTA(C25:F25)=4,(D25-C25)+(F25-E25)-M25-Calendrier!$AS$9,0)))) -> 0 | I25: 0 | K25: 0 | M25: 0
A26: 8 | B26: =INDIRECT(ADDRESS(MATCH($B$1,Calendrier!$A$15:$A$59,0)+14,ROW()-17,3,1,"Calendrier"),1) -> T | G26: 0 | H26: =IF(AND(K26=0.5,COUNTA(C26:F26)=4),"erreur",IF(AND(D26-C26>0,F26-E26=0),G26-Calendrier!$AS$9/2-M26,IF(AND(F26-E26>0,D26-C26=0),(F26-E26)-Calendrier!$AS$9/2-M26,IF(COUNTA(C26:F26)=4,(D26-C26)+(F26-E26)-M26-Calendrier!$AS$9,0)))) -> 0 | I26: 0 | K26: 0 | M26: 0
A27: 9 | B27: =INDIRECT(ADDRESS(MATCH($B$1,Calendrier!$A$15:$A$59,0)+14,ROW()-17,3,1,"Calendrier"),1) -> T | G27: 0 | H27: =IF(AND(K27=0.5,COUNTA(C27:F27)=4),"erreur",IF(AND(D27-C27>0,F27-E27=0),G27-Calendrier!$AS$9/2-M27,IF(AND(F27-E27>0,D27-C27=0),(F27-E27)-Calendrier!$AS$9/2-M27,IF(COUNTA(C27:F27)=4,(D27-C27)+(F27-E27)-M27-Calendrier!$AS$9,0)))) -> 0 | I27: 0 | K27: 0 | M27: 0
A28: 10 | B28: =INDIRECT(ADDRESS(MATCH($B$1,Calendrier!$A$15:$A$59,0)+14,ROW()-17,3,1,"Calendrier"),1) -> Sa | G28: 0 | H28: =IF(AND(K28=0.5,COUNTA(C28:F28)=4),"erreur",IF(AND(D28-C28>0,F28-E28=0),G28-Calendrier!$AS$9/2-M28,IF(AND(F28-E28>0,D28-C28=0),(F28-E28)-Calendrier!$AS$9/2-M28,IF(COUNTA(C28:F28)=4,(D28-C28)+(F28-E28)-M28-Calendrier!$AS$9,0)))) -> 0 | I28: 0 | J28: Sa | K28: 0 | M28: 0
A29: 11 | B29: =INDIRECT(ADDRESS(MATCH($B$1,Calendrier!$A$15:$A$59,0)+14,ROW()-17,3,1,"Calendrier"),1) -> Di | G29: 0 | H29: =IF(AND(K29=0.5,COUNTA(C29:F29)=4),"erreur",IF(AND(D29-C29>0,F29-E29=0),G29-Calendrier!$AS$9/2-M29,IF(AND(F29-E29>0,D29-C29=0),(F29-E29)-Calendrier!$AS$9/2-M29,IF(COUNTA(C29:F29)=4,(D29-C29)+(F29-E29)-M29-Calendrier!$AS$9,0)))) -> 0 | I29: 0 | J29: Di | K29: 0 | M29: 0
A30: 12 | B30: =INDIRECT(ADDRESS(MATCH($B$1,Calendrier!$A$15:$A$59,0)+14,ROW()-17,3,1,"Calendrier"),1) -> T | G30: 0 | H30: =IF(AND(K30=0.5,COUNTA(C30:F30)=4),"erreur",IF(AND(D30-C30>0,F30-E30=0),G30-Calendrier!$AS$9/2-M30,IF(AND(F30-E30>0,D30-C30=0),(F30-E30)-Calendrier!$AS$9/2-M30,IF(COUNTA(C30:F30)=4,(D30-C30)+(F30-E30)-M30-Calendrier!$AS$9,0)))) -> 0 | I30: 0 | K30: 0 | M30: 0
A31: 13 | B31: =INDIRECT(ADDRESS(MATCH($B$1,Calendrier!$A$15:$A$59,0)+14,ROW()-17,3,1,"Calendrier"),1) -> T | G31: 0 | H31: =IF(AND(K31=0.5,COUNTA(C31:F31)=4),"erreur",IF(AND(D31-C31>0,F31-E31=0),G31-Calendrier!$AS$9/2-M31,IF(AND(F31-E31>0,D31-C31=0),(F31-E31)-Calendrier!$AS$9/2-M31,IF(COUNTA(C31:F31)=4,(D31-C31)+(F31-E31)-M31-Calendrier!$AS$9,0)))) -> 0 | I31: 0 | K31: 0 | M31: 0
A32: 14 | B32: =INDIRECT(ADDRESS(MATCH($B$1,Calendrier!$A$15:$A$59,0)+14,ROW()-17,3,1,"Calendrier"),1) -> T | G32: 0 | H32: =IF(AND(K32=0.5,COUNTA(C32:F32)=4),"erreur",IF(AND(D32-C32>0,F32-E32=0),G32-Calendrier!$AS$9/2-M32,IF(AND(F32-E32>0,D32-C32=0),(F32-E32)-Calendrier!$AS$9/2-M32,IF(COUNTA(C32:F32)=4,(D32-C32)+(F32-E32)-M32-Calendrier!$AS$9,0)))) -> 0 | I32: 0 | K32: 0 | M32: 0
A33: 15 | B33: =INDIRECT(ADDRESS(MATCH($B$1,Calendrier!$A$15:$A$59,0)+14,ROW()-17,3,1,"Calendrier"),1) -> T | G33: 0 | H33: =IF(AND(K33=0.5,COUNTA(C33:F33)=4),"erreur",IF(AND(D33-C33>0,F33-E33=0),G33-Calendrier!$AS$9/2-M33,IF(AND(F33-E33>0,D33-C33=0),(F33-E33)-Calendrier!$AS$9/2-M33,IF(COUNTA(C33:F33)=4,(D33-C33)+(F33-E33)-M33-Calendrier!$AS$9,0)))) -> 0 | I33: 0 | J33: =IF(AND(COUNTA(C33:F33)=0,B33<>"T"),B33,IF(AND(OR(B33=$F$9,B33=$F$10),COUNTA(C33:F33=2)),"T",IF(G33>=6,"T",""))) ->  | K33: 0 | M33: 0
A34: 16 | B34: =INDIRECT(ADDRESS(MATCH($B$1,Calendrier!$A$15:$A$59,0)+14,ROW()-17,3,1,"Calendrier"),1) -> RTT | G34: 0 | H34: =IF(AND(K34=0.5,COUNTA(C34:F34)=4),"erreur",IF(AND(D34-C34>0,F34-E34=0),G34-Calendrier!$AS$9/2-M34,IF(AND(F34-E34>0,D34-C34=0),(F34-E34)-Calendrier!$AS$9/2-M34,IF(COUNTA(C34:F34)=4,(D34-C34)+(F34-E34)-M34-Calendrier!$AS$9,0)))) -> 0 | I34: 0 | J34: RTT | K34: 0 | M34: 0
A35: 17 | B35: =INDIRECT(ADDRESS(MATCH($B$1,Calendrier!$A$15:$A$59,0)+14,ROW()-17,3,1,"Calendrier"),1) -> Sa | G35: 0 | H35: =IF(AND(K35=0.5,COUNTA(C35:F35)=4),"erreur",IF(AND(D35-C35>0,F35-E35=0),G35-Calendrier!$AS$9/2-M35,IF(AND(F35-E35>0,D35-C35=0),(F35-E35)-Calendrier!$AS$9/2-M35,IF(COUNTA(C35:F35)=4,(D35-C35)+(F35-E35)-M35-Calendrier!$AS$9,0)))) -> 0 | I35: 0 | J35: Sa | K35: 0 | M35: 0
A36: 18 | B36: =INDIRECT(ADDRESS(MATCH($B$1,Calendrier!$A$15:$A$59,0)+14,ROW()-17,3,1,"Calendrier"),1) -> Di | G36: 0 | H36: =IF(AND(K36=0.5,COUNTA(C36:F36)=4),"erreur",IF(AND(D36-C36>0,F36-E36=0),G36-Calendrier!$AS$9/2-M36,IF(AND(F36-E36>0,D36-C36=0),(F36-E36)-Calendrier!$AS$9/2-M36,IF(COUNTA(C36:F36)=4,(D36-C36)+(F36-E36)-M36-Calendrier!$AS$9,0)))) -> 0 | I36: 0 | J36: Di | K36: 0 | M36: 0
A37: 19 | B37: =INDIRECT(ADDRESS(MATCH($B$1,Calendrier!$A$15:$A$59,0)+14,ROW()-17,3,1,"Calendrier"),1) -> T | G37: 0 | H37: =IF(AND(K37=0.5,COUNTA(C37:F37)=4),"erreur",IF(AND(D37-C37>0,F37-E37=0),G37-Calendrier!$AS$9/2-M37,IF(AND(F37-E37>0,D37-C37=0),(F37-E37)-Calendrier!$AS$9/2-M37,IF(COUNTA(C37:F37)=4,(D37-C37)+(F37-E37)-M37-Calendrier!$AS$9,0)))) -> 0 | I37: 0 | K37: 0 | M37: 0
A38: 20 | B38: =INDIRECT(ADDRESS(MATCH($B$1,Calendrier!$A$15:$A$59,0)+14,ROW()-17,3,1,"Calendrier"),1) -> T | G38: 0 | H38: =IF(AND(K38=0.5,COUNTA(C38:F38)=4),"erreur",IF(AND(D38-C38>0,F38-E38=0),G38-Calendrier!$AS$9/2-M38,IF(AND(F38-E38>0,D38-C38=0),(F38-E38)-Calendrier!$AS$9/2-M38,IF(COUNTA(C38:F38)=4,(D38-C38)+(F38-E38)-M38-Calendrier!$AS$9,0)))) -> 0 | I38: 0 | K38: 0 | M38: 0
A39: 21 | B39: =INDIRECT(ADDRESS(MATCH($B$1,Calendrier!$A$15:$A$59,0)+14,ROW()-17,3,1,"Calendrier"),1) -> T | G39: 0 | H39: =IF(AND(K39=0.5,COUNTA(C39:F39)=4),"erreur",IF(AND(D39-C39>0,F39-E39=0),G39-Calendrier!$AS$9/2-M39,IF(AND(F39-E39>0,D39-C39=0),(F39-E39)-Calendrier!$AS$9/2-M39,IF(COUNTA(C39:F39)=4,(D39-C39)+(F39-E39)-M39-Calendrier!$AS$9,0)))) -> 0 | I39: 0 | K39: 0 | M39: 0
A40: 22 | B40: =INDIRECT(ADDRESS(MATCH($B$1,Calendrier!$A$15:$A$59,0)+14,ROW()-17,3,1,"Calendrier"),1) -> T | G40: 0 | H40: =IF(AND(K40=0.5,COUNTA(C40:F40)=4),"erreur",IF(AND(D40-C40>0,F40-E40=0),G40-Calendrier!$AS$9/2-M40,IF(AND(F40-E40>0,D40-C40=0),(F40-E40)-Calendrier!$AS$9/2-M40,IF(COUNTA(C40:F40)=4,(D40-C40)+(F40-E40)-M40-Calendrier!$AS$9,0)))) -> 0 | I40: 0 | K40: 0 | M40: 0
A41: 23 | B41: =INDIRECT(ADDRESS(MATCH($B$1,Calendrier!$A$15:$A$59,0)+14,ROW()-17,3,1,"Calendrier"),1) -> T | G41: 0 | H41: =IF(AND(K41=0.5,COUNTA(C41:F41)=4),"erreur",IF(AND(D41-C41>0,F41-E41=0),G41-Calendrier!$AS$9/2-M41,IF(AND(F41-E41>0,D41-C41=0),(F41-E41)-Calendrier!$AS$9/2-M41,IF(COUNTA(C41:F41)=4,(D41-C41)+(F41-E41)-M41-Calendrier!$AS$9,0)))) -> 0 | I41: 0 | K41: 0 | M41: 0
A42: 24 | B42: =INDIRECT(ADDRESS(MATCH($B$1,Calendrier!$A$15:$A$59,0)+14,ROW()-17,3,1,"Calendrier"),1) -> Sa | G42: 0 | H42: =IF(AND(K42=0.5,COUNTA(C42:F42)=4),"erreur",IF(AND(D42-C42>0,F42-E42=0),G42-Calendrier!$AS$9/2-M42,IF(AND(F42-E42>0,D42-C42=0),(F42-E42)-Calendrier!$AS$9/2-M42,IF(COUNTA(C42:F42)=4,(D42-C42)+(F42-E42)-M42-Calendrier!$AS$9,0)))) -> 0 | I42: 0 | J42: Sa | K42: 0 | M42: 0
A43: 25 | B43: =INDIRECT(ADDRESS(MATCH($B$1,Calendrier!$A$15:$A$59,0)+14,ROW()-17,3,1,"Calendrier"),1) -> Di | G43: 0 | H43: =IF(AND(K43=0.5,COUNTA(C43:F43)=4),"erreur",IF(AND(D43-C43>0,F43-E43=0),G43-Calendrier!$AS$9/2-M43,IF(AND(F43-E43>0,D43-C43=0),(F43-E43)-Calendrier!$AS$9/2-M43,IF(COUNTA(C43:F43)=4,(D43-C43)+(F43-E43)-M43-Calendrier!$AS$9,0)))) -> 0 | I43: 0 | J43: Di | K43: 0 | M43: 0
A44: 26 | B44: =INDIRECT(ADDRESS(MATCH($B$1,Calendrier!$A$15:$A$59,0)+14,ROW()-17,3,1,"Calendrier"),1) -> T | G44: 0 | H44: =IF(AND(K44=0.5,COUNTA(C44:F44)=4),"erreur",IF(AND(D44-C44>0,F44-E44=0),G44-Calendrier!$AS$9/2-M44,IF(AND(F44-E44>0,D44-C44=0),(F44-E44)-Calendrier!$AS$9/2-M44,IF(COUNTA(C44:F44)=4,(D44-C44)+(F44-E44)-M44-Calendrier!$AS$9,0)))) -> 0 | I44: 0 | K44: 0 | M44: 0
A45: 27 | B45: =INDIRECT(ADDRESS(MATCH($B$1,Calendrier!$A$15:$A$59,0)+14,ROW()-17,3,1,"Calendrier"),1) -> T | G45: 0 | H45: =IF(AND(K45=0.5,COUNTA(C45:F45)=4),"erreur",IF(AND(D45-C45>0,F45-E45=0),G45-Calendrier!$AS$9/2-M45,IF(AND(F45-E45>0,D45-C45=0),(F45-E45)-Calendrier!$AS$9/2-M45,IF(COUNTA(C45:F45)=4,(D45-C45)+(F45-E45)-M45-Calendrier!$AS$9,0)))) -> 0 | I45: 0 | K45: 0 | M45: 0
A46: 28 | B46: =INDIRECT(ADDRESS(MATCH($B$1,Calendrier!$A$15:$A$59,0)+14,ROW()-17,3,1,"Calendrier"),1) -> T | G46: 0 | H46: =IF(AND(K46=0.5,COUNTA(C46:F46)=4),"erreur",IF(AND(D46-C46>0,F46-E46=0),G46-Calendrier!$AS$9/2-M46,IF(AND(F46-E46>0,D46-C46=0),(F46-E46)-Calendrier!$AS$9/2-M46,IF(COUNTA(C46:F46)=4,(D46-C46)+(F46-E46)-M46-Calendrier!$AS$9,0)))) -> 0 | I46: 0 | K46: 0 | M46: 0
A47: 29 | B47: =INDIRECT(ADDRESS(MATCH($B$1,Calendrier!$A$15:$A$59,0)+14,ROW()-17,3,1,"Calendrier"),1) -> T | G47: 0 | H47: =IF(AND(K47=0.5,COUNTA(C47:F47)=4),"erreur",IF(AND(D47-C47>0,F47-E47=0),G47-Calendrier!$AS$9/2-M47,IF(AND(F47-E47>0,D47-C47=0),(F47-E47)-Calendrier!$AS$9/2-M47,IF(COUNTA(C47:F47)=4,(D47-C47)+(F47-E47)-M47-Calendrier!$AS$9,0)))) -> 0 | I47: 0 | K47: 0 | M47: 0
A48: 30 | B48: =INDIRECT(ADDRESS(MATCH($B$1,Calendrier!$A$15:$A$59,0)+14,ROW()-17,3,1,"Calendrier"),1) -> T | G48: 0 | H48: =IF(AND(K48=0.5,COUNTA(C48:F48)=4),"erreur",IF(AND(D48-C48>0,F48-E48=0),G48-Calendrier!$AS$9/2-M48,IF(AND(F48-E48>0,D48-C48=0),(F48-E48)-Calendrier!$AS$9/2-M48,IF(COUNTA(C48:F48)=4,(D48-C48)+(F48-E48)-M48-Calendrier!$AS$9,0)))) -> 0 | I48: 0 | K48: 0 | M48: 0
I49: 0 | J49: 0 | K49: 0 | M49: 0
H50: solde des variations | I50: =I49 -> 0

Sheet OCT
B1: =RIGHT(CELL("nomfichier",$A$1),3) -> OCT | C1: FICHE DE SUIVI HORAIRE
B3: mois : | C3: OCTOBRE | F3: année | G3: =Calendrier!A1 -> 2016 | I3: service | J3: =Calendrier!F4 -> COMPTABILITE
B5: nom : | C5: =Calendrier!F2 -> MARTIN | F5: prénom | G5: =Calendrier!F3 -> PATRICK | I5: N° Ident. | J5: =Calendrier!F1 -> N123456
G6: type | H6: à réaliser | I6: cumul | J6: en cours | K6: reste | M6: n/cumul
D7: Nb J/T | E7: =Calendrier!$A$10 -> 213 | F7: =+$H$10 -> 0 | G7: =$H$12 -> 213 | H7: =Calendrier!$N$1 -> 366 | I7: =SEP!M7 -> 116 | J7: =SUM(J8:J15) -> 11 | K7: =H7-(I7+J7) -> 239 | M7: =SUM(M8:M15) -> 127
G8: CA | H8: =Calendrier!N5 -> 25 | I8: =SEP!M8 -> 20 | J8: =IF(G8="",0,COUNTIF($J$19:$J$49,G8))+IF(F8="",0,COUNTIF($J$19:$J$49,F8)/2) -> 0 | K8: =+H8-(I8+J8) -> 5 | L8: J | M8: =+I8+J8 -> 20
F9: 1/2RTT | G9: RTT | H9: =Calendrier!N8 -> 16 | I9: =SEP!M9 -> 13 | J9: =IF(G9="",0,COUNTIF($J$19:$J$49,G9))+IF(F9="",0,COUNTIF($J$19:$J$49,F9)/2) -> 1 | K9: =+H9-(I9+J9) -> 2 | L9: J | M9: 14
F10: 1/2CS | G10: CS | H10: =Calendrier!N9 -> 0 | I10: =SEP!M10 -> 0 | J10: =IF(G10="",0,COUNTIF($J$19:$J$49,G10))+IF(F10="",0,COUNTIF($J$19:$J$49,F10)/2) -> 0 | K10: =H10-(I10+J10) -> 0 | L10: J | M10: 0
G11: CP | H11: =Calendrier!N6 -> 0 | I11: =SEP!M11 -> 0 | J11: 0 | K11: =H11-(I11+J11) -> 0 | L11: J | M11: 0
F12: 1/2T | G12: T | H12: =Calendrier!N7 -> 213 | I12: =SEP!M12 -> 0 | J12: 0 | K12: =+H12-(I12+J12) -> 213 | L12: J | M12: 0
G13: Sa | H13: =Calendrier!N4 -> 53 | I13: =SEP!M13 -> 39 | J13: 5 | K13: =+H13-(I13+J13) -> 9 | L13: J | M13: 44
G14: Di | H14: =Calendrier!N3 -> 47 | I14: =SEP!M14 -> 35 | J14: 5 | K14: =+H14-(I14+J14) -> 7 | L14: J | M14: 40
G15: F | H15: =Calendrier!N2 -> 12 | I15: =SEP!M15 -> 9 | J15: 0 | K15: =+H15-(I15+J15) -> 3 | L15: J | M15: =+I15+J15 -> 9
G16: heure/avance fin mois | I16: =SEP!I50 -> 0 | M16: =I50 -> 0
B17: Prévu | C17: Entrée | D17: Sortie | E17: Entrée | F17: Sortie | G17: total J | H17: variation | I17: cumul | J17: Type | K17: nb J/T | M17: Bon E/S | N17: Sortie | O17: Retour
N18: avec bon
A19: 1 | B19: =INDIRECT(ADDRESS(MATCH($B$1,Calendrier!$A$15:$A$59,0)+14,ROW()-17,3,1,"Calendrier"),1) -> Sa | G19: =IF(COUNTA(C19:F19)=4,(D19-C19)+(F19-E19)-M19,IF(COUNTA(C19:D19)<2,(F19-E19)-M19,(D19-C19)-M19)) -> 0 | H19: =IF(AND(K19=0.5,COUNTA(C19:F19)=4),"erreur",IF(AND(D19-C19>0,F19-E19=0),G19-Calendrier!$AS$9/2-M19,IF(AND(F19-E19>0,D19-C19=0),(F19-E19)-Calendrier!$AS$9/2-M19,IF(COUNTA(C19:F19)=4,(D19-C19)+(F19-E19)-M19-Calendrier!$AS$9,0)))) -> 0 | I19: =+I16+H19 -> 0 | J19: =IF(AND(COUNTA(C19:F19)=0,B19<>"T"),B19,IF(AND(OR(B19=$F$9,B19=$F$10),COUNTA(C19:F19=2)),"T",IF(G19>=6,"T",""))) -> Sa | K19: =IF(OR(B19=$F$9,B19=$F$10),0.5,IF(G19>=6,1,0)) -> 0 | M19: =+O19-N19 -> 0
A20: 2 | B20: =INDIRECT(ADDRESS(MATCH($B$1,Calendrier!$A$15:$A$59,0)+14,ROW()-17,3,1,"Calendrier"),1) -> Di | G20: 0 | H20: =IF(AND(K20=0.5,COUNTA(C20:F20)=4),"erreur",IF(AND(D20-C20>0,F20-E20=0),G20-Calendrier!$AS$9/2-M20,IF(AND(F20-E20>0,D20-C20=0),(F20-E20)-Calendrier!$AS$9/2-M20,IF(COUNTA(C20:F20)=4,(D20-C20)+(F20-E20)-M20-Calendrier!$AS$9,0)))) -> 0 | I20: =+I19+H20 -> 0 | J20: Di | K20: 0 | M20: =+O20-N20 -> 0
A21: 3 | B21: =INDIRECT(ADDRESS(MATCH($B$1,Calendrier!$A$15:$A$59,0)+14,ROW()-17,3,1,"Calendrier"),1) -> T | G21: 0 | H21: =IF(AND(K21=0.5,COUNTA(C21:F21)=4),"erreur",IF(AND(D21-C21>0,F21-E21=0),G21-Calendrier!$AS$9/2-M21,IF(AND(F21-E21>0,D21-C21=0),(F21-E21)-Calendrier!$AS$9/2-M21,IF(COUNTA(C21:F21)=4,(D21-C21)+(F21-E21)-M21-Calendrier!$AS$9,0)))) -> 0 | I21: 0 | K21: 0 | M21: 0
A22: 4 | B22: =INDIRECT(ADDRESS(MATCH($B$1,Calendrier!$A$15:$A$59,0)+14,ROW()-17,3,1,"Calendrier"),1) -> T | G22: 0 | H22: =IF(AND(K22=0.5,COUNTA(C22:F22)=4),"erreur",IF(AND(D22-C22>0,F22-E22=0),G22-Calendrier!$AS$9/2-M22,IF(AND(F22-E22>0,D22-C22=0),(F22-E22)-Calendrier!$AS$9/2-M22,IF(COUNTA(C22:F22)=4,(D22-C22)+(F22-E22)-M22-Calendrier!$AS$9,0)))) -> 0 | I22: 0 | K22: 0 | M22: 0
A23: 5 | B23: =INDIRECT(ADDRESS(MATCH($B$1,Calendrier!$A$15:$A$59,0)+14,ROW()-17,3,1,"Calendrier"),1) -> T | G23: 0 | H23: =IF(AND(K23=0.5,COUNTA(C23:F23)=4),"erreur",IF(AND(D23-C23>0,F23-E23=0),G23-Calendrier!$AS$9/2-M23,IF(AND(F23-E23>0,D23-C23=0),(F23-E23)-Calendrier!$AS$9/2-M23,IF(COUNTA(C23:F23)=4,(D23-C23)+(F23-E23)-M23-Calendrier!$AS$9,0)))) -> 0 | I23: 0 | K23: =IF(OR(B23=$F$9,B23=$F$10),0.5,IF(G23>=6,1,0)) -> 0 | M23: 0
A24: 6 | B24: =INDIRECT(ADDRESS(MATCH($B$1,Calendrier!$A$15:$A$59,0)+14,ROW()-17,3,1,"Calendrier"),1) -> T | G24: 0 | H24: =IF(AND(K24=0.5,COUNTA(C24:F24)=4),"erreur",IF(AND(D24-C24>0,F24-E24=0),G24-Calendrier!$AS$9/2-M24,IF(AND(F24-E24>0,D24-C24=0),(F24-E24)-Calendrier!$AS$9/2-M24,IF(COUNTA(C24:F24)=4,(D24-C24)+(F24-E24)-M24-Calendrier!$AS$9,0)))) -> 0 | I24: 0 | K24: 0 | M24: 0
A25: 7 | B25: =INDIRECT(ADDRESS(MATCH($B$1,Calendrier!$A$15:$A$59,0)+14,ROW()-17,3,1,"Calendrier"),1) -> T | G25: 0 | H25: =IF(AND(K25=0.5,COUNTA(C25:F25)=4),"erreur",IF(AND(D25-C25>0,F25-E25=0),G25-Calendrier!$AS$9/2-M25,IF(AND(F25-E25>0,D25-C25=0),(F25-E25)-Calendrier!$AS$9/2-M25,IF(COUNTA(C25:F25)=4,(D25-C25)+(F25-E25)-M25-Calendrier!$AS$9,0)))) -> 0 | I25: 0 | K25: 0 | M25: 0
A26: 8 | B26: =INDIRECT(ADDRESS(MATCH($B$1,Calendrier!$A$15:$A$59,0)+14,ROW()-17,3,1,"Calendrier"),1) -> Sa | G26: 0 | H26: =IF(AND(K26=0.5,COUNTA(C26:F26)=4),"erreur",IF(AND(D26-C26>0,F26-E26=0),G26-Calendrier!$AS$9/2-M26,IF(AND(F26-E26>0,D26-C26=0),(F26-E26)-Calendrier!$AS$9/2-M26,IF(COUNTA(C26:F26)=4,(D26-C26)+(F26-E26)-M26-Calendrier!$AS$9,0)))) -> 0 | I26: 0 | J26: Sa | K26: 0 | M26: 0
A27: 9 | B27: =INDIRECT(ADDRESS(MATCH($B$1,Calendrier!$A$15:$A$59,0)+14,ROW()-17,3,1,"Calendrier"),1) -> Di | G27: 0 | H27: =IF(AND(K27=0.5,COUNTA(C27:F27)=4),"erreur",IF(AND(D27-C27>0,F27-E27=0),G27-Calendrier!$AS$9/2-M27,IF(AND(F27-E27>0,D27-C27=0),(F27-E27)-Calendrier!$AS$9/2-M27,IF(COUNTA(C27:F27)=4,(D27-C27)+(F27-E27)-M27-Calendrier!$AS$9,0)))) -> 0 | I27: 0 | J27: Di | K27: 0 | M27: 0
A28: 10 | B28: =INDIRECT(ADDRESS(MATCH($B$1,Calendrier!$A$15:$A$59,0)+14,ROW()-17,3,1,"Calendrier"),1) -> T | G28: 0 | H28: =IF(AND(K28=0.5,COUNTA(C28:F28)=4),"erreur",IF(AND(D28-C28>0,F28-E28=0),G28-Calendrier!$AS$9/2-M28,IF(AND(F28-E28>0,D28-C28=0),(F28-E28)-Calendrier!$AS$9/2-M28,IF(COUNTA(C28:F28)=4,(D28-C28)+(F28-E28)-M28-Calendrier!$AS$9,0)))) -> 0 | I28: 0 | K28: 0 | M28: 0
A29: 11 | B29: =INDIRECT(ADDRESS(MATCH($B$1,Calendrier!$A$15:$A$59,0)+14,ROW()-17,3,1,"Calendrier"),1) -> T | G29: 0 | H29: =IF(AND(K29=0.5,COUNTA(C29:F29)=4),"erreur",IF(AND(D29-C29>0,F29-E29=0),G29-Calendrier!$AS$9/2-M29,IF(AND(F29-E29>0,D29-C29=0),(F29-E29)-Calendrier!$AS$9/2-M29,IF(COUNTA(C29:F29)=4,(D29-C29)+(F29-E29)-M29-Calendrier!$AS$9,0)))) -> 0 | I29: 0 | K29: 0 | M29: 0
A30: 12 | B30: =INDIRECT(ADDRESS(MATCH($B$1,Calendrier!$A$15:$A$59,0)+14,ROW()-17,3,1,"Calendrier"),1) -> T | G30: 0 | H30: =IF(AND(K30=0.5,COUNTA(C30:F30)=4),"erreur",IF(AND(D30-C30>0,F30-E30=0),G30-Calendrier!$AS$9/2-M30,IF(AND(F30-E30>0,D30-C30=0),(F30-E30)-Calendrier!$AS$9/2-M30,IF(COUNTA(C30:F30)=4,(D30-C30)+(F30-E30)-M30-Calendrier!$AS$9,0)))) -> 0 | I30: 0 | K30: 0 | M30: 0
A31: 13 | B31: =INDIRECT(ADDRESS(MATCH($B$1,Calendrier!$A$15:$A$59,0)+14,ROW()-17,3,1,"Calendrier"),1) -> T | G31: 0 | H31: =IF(AND(K31=0.5,COUNTA(C31:F31)=4),"erreur",IF(AND(D31-C31>0,F31-E31=0),G31-Calendrier!$AS$9/2-M31,IF(AND(F31-E31>0,D31-C31=0),(F31-E31)-Calendrier!$AS$9/2-M31,IF(COUNTA(C31:F31)=4,(D31-C31)+(F31-E31)-M31-Calendrier!$AS$9,0)))) -> 0 | I31: 0 | K31: 0 | M31: 0
A32: 14 | B32: =INDIRECT(ADDRESS(MATCH($B$1,Calendrier!$A$15:$A$59,0)+14,ROW()-17,3,1,"Calendrier"),1) -> RTT | G32: 0 | H32: =IF(AND(K32=0.5,COUNTA(C32:F32)=4),"erreur",IF(AND(D32-C32>0,F32-E32=0),G32-Calendrier!$AS$9/2-M32,IF(AND(F32-E32>0,D32-C32=0),(F32-E32)-Calendrier!$AS$9/2-M32,IF(COUNTA(C32:F32)=4,(D32-C32)+(F32-E32)-M32-Calendrier!$AS$9,0)))) -> 0 | I32: 0 | J32: RTT | K32: 0 | M32: 0
A33: 15 | B33: =INDIRECT(ADDRESS(MATCH($B$1,Calendrier!$A$15:$A$59,0)+14,ROW()-17,3,1,"Calendrier"),1) -> Sa | G33: 0 | H33: =IF(AND(K33=0.5,COUNTA(C33:F33)=4),"erreur",IF(AND(D33-C33>0,F33-E33=0),G33-Calendrier!$AS$9/2-M33,IF(AND(F33-E33>0,D33-C33=0),(F33-E33)-Calendrier!$AS$9/2-M33,IF(COUNTA(C33:F33)=4,(D33-C33)+(F33-E33)-M33-Calendrier!$AS$9,0)))) -> 0 | I33: 0 | J33: =IF(AND(COUNTA(C33:F33)=0,B33<>"T"),B33,IF(AND(OR(B33=$F$9,B33=$F$10),COUNTA(C33:F33=2)),"T",IF(G33>=6,"T",""))) -> Sa | K33: 0 | M33: 0
A34: 16 | B34: =INDIRECT(ADDRESS(MATCH($B$1,Calendrier!$A$15:$A$59,0)+14,ROW()-17,3,1,"Calendrier"),1) -> Di | G34: 0 | H34: =IF(AND(K34=0.5,COUNTA(C34:F34)=4),"erreur",IF(AND(D34-C34>0,F34-E34=0),G34-Calendrier!$AS$9/2-M34,IF(AND(F34-E34>0,D34-C34=0),(F34-E34)-Calendrier!$AS$9/2-M34,IF(COUNTA(C34:F34)=4,(D34-C34)+(F34-E34)-M34-Calendrier!$AS$9,0)))) -> 0 | I34: 0 | J34: Di | K34: 0 | M34: 0
A35: 17 | B35: =INDIRECT(ADDRESS(MATCH($B$1,Calendrier!$A$15:$A$59,0)+14,ROW()-17,3,1,"Calendrier"),1) -> T | G35: 0 | H35: =IF(AND(K35=0.5,COUNTA(C35:F35)=4),"erreur",IF(AND(D35-C35>0,F35-E35=0),G35-Calendrier!$AS$9/2-M35,IF(AND(F35-E35>0,D35-C35=0),(F35-E35)-Calendrier!$AS$9/2-M35,IF(COUNTA(C35:F35)=4,(D35-C35)+(F35-E35)-M35-Calendrier!$AS$9,0)))) -> 0 | I35: 0 | K35: 0 | M35: 0
A36: 18 | B36: =INDIRECT(ADDRESS(MATCH($B$1,Calendrier!$A$15:$A$59,0)+14,ROW()-17,3,1,"Calendrier"),1) -> T | G36: 0 | H36: =IF(AND(K36=0.5,COUNTA(C36:F36)=4),"erreur",IF(AND(D36-C36>0,F36-E36=0),G36-Calendrier!$AS$9/2-M36,IF(AND(F36-E36>0,D36-C36=0),(F36-E36)-Calendrier!$AS$9/2-M36,IF(COUNTA(C36:F36)=4,(D36-C36)+(F36-E36)-M36-Calendrier!$AS$9,0)))) -> 0 | I36: 0 | K36: 0 | M36: 0
A37: 19 | B37: =INDIRECT(ADDRESS(MATCH($B$1,Calendrier!$A$15:$A$59,0)+14,ROW()-17,3,1,"Calendrier"),1) -> T | G37: 0 | H37: =IF(AND(K37=0.5,COUNTA(C37:F37)=4),"erreur",IF(AND(D37-C37>0,F37-E37=0),G37-Calendrier!$AS$9/2-M37,IF(AND(F37-E37>0,D37-C37=0),(F37-E37)-Calendrier!$AS$9/2-M37,IF(COUNTA(C37:F37)=4,(D37-C37)+(F37-E37)-M37-Calendrier!$AS$9,0)))) -> 0 | I37: 0 | K37: 0 | M37: 0
A38: 20 | B38: =INDIRECT(ADDRESS(MATCH($B$1,Calendrier!$A$15:$A$59,0)+14,ROW()-17,3,1,"Calendrier"),1) -> T | G38: 0 | H38: =IF(AND(K38=0.5,COUNTA(C38:F38)=4),"erreur",IF(AND(D38-C38>0,F38-E38=0),G38-Calendrier!$AS$9/2-M38,IF(AND(F38-E38>0,D38-C38=0),(F38-E38)-Calendrier!$AS$9/2-M38,IF(COUNTA(C38:F38)=4,(D38-C38)+(F38-E38)-M38-Calendrier!$AS$9,0)))) -> 0 | I38: 0 | K38: 0 | M38: 0
A39: 21 | B39: =INDIRECT(ADDRESS(MATCH($B$1,Calendrier!$A$15:$A$59,0)+14,ROW()-17,3,1,"Calendrier"),1) -> T | G39: 0 | H39: =IF(AND(K39=0.5,COUNTA(C39:F39)=4),"erreur",IF(AND(D39-C39>0,F39-E39=0),G39-Calendrier!$AS$9/2-M39,IF(AND(F39-E39>0,D39-C39=0),(F39-E39)-Calendrier!$AS$9/2-M39,IF(COUNTA(C39:F39)=4,(D39-C39)+(F39-E39)-M39-Calendrier!$AS$9,0)))) -> 0 | I39: 0 | K39: 0 | M39: 0
A40: 22 | B40: =INDIRECT(ADDRESS(MATCH($B$1,Calendrier!$A$15:$A$59,0)+14,ROW()-17,3,1,"Calendrier"),1) -> Sa | G40: 0 | H40: =IF(AND(K40=0.5,COUNTA(C40:F40)=4),"erreur",IF(AND(D40-C40>0,F40-E40=0),G40-Calendrier!$AS$9/2-M40,IF(AND(F40-E40>0,D40-C40=0),(F40-E40)-Calendrier!$AS$9/2-M40,IF(COUNTA(C40:F40)=4,(D40-C40)+(F40-E40)-M40-Calendrier!$AS$9,0)))) -> 0 | I40: 0 | J40: Sa | K40: 0 | M40: 0
A41: 23 | B41: =INDIRECT(ADDRESS(MATCH($B$1,Calendrier!$A$15:$A$59,0)+14,ROW()-17,3,1,"Calendrier"),1) -> Di | G41: 0 | H41: =IF(AND(K41=0.5,COUNTA(C41:F41)=4),"erreur",IF(AND(D41-C41>0,F41-E41=0),G41-Calendrier!$AS$9/2-M41,IF(AND(F41-E41>0,D41-C41=0),(F41-E41)-Calendrier!$AS$9/2-M41,IF(COUNTA(C41:F41)=4,(D41-C41)+(F41-E41)-M41-Calendrier!$AS$9,0)))) -> 0 | I41: 0 | J41: Di | K41: 0 | M41: 0
A42: 24 | B42: =INDIRECT(ADDRESS(MATCH($B$1,Calendrier!$A$15:$A$59,0)+14,ROW()-17,3,1,"Calendrier"),1) -> T | G42: 0 | H42: =IF(AND(K42=0.5,COUNTA(C42:F42)=4),"erreur",IF(AND(D42-C42>0,F42-E42=0),G42-Calendrier!$AS$9/2-M42,IF(AND(F42-E42>0,D42-C42=0),(F42-E42)-Calendrier!$AS$9/2-M42,IF(COUNTA(C42:F42)=4,(D42-C42)+(F42-E42)-M42-Calendrier!$AS$9,0)))) -> 0 | I42: 0 | K42: 0 | M42: 0
A43: 25 | B43: =INDIRECT(ADDRESS(MATCH($B$1,Calendrier!$A$15:$A$59,0)+14,ROW()-17,3,1,"Calendrier"),1) -> T | G43: 0 | H43: =IF(AND(K43=0.5,COUNTA(C43:F43)=4),"erreur",IF(AND(D43-C43>0,F43-E43=0),G43-Calendrier!$AS$9/2-M43,IF(AND(F43-E43>0,D43-C43=0),(F43-E43)-Calendrier!$AS$9/2-M43,IF(COUNTA(C43:F43)=4,(D43-C43)+(F43-E43)-M43-Calendrier!$AS$9,0)))) -> 0 | I43: 0 | K43: 0 | M43: 0
A44: 26 | B44: =INDIRECT(ADDRESS(MATCH($B$1,Calendrier!$A$15:$A$59,0)+14,ROW()-17,3,1,"Calendrier"),1) -> T | G44: 0 | H44: =IF(AND(K44=0.5,COUNTA(C44:F44)=4),"erreur",IF(AND(D44-C44>0,F44-E44=0),G44-Calendrier!$AS$9/2-M44,IF(AND(F44-E44>0,D44-C44=0),(F44-E44)-Calendrier!$AS$9/2-M44,IF(COUNTA(C44:F44)=4,(D44-C44)+(F44-E44)-M44-Calendrier!$AS$9,0)))) -> 0 | I44: 0 | K44: 0 | M44: 0
A45: 27 | B45: =INDIRECT(ADDRESS(MATCH($B$1,Calendrier!$A$15:$A$59,0)+14,ROW()-17,3,1,"Calendrier"),1) -> T | G45: 0 | H45: =IF(AND(K45=0.5,COUNTA(C45:F45)=4),"erreur",IF(AND(D45-C45>0,F45-E45=0),G45-Calendrier!$AS$9/2-M45,IF(AND(F45-E45>0,D45-C45=0),(F45-E45)-Calendrier!$AS$9/2-M45,IF(COUNTA(C45:F45)=4,(D45-C45)+(F45-E45)-M45-Calendrier!$AS$9,0)))) -> 0 | I45: 0 | K45: 0 | M45: 0
A46: 28 | B46: =INDIRECT(ADDRESS(MATCH($B$1,Calendrier!$A$15:$A$59,0)+14,ROW()-17,3,1,"Calendrier"),1) -> T | G46: 0 | H46: =IF(AND(K46=0.5,COUNTA(C46:F46)=4),"erreur",IF(AND(D46-C46>0,F46-E46=0),G46-Calendrier!$AS$9/2-M46,IF(AND(F46-E46>0,D46-C46=0),(F46-E46)-Calendrier!$AS$9/2-M46,IF(COUNTA(C46:F46)=4,(D46-C46)+(F46-E46)-M46-Calendrier!$AS$9,0)))) -> 0 | I46: 0 | K46: 0 | M46: 0
A47: 29 | B47: =INDIRECT(ADDRESS(MATCH($B$1,Calendrier!$A$15:$A$59,0)+14,ROW()-17,3,1,"Calendrier"),1) -> Sa | G47: 0 | H47: =IF(AND(K47=0.5,COUNTA(C47:F47)=4),"erreur",IF(AND(D47-C47>0,F47-E47=0),G47-Calendrier!$AS$9/2-M47,IF(AND(F47-E47>0,D47-C47=0),(F47-E47)-Calendrier!$AS$9/2-M47,IF(COUNTA(C47:F47)=4,(D47-C47)+(F47-E47)-M47-Calendrier!$AS$9,0)))) -> 0 | I47: 0 | J47: Sa | K47: 0 | M47: 0
A48: 30 | B48: =INDIRECT(ADDRESS(MATCH($B$1,Calendrier!$A$15:$A$59,0)+14,ROW()-17,3,1,"Calendrier"),1) -> Di | G48: 0 | H48: =IF(AND(K48=0.5,COUNTA(C48:F48)=4),"erreur",IF(AND(D48-C48>0,F48-E48=0),G48-Calendrier!$AS$9/2-M48,IF(AND(F48-E48>0,D48-C48=0),(F48-E48)-Calendrier!$AS$9/2-M48,IF(COUNTA(C48:F48)=4,(D48-C48)+(F48-E48)-M48-Calendrier!$AS$9,0)))) -> 0 | I48: 0 | J48: Di | K48: 0 | M48: 0
A49: 31 | B49: =INDIRECT(ADDRESS(MATCH($B$1,Calendrier!$A$15:$A$59,0)+14,ROW()-17,3,1,"Calendrier"),1) -> T | G49: 0 | H49: =IF(AND(K49=0.5,COUNTA(C49:F49)=4),"erreur",IF(AND(D49-C49>0,F49-E49=0),G49-Calendrier!$AS$9/2-M49,IF(AND(F49-E49>0,D49-C49=0),(F49-E49)-Calendrier!$AS$9/2-M49,IF(COUNTA(C49:F49)=4,(D49-C49)+(F49-E49)-M49-Calendrier!$AS$9,0)))) -> 0 | I49: 0 | K49: 0 | M49: 0
H50: solde des variations | I50: =I49 -> 0

Sheet NOV
B1: =RIGHT(CELL("nomfichier",$A$1),3) -> NOV | C1: FICHE DE SUIVI HORAIRE
B3: mois : | C3: NOVEMBRE | F3: année | G3: =Calendrier!A1 -> 2016 | I3: service | J3: =Calendrier!F4 -> COMPTABILITE
B5: nom : | C5: =Calendrier!F2 -> MARTIN | F5: prénom | G5: =Calendrier!F3 -> PATRICK | I5: N° Ident. | J5: =Calendrier!F1 -> N123456
H6: à réaliser | I6: cumul | J6: en cours | K6: reste | M6: n/cumul
D7: Nb J/T | E7: =Calendrier!$A$10 -> 213 | F7: =+$H$10 -> 0 | G7: =$H$12 -> 213 | H7: =Calendrier!$N$1 -> 366 | I7: =OCT!M7 -> 127 | J7: =SUM(J8:J15) -> 11 | K7: =H7-(I7+J7) -> 228 | M7: =SUM(M8:M15) -> 138
G8: CA | H8: =Calendrier!N5 -> 25 | I8: =OCT!M8 -> 20 | J8: =IF(G8="",0,COUNTIF($J$19:$J$49,G8))+IF(F8="",0,COUNTIF($J$19:$J$49,F8)/2) -> 0 | K8: =+H8-(I8+J8) -> 5 | L8: J | M8: =+I8+J8 -> 20
F9: 1/2RTT | G9: RTT | H9: =Calendrier!N8 -> 16 | I9: =OCT!M9 -> 14 | J9: =IF(G9="",0,COUNTIF($J$19:$J$49,G9))+IF(F9="",0,COUNTIF($J$19:$J$49,F9)/2) -> 1 | K9: =+H9-(I9+J9) -> 1 | L9: J | M9: 15
F10: 1/2CS | G10: CS | H10: =Calendrier!N9 -> 0 | I10: =OCT!M10 -> 0 | J10: =IF(G10="",0,COUNTIF($J$19:$J$49,G10))+IF(F10="",0,COUNTIF($J$19:$J$49,F10)/2) -> 0 | K10: =H10-(I10+J10) -> 0 | L10: J | M10: 0
G11: CP | H11: =Calendrier!N6 -> 0 | I11: =OCT!M11 -> 0 | J11: 0 | K11: =H11-(I11+J11) -> 0 | L11: J | M11: 0
F12: 1/2T | G12: T | H12: =Calendrier!N7 -> 213 | I12: =OCT!M12 -> 0 | J12: 0 | K12: =+H12-(I12+J12) -> 213 | L12: J | M12: 0
G13: Sa | H13: =Calendrier!N4 -> 53 | I13: =OCT!M13 -> 44 | J13: 4 | K13: =+H13-(I13+J13) -> 5 | L13: J | M13: 48
G14: Di | H14: =Calendrier!N3 -> 47 | I14: =OCT!M14 -> 40 | J14: 4 | K14: =+H14-(I14+J14) -> 3 | L14: J | M14: 44
G15: F | H15: =Calendrier!N2 -> 12 | I15: =OCT!M15 -> 9 | J15: 2 | K15: =+H15-(I15+J15) -> 1 | L15: J | M15: =+I15+J15 -> 11
G16: heure/avance fin mois | I16: =OCT!I50 -> 0 | M16: =I50 -> 0
B17: Prévu | C17: Entrée | D17: Sortie | E17: Entrée | F17: Sortie | G17: total J | H17: variation | I17: cumul | J17: Type | K17: nb J/T | M17: Bon E/S | N17: Sortie | O17: Retour
N18: avec bon
A19: 1 | B19: =INDIRECT(ADDRESS(MATCH($B$1,Calendrier!$A$15:$A$59,0)+14,ROW()-17,3,1,"Calendrier"),1) -> F | G19: =IF(COUNTA(C19:F19)=4,(D19-C19)+(F19-E19)-M19,IF(COUNTA(C19:D19)<2,(F19-E19)-M19,(D19-C19)-M19)) -> 0 | H19: =IF(AND(K19=0.5,COUNTA(C19:F19)=4),"erreur",IF(AND(D19-C19>0,F19-E19=0),G19-Calendrier!$AS$9/2-M19,IF(AND(F19-E19>0,D19-C19=0),(F19-E19)-Calendrier!$AS$9/2-M19,IF(COUNTA(C19:F19)=4,(D19-C19)+(F19-E19)-M19-Calendrier!$AS$9,0)))) -> 0 | I19: =+I16+H19 -> 0 | J19: =IF(AND(COUNTA(C19:F19)=0,B19<>"T"),B19,IF(AND(OR(B19=$F$9,B19=$F$10),COUNTA(C19:F19=2)),"T",IF(G19>=6,"T",""))) -> F | K19: =IF(OR(B19=$F$9,B19=$F$10),0.5,IF(G19>=6,1,0)) -> 0 | M19: =+O19-N19 -> 0
A20: 2 | B20: =INDIRECT(ADDRESS(MATCH($B$1,Calendrier!$A$15:$A$59,0)+14,ROW()-17,3,1,"Calendrier"),1) -> T | G20: 0 | H20: =IF(AND(K20=0.5,COUNTA(C20:F20)=4),"erreur",IF(AND(D20-C20>0,F20-E20=0),G20-Calendrier!$AS$9/2-M20,IF(AND(F20-E20>0,D20-C20=0),(F20-E20)-Calendrier!$AS$9/2-M20,IF(COUNTA(C20:F20)=4,(D20-C20)+(F20-E20)-M20-Calendrier!$AS$9,0)))) -> 0 | I20: =+I19+H20 -> 0 | K20: 0 | M20: =+O20-N20 -> 0
A21: 3 | B21: =INDIRECT(ADDRESS(MATCH($B$1,Calendrier!$A$15:$A$59,0)+14,ROW()-17,3,1,"Calendrier"),1) -> T | G21: 0 | H21: =IF(AND(K21=0.5,COUNTA(C21:F21)=4),"erreur",IF(AND(D21-C21>0,F21-E21=0),G21-Calendrier!$AS$9/2-M21,IF(AND(F21-E21>0,D21-C21=0),(F21-E21)-Calendrier!$AS$9/2-M21,IF(COUNTA(C21:F21)=4,(D21-C21)+(F21-E21)-M21-Calendrier!$AS$9,0)))) -> 0 | I21: 0 | K21: 0 | M21: 0
A22: 4 | B22: =INDIRECT(ADDRESS(MATCH($B$1,Calendrier!$A$15:$A$59,0)+14,ROW()-17,3,1,"Calendrier"),1) -> T | G22: 0 | H22: =IF(AND(K22=0.5,COUNTA(C22:F22)=4),"erreur",IF(AND(D22-C22>0,F22-E22=0),G22-Calendrier!$AS$9/2-M22,IF(AND(F22-E22>0,D22-C22=0),(F22-E22)-Calendrier!$AS$9/2-M22,IF(COUNTA(C22:F22)=4,(D22-C22)+(F22-E22)-M22-Calendrier!$AS$9,0)))) -> 0 | I22: 0 | K22: 0 | M22: 0
A23: 5 | B23: =INDIRECT(ADDRESS(MATCH($B$1,Calendrier!$A$15:$A$59,0)+14,ROW()-17,3,1,"Calendrier"),1) -> Sa | G23: 0 | H23: =IF(AND(K23=0.5,COUNTA(C23:F23)=4),"erreur",IF(AND(D23-C23>0,F23-E23=0),G23-Calendrier!$AS$9/2-M23,IF(AND(F23-E23>0,D23-C23=0),(F23-E23)-Calendrier!$AS$9/2-M23,IF(COUNTA(C23:F23)=4,(D23-C23)+(F23-E23)-M23-Calendrier!$AS$9,0)))) -> 0 | I23: 0 | J23: Sa | K23: =IF(OR(B23=$F$9,B23=$F$10),0.5,IF(G23>=6,1,0)) -> 0 | M23: 0
A24: 6 | B24: =INDIRECT(ADDRESS(MATCH($B$1,Calendrier!$A$15:$A$59,0)+14,ROW()-17,3,1,"Calendrier"),1) -> Di | G24: 0 | H24: =IF(AND(K24=0.5,COUNTA(C24:F24)=4),"erreur",IF(AND(D24-C24>0,F24-E24=0),G24-Calendrier!$AS$9/2-M24,IF(AND(F24-E24>0,D24-C24=0),(F24-E24)-Calendrier!$AS$9/2-M24,IF(COUNTA(C24:F24)=4,(D24-C24)+(F24-E24)-M24-Calendrier!$AS$9,0)))) -> 0 | I24: 0 | J24: Di | K24: 0 | M24: 0
A25: 7 | B25: =INDIRECT(ADDRESS(MATCH($B$1,Calendrier!$A$15:$A$59,0)+14,ROW()-17,3,1,"Calendrier"),1) -> T | G25: 0 | H25: =IF(AND(K25=0.5,COUNTA(C25:F25)=4),"erreur",IF(AND(D25-C25>0,F25-E25=0),G25-Calendrier!$AS$9/2-M25,IF(AND(F25-E25>0,D25-C25=0),(F25-E25)-Calendrier!$AS$9/2-M25,IF(COUNTA(C25:F25)=4,(D25-C25)+(F25-E25)-M25-Calendrier!$AS$9,0)))) -> 0 | I25: 0 | K25: 0 | M25: 0
A26: 8 | B26: =INDIRECT(ADDRESS(MATCH($B$1,Calendrier!$A$15:$A$59,0)+14,ROW()-17,3,1,"Calendrier"),1) -> T | G26: 0 | H26: =IF(AND(K26=0.5,COUNTA(C26:F26)=4),"erreur",IF(AND(D26-C26>0,F26-E26=0),G26-Calendrier!$AS$9/2-M26,IF(AND(F26-E26>0,D26-C26=0),(F26-E26)-Calendrier!$AS$9/2-M26,IF(COUNTA(C26:F26)=4,(D26-C26)+(F26-E26)-M26-Calendrier!$AS$9,0)))) -> 0 | I26: 0 | K26: 0 | M26: 0
A27: 9 | B27: =INDIRECT(ADDRESS(MATCH($B$1,Calendrier!$A$15:$A$59,0)+14,ROW()-17,3,1,"Calendrier"),1) -> T | G27: 0 | H27: =IF(AND(K27=0.5,COUNTA(C27:F27)=4),"erreur",IF(AND(D27-C27>0,F27-E27=0),G27-Calendrier!$AS$9/2-M27,IF(AND(F27-E27>0,D27-C27=0),(F27-E27)-Calendrier!$AS$9/2-M27,IF(COUNTA(C27:F27)=4,(D27-C27)+(F27-E27)-M27-Calendrier!$AS$9,0)))) -> 0 | I27: 0 | K27: 0 | M27: 0
A28: 10 | B28: =INDIRECT(ADDRESS(MATCH($B$1,Calendrier!$A$15:$A$59,0)+14,ROW()-17,3,1,"Calendrier"),1) -> T | G28: 0 | H28: =IF(AND(K28=0.5,COUNTA(C28:F28)=4),"erreur",IF(AND(D28-C28>0,F28-E28=0),G28-Calendrier!$AS$9/2-M28,IF(AND(F28-E28>0,D28-C28=0),(F28-E28)-Calendrier!$AS$9/2-M28,IF(COUNTA(C28:F28)=4,(D28-C28)+(F28-E28)-M28-Calendrier!$AS$9,0)))) -> 0 | I28: 0 | K28: 0 | M28: 0
A29: 11 | B29: =INDIRECT(ADDRESS(MATCH($B$1,Calendrier!$A$15:$A$59,0)+14,ROW()-17,3,1,"Calendrier"),1) -> F | G29: 0 | H29: =IF(AND(K29=0.5,COUNTA(C29:F29)=4),"erreur",IF(AND(D29-C29>0,F29-E29=0),G29-Calendrier!$AS$9/2-M29,IF(AND(F29-E29>0,D29-C29=0),(F29-E29)-Calendrier!$AS$9/2-M29,IF(COUNTA(C29:F29)=4,(D29-C29)+(F29-E29)-M29-Calendrier!$AS$9,0)))) -> 0 | I29: 0 | J29: F | K29: 0 | M29: 0
A30: 12 | B30: =INDIRECT(ADDRESS(MATCH($B$1,Calendrier!$A$15:$A$59,0)+14,ROW()-17,3,1,"Calendrier"),1) -> Sa | G30: 0 | H30: =IF(AND(K30=0.5,COUNTA(C30:F30)=4),"erreur",IF(AND(D30-C30>0,F30-E30=0),G30-Calendrier!$AS$9/2-M30,IF(AND(F30-E30>0,D30-C30=0),(F30-E30)-Calendrier!$AS$9/2-M30,IF(COUNTA(C30:F30)=4,(D30-C30)+(F30-E30)-M30-Calendrier!$AS$9,0)))) -> 0 | I30: 0 | J30: Sa | K30: 0 | M30: 0
A31: 13 | B31: =INDIRECT(ADDRESS(MATCH($B$1,Calendrier!$A$15:$A$59,0)+14,ROW()-17,3,1,"Calendrier"),1) -> Di | G31: 0 | H31: =IF(AND(K31=0.5,COUNTA(C31:F31)=4),"erreur",IF(AND(D31-C31>0,F31-E31=0),G31-Calendrier!$AS$9/2-M31,IF(AND(F31-E31>0,D31-C31=0),(F31-E31)-Calendrier!$AS$9/2-M31,IF(COUNTA(C31:F31)=4,(D31-C31)+(F31-E31)-M31-Calendrier!$AS$9,0)))) -> 0 | I31: 0 | J31: Di | K31: 0 | M31: 0
A32: 14 | B32: =INDIRECT(ADDRESS(MATCH($B$1,Calendrier!$A$15:$A$59,0)+14,ROW()-17,3,1,"Calendrier"),1) -> T | G32: 0 | H32: =IF(AND(K32=0.5,COUNTA(C32:F32)=4),"erreur",IF(AND(D32-C32>0,F32-E32=0),G32-Calendrier!$AS$9/2-M32,IF(AND(F32-E32>0,D32-C32=0),(F32-E32)-Calendrier!$AS$9/2-M32,IF(COUNTA(C32:F32)=4,(D32-C32)+(F32-E32)-M32-Calendrier!$AS$9,0)))) -> 0 | I32: 0 | K32: 0 | M32: 0
A33: 15 | B33: =INDIRECT(ADDRESS(MATCH($B$1,Calendrier!$A$15:$A$59,0)+14,ROW()-17,3,1,"Calendrier"),1) -> T | G33: 0 | H33: =IF(AND(K33=0.5,COUNTA(C33:F33)=4),"erreur",IF(AND(D33-C33>0,F33-E33=0),G33-Calendrier!$AS$9/2-M33,IF(AND(F33-E33>0,D33-C33=0),(F33-E33)-Calendrier!$AS$9/2-M33,IF(COUNTA(C33:F33)=4,(D33-C33)+(F33-E33)-M33-Calendrier!$AS$9,0)))) -> 0 | I33: 0 | J33: =IF(AND(COUNTA(C33:F33)=0,B33<>"T"),B33,IF(AND(OR(B33=$F$9,B33=$F$10),COUNTA(C33:F33=2)),"T",IF(G33>=6,"T",""))) ->  | K33: 0 | M33: 0
A34: 16 | B34: =INDIRECT(ADDRESS(MATCH($B$1,Calendrier!$A$15:$A$59,0)+14,ROW()-17,3,1,"Calendrier"),1) -> T | G34: 0 | H34: =IF(AND(K34=0.5,COUNTA(C34:F34)=4),"erreur",IF(AND(D34-C34>0,F34-E34=0),G34-Calendrier!$AS$9/2-M34,IF(AND(F34-E34>0,D34-C34=0),(F34-E34)-Calendrier!$AS$9/2-M34,IF(COUNTA(C34:F34)=4,(D34-C34)+(F34-E34)-M34-Calendrier!$AS$9,0)))) -> 0 | I34: 0 | K34: 0 | M34: 0
A35: 17 | B35: =INDIRECT(ADDRESS(MATCH($B$1,Calendrier!$A$15:$A$59,0)+14,ROW()-17,3,1,"Calendrier"),1) -> T | G35: 0 | H35: =IF(AND(K35=0.5,COUNTA(C35:F35)=4),"erreur",IF(AND(D35-C35>0,F35-E35=0),G35-Calendrier!$AS$9/2-M35,IF(AND(F35-E35>0,D35-C35=0),(F35-E35)-Calendrier!$AS$9/2-M35,IF(COUNTA(C35:F35)=4,(D35-C35)+(F35-E35)-M35-Calendrier!$AS$9,0)))) -> 0 | I35: 0 | K35: 0 | M35: 0
A36: 18 | B36: =INDIRECT(ADDRESS(MATCH($B$1,Calendrier!$A$15:$A$59,0)+14,ROW()-17,3,1,"Calendrier"),1) -> RTT | G36: 0 | H36: =IF(AND(K36=0.5,COUNTA(C36:F36)=4),"erreur",IF(AND(D36-C36>0,F36-E36=0),G36-Calendrier!$AS$9/2-M36,IF(AND(F36-E36>0,D36-C36=0),(F36-E36)-Calendrier!$AS$9/2-M36,IF(COUNTA(C36:F36)=4,(D36-C36)+(F36-E36)-M36-Calendrier!$AS$9,0)))) -> 0 | I36: 0 | J36: RTT | K36: 0 | M36: 0
A37: 19 | B37: =INDIRECT(ADDRESS(MATCH($B$1,Calendrier!$A$15:$A$59,0)+14,ROW()-17,3,1,"Calendrier"),1) -> Sa | G37: 0 | H37: =IF(AND(K37=0.5,COUNTA(C37:F37)=4),"erreur",IF(AND(D37-C37>0,F37-E37=0),G37-Calendrier!$AS$9/2-M37,IF(AND(F37-E37>0,D37-C37=0),(F37-E37)-Calendrier!$AS$9/2-M37,IF(COUNTA(C37:F37)=4,(D37-C37)+(F37-E37)-M37-Calendrier!$AS$9,0)))) -> 0 | I37: 0 | J37: Sa | K37: 0 | M37: 0
A38: 20 | B38: =INDIRECT(ADDRESS(MATCH($B$1,Calendrier!$A$15:$A$59,0)+14,ROW()-17,3,1,"Calendrier"),1) -> Di | G38: 0 | H38: =IF(AND(K38=0.5,COUNTA(C38:F38)=4),"erreur",IF(AND(D38-C38>0,F38-E38=0),G38-Calendrier!$AS$9/2-M38,IF(AND(F38-E38>0,D38-C38=0),(F38-E38)-Calendrier!$AS$9/2-M38,IF(COUNTA(C38:F38)=4,(D38-C38)+(F38-E38)-M38-Calendrier!$AS$9,0)))) -> 0 | I38: 0 | J38: Di | K38: 0 | M38: 0
A39: 21 | B39: =INDIRECT(ADDRESS(MATCH($B$1,Calendrier!$A$15:$A$59,0)+14,ROW()-17,3,1,"Calendrier"),1) -> T | G39: 0 | H39: =IF(AND(K39=0.5,COUNTA(C39:F39)=4),"erreur",IF(AND(D39-C39>0,F39-E39=0),G39-Calendrier!$AS$9/2-M39,IF(AND(F39-E39>0,D39-C39=0),(F39-E39)-Calendrier!$AS$9/2-M39,IF(COUNTA(C39:F39)=4,(D39-C39)+(F39-E39)-M39-Calendrier!$AS$9,0)))) -> 0 | I39: 0 | K39: 0 | M39: 0
A40: 22 | B40: =INDIRECT(ADDRESS(MATCH($B$1,Calendrier!$A$15:$A$59,0)+14,ROW()-17,3,1,"Calendrier"),1) -> T | G40: 0 | H40: =IF(AND(K40=0.5,COUNTA(C40:F40)=4),"erreur",IF(AND(D40-C40>0,F40-E40=0),G40-Calendrier!$AS$9/2-M40,IF(AND(F40-E40>0,D40-C40=0),(F40-E40)-Calendrier!$AS$9/2-M40,IF(COUNTA(C40:F40)=4,(D40-C40)+(F40-E40)-M40-Calendrier!$AS$9,0)))) -> 0 | I40: 0 | K40: 0 | M40: 0
A41: 23 | B41: =INDIRECT(ADDRESS(MATCH($B$1,Calendrier!$A$15:$A$59,0)+14,ROW()-17,3,1,"Calendrier"),1) -> T | G41: 0 | H41: =IF(AND(K41=0.5,COUNTA(C41:F41)=4),"erreur",IF(AND(D41-C41>0,F41-E41=0),G41-Calendrier!$AS$9/2-M41,IF(AND(F41-E41>0,D41-C41=0),(F41-E41)-Calendrier!$AS$9/2-M41,IF(COUNTA(C41:F41)=4,(D41-C41)+(F41-E41)-M41-Calendrier!$AS$9,0)))) -> 0 | I41: 0 | K41: 0 | M41: 0
A42: 24 | B42: =INDIRECT(ADDRESS(MATCH($B$1,Calendrier!$A$15:$A$59,0)+14,ROW()-17,3,1,"Calendrier"),1) -> T | G42: 0 | H42: =IF(AND(K42=0.5,COUNTA(C42:F42)=4),"erreur",IF(AND(D42-C42>0,F42-E42=0),G42-Calendrier!$AS$9/2-M42,IF(AND(F42-E42>0,D42-C42=0),(F42-E42)-Calendrier!$AS$9/2-M42,IF(COUNTA(C42:F42)=4,(D42-C42)+(F42-E42)-M42-Calendrier!$AS$9,0)))) -> 0 | I42: 0 | K42: 0 | M42: 0
A43: 25 | B43: =INDIRECT(ADDRESS(MATCH($B$1,Calendrier!$A$15:$A$59,0)+14,ROW()-17,3,1,"Calendrier"),1) -> T | G43: 0 | H43: =IF(AND(K43=0.5,COUNTA(C43:F43)=4),"erreur",IF(AND(D43-C43>0,F43-E43=0),G43-Calendrier!$AS$9/2-M43,IF(AND(F43-E43>0,D43-C43=0),(F43-E43)-Calendrier!$AS$9/2-M43,IF(COUNTA(C43:F43)=4,(D43-C43)+(F43-E43)-M43-Calendrier!$AS$9,0)))) -> 0 | I43: 0 | K43: 0 | M43: 0
A44: 26 | B44: =INDIRECT(ADDRESS(MATCH($B$1,Calendrier!$A$15:$A$59,0)+14,ROW()-17,3,1,"Calendrier"),1) -> Sa | G44: 0 | H44: =IF(AND(K44=0.5,COUNTA(C44:F44)=4),"erreur",IF(AND(D44-C44>0,F44-E44=0),G44-Calendrier!$AS$9/2-M44,IF(AND(F44-E44>0,D44-C44=0),(F44-E44)-Calendrier!$AS$9/2-M44,IF(COUNTA(C44:F44)=4,(D44-C44)+(F44-E44)-M44-Calendrier!$AS$9,0)))) -> 0 | I44: 0 | J44: Sa | K44: 0 | M44: 0
A45: 27 | B45: =INDIRECT(ADDRESS(MATCH($B$1,Calendrier!$A$15:$A$59,0)+14,ROW()-17,3,1,"Calendrier"),1) -> Di | G45: 0 | H45: =IF(AND(K45=0.5,COUNTA(C45:F45)=4),"erreur",IF(AND(D45-C45>0,F45-E45=0),G45-Calendrier!$AS$9/2-M45,IF(AND(F45-E45>0,D45-C45=0),(F45-E45)-Calendrier!$AS$9/2-M45,IF(COUNTA(C45:F45)=4,(D45-C45)+(F45-E45)-M45-Calendrier!$AS$9,0)))) -> 0 | I45: 0 | J45: Di | K45: 0 | M45: 0
A46: 28 | B46: =INDIRECT(ADDRESS(MATCH($B$1,Calendrier!$A$15:$A$59,0)+14,ROW()-17,3,1,"Calendrier"),1) -> T | G46: 0 | H46: =IF(AND(K46=0.5,COUNTA(C46:F46)=4),"erreur",IF(AND(D46-C46>0,F46-E46=0),G46-Calendrier!$AS$9/2-M46,IF(AND(F46-E46>0,D46-C46=0),(F46-E46)-Calendrier!$AS$9/2-M46,IF(COUNTA(C46:F46)=4,(D46-C46)+(F46-E46)-M46-Calendrier!$AS$9,0)))) -> 0 | I46: 0 | K46: 0 | M46: 0
A47: 29 | B47: =INDIRECT(ADDRESS(MATCH($B$1,Calendrier!$A$15:$A$59,0)+14,ROW()-17,3,1,"Calendrier"),1) -> T | G47: 0 | H47: =IF(AND(K47=0.5,COUNTA(C47:F47)=4),"erreur",IF(AND(D47-C47>0,F47-E47=0),G47-Calendrier!$AS$9/2-M47,IF(AND(F47-E47>0,D47-C47=0),(F47-E47)-Calendrier!$AS$9/2-M47,IF(COUNTA(C47:F47)=4,(D47-C47)+(F47-E47)-M47-Calendrier!$AS$9,0)))) -> 0 | I47: 0 | K47: 0 | M47: 0
A48: 30 | B48: =INDIRECT(ADDRESS(MATCH($B$1,Calendrier!$A$15:$A$59,0)+14,ROW()-17,3,1,"Calendrier"),1) -> T | G48: 0 | H48: =IF(AND(K48=0.5,COUNTA(C48:F48)=4),"erreur",IF(AND(D48-C48>0,F48-E48=0),G48-Calendrier!$AS$9/2-M48,IF(AND(F48-E48>0,D48-C48=0),(F48-E48)-Calendrier!$AS$9/2-M48,IF(COUNTA(C48:F48)=4,(D48-C48)+(F48-E48)-M48-Calendrier!$AS$9,0)))) -> 0 | I48: 0 | K48: 0 | M48: 0
I49: 0 | J49: 0 | K49: 0 | M49: 0
H50: solde des variations | I50: =I49 -> 0

Sheet DEC
B1: =RIGHT(CELL("nomfichier",$A$1),3) -> DEC | C1: FICHE DE SUIVI HORAIRE
B3: mois : | C3: DECEMBRE | F3: année | G3: =Calendrier!A1 -> 2016 | I3: service | J3: =Calendrier!F4 -> COMPTABILITE
B5: nom : | C5: =Calendrier!F2 -> MARTIN | F5: prénom | G5: =Calendrier!F3 -> PATRICK | I5: N° Ident. | J5: =Calendrier!F1 -> N123456
H6: à réaliser | I6: cumul | J6: en cours | K6: reste | M6: n/cumul
D7: Nb J/T | E7: =Calendrier!$A$10 -> 213 | F7: =$H$10 -> 0 | G7: =$H$12 -> 213 | H7: =Calendrier!$N$1 -> 366 | I7: =NOV!M7 -> 138 | J7: =SUM(J8:J15) -> 15 | K7: =H7-(I7+J7) -> 213 | M7: =SUM(M8:M15) -> 153
G8: CA | H8: =Calendrier!N5 -> 25 | I8: =NOV!M8 -> 20 | J8: =IF(G8="",0,COUNTIF($J$19:$J$49,G8))+IF(F8="",0,COUNTIF($J$19:$J$49,F8)/2) -> 5 | K8: =+H8-(I8+J8) -> 0 | L8: J | M8: =+I8+J8 -> 25
F9: 1/2RTT | G9: RTT | H9: =Calendrier!N8 -> 16 | I9: =NOV!M9 -> 15 | J9: =IF(G9="",0,COUNTIF($J$19:$J$49,G9))+IF(F9="",0,COUNTIF($J$19:$J$49,F9)/2) -> 1 | K9: =+H9-(I9+J9) -> 0 | L9: J | M9: 16
F10: 1/2CS | G10: CS | H10: =Calendrier!N9 -> 0 | I10: =NOV!M10 -> 0 | J10: =IF(G10="",0,COUNTIF($J$19:$J$49,G10))+IF(F10="",0,COUNTIF($J$19:$J$49,F10)/2) -> 0 | K10: =H10-(I10+J10) -> 0 | L10: J | M10: 0
G11: CP | H11: =Calendrier!N6 -> 0 | I11: =NOV!M11 -> 0 | J11: 0 | K11: =H11-(I11+J11) -> 0 | L11: J | M11: 0
F12: 1/2T | G12: T | H12: =Calendrier!N7 -> 213 | I12: =NOV!M12 -> 0 | J12: 0 | K12: =+H12-(I12+J12) -> 213 | L12: J | M12: 0
G13: Sa | H13: =Calendrier!N4 -> 53 | I13: =NOV!M13 -> 48 | J13: 5 | K13: =+H13-(I13+J13) -> 0 | L13: J | M13: 53
G14: Di | H14: =Calendrier!N3 -> 47 | I14: =NOV!M14 -> 44 | J14: 3 | K14: =+H14-(I14+J14) -> 0 | L14: J | M14: 47
G15: F | H15: =Calendrier!N2 -> 12 | I15: =NOV!M15 -> 11 | J15: 1 | K15: =+H15-(I15+J15) -> 0 | L15: J | M15: =+I15+J15 -> 12
G16: heure/avance fin mois | I16: =NOV!I50 -> 0 | M16: =I50 -> 0
B17: Prévu | C17: Entrée | D17: Sortie | E17: Entrée | F17: Sortie | G17: total J | H17: variation | I17: cumul | J17: Type | K17: nb J/T | M17: Bon E/S | N17: Sortie | O17: Retour
N18: avec bon
A19: 1 | B19: =INDIRECT(ADDRESS(MATCH($B$1,Calendrier!$A$15:$A$59,0)+14,ROW()-17,3,1,"Calendrier"),1) -> T | G19: =IF(COUNTA(C19:F19)=4,(D19-C19)+(F19-E19)-M19,IF(COUNTA(C19:D19)<2,(F19-E19)-M19,(D19-C19)-M19)) -> 0 | H19: =IF(AND(K19=0.5,COUNTA(C19:F19)=4),"erreur",IF(AND(D19-C19>0,F19-E19=0),G19-Calendrier!$AS$9/2-M19,IF(AND(F19-E19>0,D19-C19=0),(F19-E19)-Calendrier!$AS$9/2-M19,IF(COUNTA(C19:F19)=4,(D19-C19)+(F19-E19)-M19-Calendrier!$AS$9,0)))) -> 0 | I19: =+I16+H19 -> 0 | J19: =IF(AND(COUNTA(C19:F19)=0,B19<>"T"),B19,IF(AND(OR(B19=$F$9,B19=$F$10),COUNTA(C19:F19=2)),"T",IF(G19>=6,"T",""))) ->  | K19: =IF(OR(B19=$F$9,B19=$F$10),0.5,IF(G19>=6,1,0)) -> 0 | M19: =+O19-N19 -> 0
A20: 2 | B20: =INDIRECT(ADDRESS(MATCH($B$1,Calendrier!$A$15:$A$59,0)+14,ROW()-17,3,1,"Calendrier"),1) -> T | G20: 0 | H20: =IF(AND(K20=0.5,COUNTA(C20:F20)=4),"erreur",IF(AND(D20-C20>0,F20-E20=0),G20-Calendrier!$AS$9/2-M20,IF(AND(F20-E20>0,D20-C20=0),(F20-E20)-Calendrier!$AS$9/2-M20,IF(COUNTA(C20:F20)=4,(D20-C20)+(F20-E20)-M20-Calendrier!$AS$9,0)))) -> 0 | I20: =+I19+H20 -> 0 | K20: 0 | M20: =+O20-N20 -> 0
A21: 3 | B21: =INDIRECT(ADDRESS(MATCH($B$1,Calendrier!$A$15:$A$59,0)+14,ROW()-17,3,1,"Calendrier"),1) -> Sa | G21: 0 | H21: =IF(AND(K21=0.5,COUNTA(C21:F21)=4),"erreur",IF(AND(D21-C21>0,F21-E21=0),G21-Calendrier!$AS$9/2-M21,IF(AND(F21-E21>0,D21-C21=0),(F21-E21)-Calendrier!$AS$9/2-M21,IF(COUNTA(C21:F21)=4,(D21-C21)+(F21-E21)-M21-Calendrier!$AS$9,0)))) -> 0 | I21: 0 | J21: Sa | K21: 0 | M21: 0
A22: 4 | B22: =INDIRECT(ADDRESS(MATCH($B$1,Calendrier!$A$15:$A$59,0)+14,ROW()-17,3,1,"Calendrier"),1) -> Di | G22: 0 | H22: =IF(AND(K22=0.5,COUNTA(C22:F22)=4),"erreur",IF(AND(D22-C22>0,F22-E22=0),G22-Calendrier!$AS$9/2-M22,IF(AND(F22-E22>0,D22-C22=0),(F22-E22)-Calendrier!$AS$9/2-M22,IF(COUNTA(C22:F22)=4,(D22-C22)+(F22-E22)-M22-Calendrier!$AS$9,0)))) -> 0 | I22: 0 | J22: Di | K22: 0 | M22: 0
A23: 5 | B23: =INDIRECT(ADDRESS(MATCH($B$1,Calendrier!$A$15:$A$59,0)+14,ROW()-17,3,1,"Calendrier"),1) -> T | G23: 0 | H23: =IF(AND(K23=0.5,COUNTA(C23:F23)=4),"erreur",IF(AND(D23-C23>0,F23-E23=0),G23-Calendrier!$AS$9/2-M23,IF(AND(F23-E23>0,D23-C23=0),(F23-E23)-Calendrier!$AS$9/2-M23,IF(COUNTA(C23:F23)=4,(D23-C23)+(F23-E23)-M23-Calendrier!$AS$9,0)))) -> 0 | I23: 0 | K23: =IF(OR(B23=$F$9,B23=$F$10),0.5,IF(G23>=6,1,0)) -> 0 | M23: 0
A24: 6 | B24: =INDIRECT(ADDRESS(MATCH($B$1,Calendrier!$A$15:$A$59,0)+14,ROW()-17,3,1,"Calendrier"),1) -> T | G24: 0 | H24: =IF(AND(K24=0.5,COUNTA(C24:F24)=4),"erreur",IF(AND(D24-C24>0,F24-E24=0),G24-Calendrier!$AS$9/2-M24,IF(AND(F24-E24>0,D24-C24=0),(F24-E24)-Calendrier!$AS$9/2-M24,IF(COUNTA(C24:F24)=4,(D24-C24)+(F24-E24)-M24-Calendrier!$AS$9,0)))) -> 0 | I24: 0 | K24: 0 | M24: 0
A25: 7 | B25: =INDIRECT(ADDRESS(MATCH($B$1,Calendrier!$A$15:$A$59,0)+14,ROW()-17,3,1,"Calendrier"),1) -> T | G25: 0 | H25: =IF(AND(K25=0.5,COUNTA(C25:F25)=4),"erreur",IF(AND(D25-C25>0,F25-E25=0),G25-Calendrier!$AS$9/2-M25,IF(AND(F25-E25>0,D25-C25=0),(F25-E25)-Calendrier!$AS$9/2-M25,IF(COUNTA(C25:F25)=4,(D25-C25)+(F25-E25)-M25-Calendrier!$AS$9,0)))) -> 0 | I25: 0 | K25: 0 | M25: 0
A26: 8 | B26: =INDIRECT(ADDRESS(MATCH($B$1,Calendrier!$A$15:$A$59,0)+14,ROW()-17,3,1,"Calendrier"),1) -> T | G26: 0 | H26: =IF(AND(K26=0.5,COUNTA(C26:F26)=4),"erreur",IF(AND(D26-C26>0,F26-E26=0),G26-Calendrier!$AS$9/2-M26,IF(AND(F26-E26>0,D26-C26=0),(F26-E26)-Calendrier!$AS$9/2-M26,IF(COUNTA(C26:F26)=4,(D26-C26)+(F26-E26)-M26-Calendrier!$AS$9,0)))) -> 0 | I26: 0 | K26: 0 | M26: 0
A27: 9 | B27: =INDIRECT(ADDRESS(MATCH($B$1,Calendrier!$A$15:$A$59,0)+14,ROW()-17,3,1,"Calendrier"),1) -> T | G27: 0 | H27: =IF(AND(K27=0.5,COUNTA(C27:F27)=4),"erreur",IF(AND(D27-C27>0,F27-E27=0),G27-Calendrier!$AS$9/2-M27,IF(AND(F27-E27>0,D27-C27=0),(F27-E27)-Calendrier!$AS$9/2-M27,IF(COUNTA(C27:F27)=4,(D27-C27)+(F27-E27)-M27-Calendrier!$AS$9,0)))) -> 0 | I27: 0 | K27: 0 | M27: 0
A28: 10 | B28: =INDIRECT(ADDRESS(MATCH($B$1,Calendrier!$A$15:$A$59,0)+14,ROW()-17,3,1,"Calendrier"),1) -> Sa | G28: 0 | H28: =IF(AND(K28=0.5,COUNTA(C28:F28)=4),"erreur",IF(AND(D28-C28>0,F28-E28=0),G28-Calendrier!$AS$9/2-M28,IF(AND(F28-E28>0,D28-C28=0),(F28-E28)-Calendrier!$AS$9/2-M28,IF(COUNTA(C28:F28)=4,(D28-C28)+(F28-E28)-M28-Calendrier!$AS$9,0)))) -> 0 | I28: 0 | J28: Sa | K28: 0 | M28: 0
A29: 11 | B29: =INDIRECT(ADDRESS(MATCH($B$1,Calendrier!$A$15:$A$59,0)+14,ROW()-17,3,1,"Calendrier"),1) -> Di | G29: 0 | H29: =IF(AND(K29=0.5,COUNTA(C29:F29)=4),"erreur",IF(AND(D29-C29>0,F29-E29=0),G29-Calendrier!$AS$9/2-M29,IF(AND(F29-E29>0,D29-C29=0),(F29-E29)-Calendrier!$AS$9/2-M29,IF(COUNTA(C29:F29)=4,(D29-C29)+(F29-E29)-M29-Calendrier!$AS$9,0)))) -> 0 | I29: 0 | J29: Di | K29: 0 | M29: 0
A30: 12 | B30: =INDIRECT(ADDRESS(MATCH($B$1,Calendrier!$A$15:$A$59,0)+14,ROW()-17,3,1,"Calendrier"),1) -> RTT | G30: 0 | H30: =IF(AND(K30=0.5,COUNTA(C30:F30)=4),"erreur",IF(AND(D30-C30>0,F30-E30=0),G30-Calendrier!$AS$9/2-M30,IF(AND(F30-E30>0,D30-C30=0),(F30-E30)-Calendrier!$AS$9/2-M30,IF(COUNTA(C30:F30)=4,(D30-C30)+(F30-E30)-M30-Calendrier!$AS$9,0)))) -> 0 | I30: 0 | J30: RTT | K30: 0 | M30: 0
A31: 13 | B31: =INDIRECT(ADDRESS(MATCH($B$1,Calendrier!$A$15:$A$59,0)+14,ROW()-17,3,1,"Calendrier"),1) -> T | G31: 0 | H31: =IF(AND(K31=0.5,COUNTA(C31:F31)=4),"erreur",IF(AND(D31-C31>0,F31-E31=0),G31-Calendrier!$AS$9/2-M31,IF(AND(F31-E31>0,D31-C31=0),(F31-E31)-Calendrier!$AS$9/2-M31,IF(COUNTA(C31:F31)=4,(D31-C31)+(F31-E31)-M31-Calendrier!$AS$9,0)))) -> 0 | I31: 0 | K31: 0 | M31: 0
A32: 14 | B32: =INDIRECT(ADDRESS(MATCH($B$1,Calendrier!$A$15:$A$59,0)+14,ROW()-17,3,1,"Calendrier"),1) -> T | G32: 0 | H32: =IF(AND(K32=0.5,COUNTA(C32:F32)=4),"erreur",IF(AND(D32-C32>0,F32-E32=0),G32-Calendrier!$AS$9/2-M32,IF(AND(F32-E32>0,D32-C32=0),(F32-E32)-Calendrier!$AS$9/2-M32,IF(COUNTA(C32:F32)=4,(D32-C32)+(F32-E32)-M32-Calendrier!$AS$9,0)))) -> 0 | I32: 0 | K32: 0 | M32: 0
A33: 15 | B33: =INDIRECT(ADDRESS(MATCH($B$1,Calendrier!$A$15:$A$59,0)+14,ROW()-17,3,1,"Calendrier"),1) -> T | G33: 0 | H33: =IF(AND(K33=0.5,COUNTA(C33:F33)=4),"erreur",IF(AND(D33-C33>0,F33-E33=0),G33-Calendrier!$AS$9/2-M33,IF(AND(F33-E33>0,D33-C33=0),(F33-E33)-Calendrier!$AS$9/2-M33,IF(COUNTA(C33:F33)=4,(D33-C33)+(F33-E33)-M33-Calendrier!$AS$9,0)))) -> 0 | I33: 0 | J33: =IF(AND(COUNTA(C33:F33)=0,B33<>"T"),B33,IF(AND(OR(B33=$F$9,B33=$F$10),COUNTA(C33:F33=2)),"T",IF(G33>=6,"T",""))) ->  | K33: 0 | M33: 0
A34: 16 | B34: =INDIRECT(ADDRESS(MATCH($B$1,Calendrier!$A$15:$A$59,0)+14,ROW()-17,3,1,"Calendrier"),1) -> T | G34: 0 | H34: =IF(AND(K34=0.5,COUNTA(C34:F34)=4),"erreur",IF(AND(D34-C34>0,F34-E34=0),G34-Calendrier!$AS$9/2-M34,IF(AND(F34-E34>0,D34-C34=0),(F34-E34)-Calendrier!$AS$9/2-M34,IF(COUNTA(C34:F34)=4,(D34-C34)+(F34-E34)-M34-Calendrier!$AS$9,0)))) -> 0 | I34: 0 | K34: 0 | M34: 0
A35: 17 | B35: =INDIRECT(ADDRESS(MATCH($B$1,Calendrier!$A$15:$A$59,0)+14,ROW()-17,3,1,"Calendrier"),1) -> Sa | G35: 0 | H35: =IF(AND(K35=0.5,COUNTA(C35:F35)=4),"erreur",IF(AND(D35-C35>0,F35-E35=0),G35-Calendrier!$AS$9/2-M35,IF(AND(F35-E35>0,D35-C35=0),(F35-E35)-Calendrier!$AS$9/2-M35,IF(COUNTA(C35:F35)=4,(D35-C35)+(F35-E35)-M35-Calendrier!$AS$9,0)))) -> 0 | I35: 0 | J35: Sa | K35: 0 | M35: 0
A36: 18 | B36: =INDIRECT(ADDRESS(MATCH($B$1,Calendrier!$A$15:$A$59,0)+14,ROW()-17,3,1,"Calendrier"),1) -> Di | G36: 0 | H36: =IF(AND(K36=0.5,COUNTA(C36:F36)=4),"erreur",IF(AND(D36-C36>0,F36-E36=0),G36-Calendrier!$AS$9/2-M36,IF(AND(F36-E36>0,D36-C36=0),(F36-E36)-Calendrier!$AS$9/2-M36,IF(COUNTA(C36:F36)=4,(D36-C36)+(F36-E36)-M36-Calendrier!$AS$9,0)))) -> 0 | I36: 0 | J36: Di | K36: 0 | M36: 0
A37: 19 | B37: =INDIRECT(ADDRESS(MATCH($B$1,Calendrier!$A$15:$A$59,0)+14,ROW()-17,3,1,"Calendrier"),1) -> T | G37: 0 | H37: =IF(AND(K37=0.5,COUNTA(C37:F37)=4),"erreur",IF(AND(D37-C37>0,F37-E37=0),G37-Calendrier!$AS$9/2-M37,IF(AND(F37-E37>0,D37-C37=0),(F37-E37)-Calendrier!$AS$9/2-M37,IF(COUNTA(C37:F37)=4,(D37-C37)+(F37-E37)-M37-Calendrier!$AS$9,0)))) -> 0 | I37: 0 | K37: 0 | M37: 0
A38: 20 | B38: =INDIRECT(ADDRESS(MATCH($B$1,Calendrier!$A$15:$A$59,0)+14,ROW()-17,3,1,"Calendrier"),1) -> T | G38: 0 | H38: =IF(AND(K38=0.5,COUNTA(C38:F38)=4),"erreur",IF(AND(D38-C38>0,F38-E38=0),G38-Calendrier!$AS$9/2-M38,IF(AND(F38-E38>0,D38-C38=0),(F38-E38)-Calendrier!$AS$9/2-M38,IF(COUNTA(C38:F38)=4,(D38-C38)+(F38-E38)-M38-Calendrier!$AS$9,0)))) -> 0 | I38: 0 | K38: 0 | M38: 0
A39: 21 | B39: =INDIRECT(ADDRESS(MATCH($B$1,Calendrier!$A$15:$A$59,0)+14,ROW()-17,3,1,"Calendrier"),1) -> T | G39: 0 | H39: =IF(AND(K39=0.5,COUNTA(C39:F39)=4),"erreur",IF(AND(D39-C39>0,F39-E39=0),G39-Calendrier!$AS$9/2-M39,IF(AND(F39-E39>0,D39-C39=0),(F39-E39)-Calendrier!$AS$9/2-M39,IF(COUNTA(C39:F39)=4,(D39-C39)+(F39-E39)-M39-Calendrier!$AS$9,0)))) -> 0 | I39: 0 | K39: 0 | M39: 0
A40: 22 | B40: =INDIRECT(ADDRESS(MATCH($B$1,Calendrier!$A$15:$A$59,0)+14,ROW()-17,3,1,"Calendrier"),1) -> T | G40: 0 | H40: =IF(AND(K40=0.5,COUNTA(C40:F40)=4),"erreur",IF(AND(D40-C40>0,F40-E40=0),G40-Calendrier!$AS$9/2-M40,IF(AND(F40-E40>0,D40-C40=0),(F40-E40)-Calendrier!$AS$9/2-M40,IF(COUNTA(C40:F40)=4,(D40-C40)+(F40-E40)-M40-Calendrier!$AS$9,0)))) -> 0 | I40: 0 | K40: 0 | M40: 0
A41: 23 | B41: =INDIRECT(ADDRESS(MATCH($B$1,Calendrier!$A$15:$A$59,0)+14,ROW()-17,3,1,"Calendrier"),1) -> T | G41: 0 | H41: =IF(AND(K41=0.5,COUNTA(C41:F41)=4),"erreur",IF(AND(D41-C41>0,F41-E41=0),G41-Calendrier!$AS$9/2-M41,IF(AND(F41-E41>0,D41-C41=0),(F41-E41)-Calendrier!$AS$9/2-M41,IF(COUNTA(C41:F41)=4,(D41-C41)+(F41-E41)-M41-Calendrier!$AS$9,0)))) -> 0 | I41: 0 | K41: 0 | M41: 0
A42: 24 | B42: =INDIRECT(ADDRESS(MATCH($B$1,Calendrier!$A$15:$A$59,0)+14,ROW()-17,3,1,"Calendrier"),1) -> Sa | G42: 0 | H42: =IF(AND(K42=0.5,COUNTA(C42:F42)=4),"erreur",IF(AND(D42-C42>0,F42-E42=0),G42-Calendrier!$AS$9/2-M42,IF(AND(F42-E42>0,D42-C42=0),(F42-E42)-Calendrier!$AS$9/2-M42,IF(COUNTA(C42:F42)=4,(D42-C42)+(F42-E42)-M42-Calendrier!$AS$9,0)))) -> 0 | I42: 0 | J42: Sa | K42: 0 | M42: 0
A43: 25 | B43: =INDIRECT(ADDRESS(MATCH($B$1,Calendrier!$A$15:$A$59,0)+14,ROW()-17,3,1,"Calendrier"),1) -> F | G43: 0 | H43: =IF(AND(K43=0.5,COUNTA(C43:F43)=4),"erreur",IF(AND(D43-C43>0,F43-E43=0),G43-Calendrier!$AS$9/2-M43,IF(AND(F43-E43>0,D43-C43=0),(F43-E43)-Calendrier!$AS$9/2-M43,IF(COUNTA(C43:F43)=4,(D43-C43)+(F43-E43)-M43-Calendrier!$AS$9,0)))) -> 0 | I43: 0 | J43: F | K43: 0 | M43: 0
A44: 26 | B44: =INDIRECT(ADDRESS(MATCH($B$1,Calendrier!$A$15:$A$59,0)+14,ROW()-17,3,1,"Calendrier"),1) -> CA | G44: 0 | H44: =IF(AND(K44=0.5,COUNTA(C44:F44)=4),"erreur",IF(AND(D44-C44>0,F44-E44=0),G44-Calendrier!$AS$9/2-M44,IF(AND(F44-E44>0,D44-C44=0),(F44-E44)-Calendrier!$AS$9/2-M44,IF(COUNTA(C44:F44)=4,(D44-C44)+(F44-E44)-M44-Calendrier!$AS$9,0)))) -> 0 | I44: 0 | J44: CA | K44: 0 | M44: 0
A45: 27 | B45: =INDIRECT(ADDRESS(MATCH($B$1,Calendrier!$A$15:$A$59,0)+14,ROW()-17,3,1,"Calendrier"),1) -> CA | G45: 0 | H45: =IF(AND(K45=0.5,COUNTA(C45:F45)=4),"erreur",IF(AND(D45-C45>0,F45-E45=0),G45-Calendrier!$AS$9/2-M45,IF(AND(F45-E45>0,D45-C45=0),(F45-E45)-Calendrier!$AS$9/2-M45,IF(COUNTA(C45:F45)=4,(D45-C45)+(F45-E45)-M45-Calendrier!$AS$9,0)))) -> 0 | I45: 0 | J45: CA | K45: 0 | M45: 0
A46: 28 | B46: =INDIRECT(ADDRESS(MATCH($B$1,Calendrier!$A$15:$A$59,0)+14,ROW()-17,3,1,"Calendrier"),1) -> CA | G46: 0 | H46: =IF(AND(K46=0.5,COUNTA(C46:F46)=4),"erreur",IF(AND(D46-C46>0,F46-E46=0),G46-Calendrier!$AS$9/2-M46,IF(AND(F46-E46>0,D46-C46=0),(F46-E46)-Calendrier!$AS$9/2-M46,IF(COUNTA(C46:F46)=4,(D46-C46)+(F46-E46)-M46-Calendrier!$AS$9,0)))) -> 0 | I46: 0 | J46: CA | K46: 0 | M46: 0
A47: 29 | B47: =INDIRECT(ADDRESS(MATCH($B$1,Calendrier!$A$15:$A$59,0)+14,ROW()-17,3,1,"Calendrier"),1) -> CA | G47: 0 | H47: =IF(AND(K47=0.5,COUNTA(C47:F47)=4),"erreur",IF(AND(D47-C47>0,F47-E47=0),G47-Calendrier!$AS$9/2-M47,IF(AND(F47-E47>0,D47-C47=0),(F47-E47)-Calendrier!$AS$9/2-M47,IF(COUNTA(C47:F47)=4,(D47-C47)+(F47-E47)-M47-Calendrier!$AS$9,0)))) -> 0 | I47: 0 | J47: CA | K47: 0 | M47: 0
A48: 30 | B48: =INDIRECT(ADDRESS(MATCH($B$1,Calendrier!$A$15:$A$59,0)+14,ROW()-17,3,1,"Calendrier"),1) -> CA | G48: 0 | H48: =IF(AND(K48=0.5,COUNTA(C48:F48)=4),"erreur",IF(AND(D48-C48>0,F48-E48=0),G48-Calendrier!$AS$9/2-M48,IF(AND(F48-E48>0,D48-C48=0),(F48-E48)-Calendrier!$AS$9/2-M48,IF(COUNTA(C48:F48)=4,(D48-C48)+(F48-E48)-M48-Calendrier!$AS$9,0)))) -> 0 | I48: 0 | J48: CA | K48: 0 | M48: 0
A49: 31 | B49: =INDIRECT(ADDRESS(MATCH($B$1,Calendrier!$A$15:$A$59,0)+14,ROW()-17,3,1,"Calendrier"),1) -> Sa | G49: 0 | H49: =IF(AND(K49=0.5,COUNTA(C49:F49)=4),"erreur",IF(AND(D49-C49>0,F49-E49=0),G49-Calendrier!$AS$9/2-M49,IF(AND(F49-E49>0,D49-C49=0),(F49-E49)-Calendrier!$AS$9/2-M49,IF(COUNTA(C49:F49)=4,(D49-C49)+(F49-E49)-M49-Calendrier!$AS$9,0)))) -> 0 | I49: 0 | J49: Sa | K49: 0 | M49: 0
H50: solde des variations | I50: =I49 -> 0

Sheet Fériés
A1: =Calendrier!A1 -> 2016
A9: =VALUE("01/01/"&$A$1) -> 2016-01-01
A10: =DATE($A$1,IF((25-MOD((11*MOD($A$1-1900,19)+4-INT((7*MOD($A$1-1900,19)+1)/19)),29)-MOD($A$1-1900+INT(($A$1-1900)/4)+31-MOD((11*MOD($A$1-1900,19)+4-INT((7*MOD($A$1-1900,19)+1)/19)),29),7))>0,4,3),IF((25-MOD((11*MOD($A$1-1900,19)+4-INT((7*MOD($A$1-1900,19)+1)/19)),29)-MOD($A$1-1900+INT(($A$1-1900)/4)+31-MOD((11*MOD($A$1-1900,19)+4-INT((7*MOD($A$1-1900,19)+1)/19)),29),7))>0,(25-MOD((11*MOD($A$1-1900,19)+4-INT((7*MOD($A$1-1900,19)+1)/19)),29)-MOD($A$1-1900+INT(($A$1-1900)/4)+31-MOD((11*MOD($A$1-1900,19)+4-INT((7*MOD($A$1-1900,19)+1)/19)),29),7)),31+(25-MOD((11*MOD($A$1-1900,19)+4-INT((7*MOD($A$1-1900,19)+1)/19)),29)-MOD($A$1-1900+INT(($A$1-1900)/4)+31-MOD((11*MOD($A$1-1900,19)+4-INT((7*MOD($A$1-1900,19)+1)/19)),29),7)))) -> 2016-03-27 | B10: Pâques
A11: =A10+1 -> 2016-03-28 | B11: lundi Pâques
A12: =VALUE("01/05/"&$A$1) -> 2016-05-01
A13: =VALUE("08/05/"&$A$1) -> 2016-05-08
A14: =A10+39 -> 2016-05-05 | B14: jeudi assencion
A15: =A10+49 -> 2016-05-15 | B15: Pentecôte
B16: lundi de Pentecôte
A17: =VALUE("14/07/"&$A$1) -> 2016-07-14
A18: =VALUE("15/08/"&$A$1) -> 2016-08-15
A19: =VALUE("01/11/"&$A$1) -> 2016-11-01
A20: =VALUE("11/11/"&$A$1) -> 2016-11-11
A21: =VALUE("25/12/"&$A$1) -> 2016-12-25
A22: =A21+7 -> 2017-01-01
